Organisation name,Organisation Code,Date Paid,Transaction Number,Amount,Supplier Name,Supplier ID,Supplier post code (first 4 digits),Directorate,Service Area,General Ledger code Description,BVACOP class,Revenue/ Capital Spend
Wiltshire,http://opendatacommunities.org/id/unitary-authority/wiltshire,05/12/2017,1902043385,416.25,12 College Place ,137740,SO15,Community Services,HRA Housing Income T,Legal Fees,Supplies and Services,REVENUE
Wiltshire,http://opendatacommunities.org/id/unitary-authority/wiltshire,08/12/2017,1902046421,1925,1st Choice Cabs ,101285,SP4 ,Neighbourhood & Planning,SEN Primary,Transport Contracts,Third Party Payments,REVENUE
Wiltshire,http://opendatacommunities.org/id/unitary-authority/wiltshire,08/12/2017,1902046421,1925,1st Choice Cabs ,101285,SP4 ,Neighbourhood & Planning,SEN Secondary,Transport Contracts,Third Party Payments,REVENUE
Wiltshire,http://opendatacommunities.org/id/unitary-authority/wiltshire,08/12/2017,1902046232,6005,1st Choice Stairlifts ,113095,SN11,Wiltshire Council,Wiltshire Council,Other Contracts,Third Party Payments,CAPITAL
Wiltshire,http://opendatacommunities.org/id/unitary-authority/wiltshire,13/12/2017,5107144418,2424.2,2 Care UK Ltd ,110002,BH7 ,Community Services,MH AOWA South Locali,Supported Living,Third Party Payments,REVENUE
Wiltshire,http://opendatacommunities.org/id/unitary-authority/wiltshire,13/12/2017,5107144419,2424.2,2 Care UK Ltd ,110002,BH7 ,Community Services,MH AOWA South Locali,Supported Living,Third Party Payments,REVENUE
Wiltshire,http://opendatacommunities.org/id/unitary-authority/wiltshire,13/12/2017,5107144420,2424.2,2 Care UK Ltd ,110002,BH7 ,Community Services,MH AOWA South Locali,Supported Living,Third Party Payments,REVENUE
Wiltshire,http://opendatacommunities.org/id/unitary-authority/wiltshire,13/12/2017,5107144421,2424.2,2 Care UK Ltd ,110002,BH7 ,Community Services,MH AOWA South Locali,Supported Living,Third Party Payments,REVENUE
Wiltshire,http://opendatacommunities.org/id/unitary-authority/wiltshire,13/12/2017,5107144422,2424.2,2 Care UK Ltd ,110002,BH7 ,Community Services,MH AOWA South Locali,Supported Living,Third Party Payments,REVENUE
Wiltshire,http://opendatacommunities.org/id/unitary-authority/wiltshire,13/12/2017,5107146507,7321.68,22 Wingfield ,129621,BA14,Community Services,CTPLD Placements,Adult Residential Placements - Spot Purchase,Third Party Payments,REVENUE
Wiltshire,http://opendatacommunities.org/id/unitary-authority/wiltshire,13/12/2017,5107146792,845.6,22 Wingfield ,129621,BA14,Community Services,MH AOWA West Localit,Supported Living,Third Party Payments,REVENUE
Wiltshire,http://opendatacommunities.org/id/unitary-authority/wiltshire,13/12/2017,5107148112,5945.68,22 Wingfield ,129621,BA14,Community Services,CTPLD Placements,Adult Residential Placements - Spot Purchase,Third Party Payments,REVENUE
Wiltshire,http://opendatacommunities.org/id/unitary-authority/wiltshire,13/12/2017,5107148178,5791.16,22 Wingfield ,129621,BA14,Community Services,MH AOWA West Localit,Adult Residential Placements - Spot Purchase,Third Party Payments,REVENUE
Wiltshire,http://opendatacommunities.org/id/unitary-authority/wiltshire,13/12/2017,5107148225,7550.24,22 Wingfield ,129621,BA14,Community Services,CTPLD Placements,Adult Residential Placements - Spot Purchase,Third Party Payments,REVENUE
Wiltshire,http://opendatacommunities.org/id/unitary-authority/wiltshire,13/12/2017,5107148600,7499.32,22 Wingfield ,129621,BA14,Community Services,Ad/Brad Rd,Adult Residential Placements - Spot Purchase,Third Party Payments,REVENUE
Wiltshire,http://opendatacommunities.org/id/unitary-authority/wiltshire,06/12/2017,5107139072,657.14,24-7 Staffing ,140662,SN15,Community Services,Chippenham Respite,Agency Staff,Employee Related,REVENUE
Wiltshire,http://opendatacommunities.org/id/unitary-authority/wiltshire,06/12/2017,5107140660,521.77,24-7 Staffing ,140662,SN15,Community Services,Bradbury Hse Respite,Agency Staff,Employee Related,REVENUE
Wiltshire,http://opendatacommunities.org/id/unitary-authority/wiltshire,13/12/2017,5107143476,600.99,24-7 Staffing ,140662,SN15,Community Services,Bradbury Manor Resp,Agency Staff,Employee Related,REVENUE
Wiltshire,http://opendatacommunities.org/id/unitary-authority/wiltshire,20/12/2017,5107151943,376.94,24-7 Staffing ,140662,SN15,Community Services,Bradbury Manor Resp,Agency Staff,Employee Related,REVENUE
Wiltshire,http://opendatacommunities.org/id/unitary-authority/wiltshire,20/12/2017,5107151944,349.9,24-7 Staffing ,140662,SN15,Community Services,Bradbury Manor Resp,Agency Staff,Employee Related,REVENUE
Wiltshire,http://opendatacommunities.org/id/unitary-authority/wiltshire,28/12/2017,5107151946,390.65,24-7 Staffing ,140662,SN15,Community Services,Bradbury Manor Resp,Agency Staff,Employee Related,REVENUE
Wiltshire,http://opendatacommunities.org/id/unitary-authority/wiltshire,21/12/2017,5107153562,351.95,24-7 Staffing ,140662,SN15,Community Services,Riverbank,Agency Staff,Employee Related,REVENUE
Wiltshire,http://opendatacommunities.org/id/unitary-authority/wiltshire,21/12/2017,5107153563,266.1,24-7 Staffing ,140662,SN15,Community Services,Riverbank,Agency Staff,Employee Related,REVENUE
Wiltshire,http://opendatacommunities.org/id/unitary-authority/wiltshire,13/12/2017,1902049202,2860,2get2 Taxi Services Ltd ,101102,SP4 ,Neighbourhood & Planning,SEN Secondary,Transport Contracts,Third Party Payments,REVENUE
Wiltshire,http://opendatacommunities.org/id/unitary-authority/wiltshire,13/12/2017,1902049203,1980,2get2 Taxi Services Ltd ,101102,SP4 ,Neighbourhood & Planning,SEN Primary,Transport Contracts,Third Party Payments,REVENUE
Wiltshire,http://opendatacommunities.org/id/unitary-authority/wiltshire,28/12/2017,5107153781,663,4 Imprint ,113123,M17 ,Children & Education,Adult Comm Learning,Stationery,Supplies and Services,REVENUE
Wiltshire,http://opendatacommunities.org/id/unitary-authority/wiltshire,18/12/2017,1902051054,1366.2,A & P Taxis ,143342,SN12,Neighbourhood & Planning,SEN Secondary,Transport Contracts,Third Party Payments,REVENUE
Wiltshire,http://opendatacommunities.org/id/unitary-authority/wiltshire,18/12/2017,1902051054,1669.8,A & P Taxis ,143342,SN12,Neighbourhood & Planning,SEN Primary,Transport Contracts,Third Party Payments,REVENUE
Wiltshire,http://opendatacommunities.org/id/unitary-authority/wiltshire,18/12/2017,1902051055,712.5,A & P Taxis ,143342,SN12,Neighbourhood & Planning,SEN Primary,Transport Contracts,Third Party Payments,REVENUE
Wiltshire,http://opendatacommunities.org/id/unitary-authority/wiltshire,18/12/2017,1902051055,2137.5,A & P Taxis ,143342,SN12,Neighbourhood & Planning,SEN Secondary,Transport Contracts,Third Party Payments,REVENUE
Wiltshire,http://opendatacommunities.org/id/unitary-authority/wiltshire,18/12/2017,1902051057,616,A & P Taxis ,143342,SN12,Neighbourhood & Planning,Mainstream Secondary,Transport Contracts,Third Party Payments,REVENUE
Wiltshire,http://opendatacommunities.org/id/unitary-authority/wiltshire,18/12/2017,1902051062,700,A & P Taxis ,143342,SN12,Neighbourhood & Planning,SEN 16+ Secondary,Transport Contracts,Third Party Payments,REVENUE
Wiltshire,http://opendatacommunities.org/id/unitary-authority/wiltshire,18/12/2017,1902051062,770,A & P Taxis ,143342,SN12,Neighbourhood & Planning,SEN Secondary,Transport Contracts,Third Party Payments,REVENUE
Wiltshire,http://opendatacommunities.org/id/unitary-authority/wiltshire,08/12/2017,1902046419,252.78,A B Taxis Ltd ,100945,SN12,Neighbourhood & Planning,Mainstream Primary,Transport Contracts,Third Party Payments,REVENUE
Wiltshire,http://opendatacommunities.org/id/unitary-authority/wiltshire,12/12/2017,1902048281,997.5,A G Minibuses Ltd ,100878,BA12,Neighbourhood & Planning,Mainstream Primary,Transport Contracts,Third Party Payments,REVENUE
Wiltshire,http://opendatacommunities.org/id/unitary-authority/wiltshire,12/12/2017,1902048281,3365.52,A G Minibuses Ltd ,100878,BA12,Neighbourhood & Planning,Public Transport,Transport Contracts,Third Party Payments,REVENUE
Wiltshire,http://opendatacommunities.org/id/unitary-authority/wiltshire,15/12/2017,1902049920,1092,A G Minibuses Ltd ,100878,BA12,Neighbourhood & Planning,SEN Secondary,Transport Contracts,Third Party Payments,REVENUE
Wiltshire,http://opendatacommunities.org/id/unitary-authority/wiltshire,15/12/2017,1902049920,2184,A G Minibuses Ltd ,100878,BA12,Neighbourhood & Planning,SEN Primary,Transport Contracts,Third Party Payments,REVENUE
Wiltshire,http://opendatacommunities.org/id/unitary-authority/wiltshire,15/12/2017,1902049921,1988.79,A G Minibuses Ltd ,100878,BA12,Neighbourhood & Planning,Mainstream Primary,Transport Contracts,Third Party Payments,REVENUE
Wiltshire,http://opendatacommunities.org/id/unitary-authority/wiltshire,15/12/2017,1902049922,1760,A G Minibuses Ltd ,100878,BA12,Neighbourhood & Planning,Mainstream Secondary,Transport Contracts,Third Party Payments,REVENUE
Wiltshire,http://opendatacommunities.org/id/unitary-authority/wiltshire,15/12/2017,1902049923,2095.5,A G Minibuses Ltd ,100878,BA12,Neighbourhood & Planning,Mainstream Primary,Transport Contracts,Third Party Payments,REVENUE
Wiltshire,http://opendatacommunities.org/id/unitary-authority/wiltshire,15/12/2017,1902049925,919.6,A G Minibuses Ltd ,100878,BA12,Neighbourhood & Planning,SEN Secondary,Transport Contracts,Third Party Payments,REVENUE
Wiltshire,http://opendatacommunities.org/id/unitary-authority/wiltshire,15/12/2017,1902049925,1839.2,A G Minibuses Ltd ,100878,BA12,Neighbourhood & Planning,SEN Primary,Transport Contracts,Third Party Payments,REVENUE
Wiltshire,http://opendatacommunities.org/id/unitary-authority/wiltshire,15/12/2017,1902049926,444.4,A G Minibuses Ltd ,100878,BA12,Neighbourhood & Planning,SEN 16+ Secondary,Transport Contracts,Third Party Payments,REVENUE
Wiltshire,http://opendatacommunities.org/id/unitary-authority/wiltshire,15/12/2017,1902049926,888.8,A G Minibuses Ltd ,100878,BA12,Neighbourhood & Planning,SEN Primary,Transport Contracts,Third Party Payments,REVENUE
Wiltshire,http://opendatacommunities.org/id/unitary-authority/wiltshire,15/12/2017,1902049926,888.8,A G Minibuses Ltd ,100878,BA12,Neighbourhood & Planning,SEN Secondary,Transport Contracts,Third Party Payments,REVENUE
Wiltshire,http://opendatacommunities.org/id/unitary-authority/wiltshire,15/12/2017,1902049927,1067.9,A G Minibuses Ltd ,100878,BA12,Neighbourhood & Planning,SEN Primary,Transport Contracts,Third Party Payments,REVENUE
Wiltshire,http://opendatacommunities.org/id/unitary-authority/wiltshire,15/12/2017,1902049927,1067.9,A G Minibuses Ltd ,100878,BA12,Neighbourhood & Planning,SEN Secondary,Transport Contracts,Third Party Payments,REVENUE
Wiltshire,http://opendatacommunities.org/id/unitary-authority/wiltshire,15/12/2017,1902049928,356.22,A G Minibuses Ltd ,100878,BA12,Neighbourhood & Planning,SEN Secondary,Transport Contracts,Third Party Payments,REVENUE
Wiltshire,http://opendatacommunities.org/id/unitary-authority/wiltshire,15/12/2017,1902049928,1781.08,A G Minibuses Ltd ,100878,BA12,Neighbourhood & Planning,SEN Primary,Transport Contracts,Third Party Payments,REVENUE
Wiltshire,http://opendatacommunities.org/id/unitary-authority/wiltshire,15/12/2017,1902049929,3276.9,A G Minibuses Ltd ,100878,BA12,Neighbourhood & Planning,SEN Secondary,Transport Contracts,Third Party Payments,REVENUE
Wiltshire,http://opendatacommunities.org/id/unitary-authority/wiltshire,15/12/2017,1902049930,1995,A G Minibuses Ltd ,100878,BA12,Neighbourhood & Planning,SEN Secondary,Transport Contracts,Third Party Payments,REVENUE
Wiltshire,http://opendatacommunities.org/id/unitary-authority/wiltshire,15/12/2017,1902049931,342,A G Minibuses Ltd ,100878,BA12,Neighbourhood & Planning,SEN Primary,Transport Contracts,Third Party Payments,REVENUE
Wiltshire,http://opendatacommunities.org/id/unitary-authority/wiltshire,15/12/2017,1902049931,2052,A G Minibuses Ltd ,100878,BA12,Neighbourhood & Planning,SEN Secondary,Transport Contracts,Third Party Payments,REVENUE
Wiltshire,http://opendatacommunities.org/id/unitary-authority/wiltshire,15/12/2017,1902049932,2919,A G Minibuses Ltd ,100878,BA12,Neighbourhood & Planning,SEN Secondary,Transport Contracts,Third Party Payments,REVENUE
Wiltshire,http://opendatacommunities.org/id/unitary-authority/wiltshire,15/12/2017,1902049933,303,A G Minibuses Ltd ,100878,BA12,Neighbourhood & Planning,SEN Primary,Transport Contracts,Third Party Payments,REVENUE
Wiltshire,http://opendatacommunities.org/id/unitary-authority/wiltshire,15/12/2017,1902049933,1818,A G Minibuses Ltd ,100878,BA12,Neighbourhood & Planning,SEN Secondary,Transport Contracts,Third Party Payments,REVENUE
Wiltshire,http://opendatacommunities.org/id/unitary-authority/wiltshire,15/12/2017,1902049934,722,A G Minibuses Ltd ,100878,BA12,Neighbourhood & Planning,SEN 16+ Secondary,Transport Contracts,Third Party Payments,REVENUE
Wiltshire,http://opendatacommunities.org/id/unitary-authority/wiltshire,15/12/2017,1902049936,1890.89,A G Minibuses Ltd ,100878,BA12,Neighbourhood & Planning,Mainstream Primary,Transport Contracts,Third Party Payments,REVENUE
Wiltshire,http://opendatacommunities.org/id/unitary-authority/wiltshire,15/12/2017,1902049937,653,A G Minibuses Ltd ,100878,BA12,Community Services,West Locality 18+ Ca,Transport Contracts,Third Party Payments,REVENUE
Wiltshire,http://opendatacommunities.org/id/unitary-authority/wiltshire,15/12/2017,1902049937,2213,A G Minibuses Ltd ,100878,BA12,Community Services,CTPLD Placements,Transport Contracts,Third Party Payments,REVENUE
Wiltshire,http://opendatacommunities.org/id/unitary-authority/wiltshire,15/12/2017,1902049938,744,A G Minibuses Ltd ,100878,BA12,Community Services,West Locality 18+ Ca,Transport Contracts,Third Party Payments,REVENUE
Wiltshire,http://opendatacommunities.org/id/unitary-authority/wiltshire,15/12/2017,1902049940,1843.7,A G Minibuses Ltd ,100878,BA12,Community Services,CTPLD Placements,Transport Contracts,Third Party Payments,REVENUE
Wiltshire,http://opendatacommunities.org/id/unitary-authority/wiltshire,15/12/2017,1902049942,1204,A G Minibuses Ltd ,100878,BA12,Community Services,CTPLD Placements,Transport Contracts,Third Party Payments,REVENUE
Wiltshire,http://opendatacommunities.org/id/unitary-authority/wiltshire,21/12/2017,1902058700,1688.6,A G Minibuses Ltd ,100878,BA12,Neighbourhood & Planning,Mainstream Secondary,Transport Contracts,Third Party Payments,REVENUE
Wiltshire,http://opendatacommunities.org/id/unitary-authority/wiltshire,21/12/2017,1902058700,1688.6,A G Minibuses Ltd ,100878,BA12,Neighbourhood & Planning,Mainstream 16+ FE,Transport Contracts,Third Party Payments,REVENUE
Wiltshire,http://opendatacommunities.org/id/unitary-authority/wiltshire,20/12/2017,5107151837,828.6,A S A Awards Scheme ,110020,LE11,Neighbourhood & Planning,Tidworth,Traded Goods Expenses,Supplies and Services,REVENUE
Wiltshire,http://opendatacommunities.org/id/unitary-authority/wiltshire,27/12/2017,5107151965,489.67,A S A Awards Scheme ,110020,LE11,Neighbourhood & Planning,Devizes,Traded Goods Expenses,Supplies and Services,REVENUE
Wiltshire,http://opendatacommunities.org/id/unitary-authority/wiltshire,27/12/2017,5107152017,847.17,A S A Awards Scheme ,110020,LE11,Neighbourhood & Planning,Durrington SwimmingP,Traded Goods Expenses,Supplies and Services,REVENUE
Wiltshire,http://opendatacommunities.org/id/unitary-authority/wiltshire,12/12/2017,1902048302,1462,A1 Cab Company ,101233,SP4 ,Neighbourhood & Planning,SEN Primary,Transport Contracts,Third Party Payments,REVENUE
Wiltshire,http://opendatacommunities.org/id/unitary-authority/wiltshire,12/12/2017,1902048307,1760,A1 Cab Company ,101233,SP4 ,Children & Education,CIC Team South,Transport Contracts,Third Party Payments,REVENUE
Wiltshire,http://opendatacommunities.org/id/unitary-authority/wiltshire,12/12/2017,1902048310,1705,A1 Cab Company ,101233,SP4 ,Neighbourhood & Planning,SEN 16+ Secondary,Transport Contracts,Third Party Payments,REVENUE
Wiltshire,http://opendatacommunities.org/id/unitary-authority/wiltshire,13/12/2017,1902049218,550,A1 Cab Company ,101233,SP4 ,Children & Education,EOTAS Service,Transport Contracts,Third Party Payments,REVENUE
Wiltshire,http://opendatacommunities.org/id/unitary-authority/wiltshire,13/12/2017,1902049218,550,A1 Cab Company ,101233,SP4 ,Neighbourhood & Planning,SEN Primary,Transport Contracts,Third Party Payments,REVENUE
Wiltshire,http://opendatacommunities.org/id/unitary-authority/wiltshire,12/12/2017,1902048484,9473.67,A2 Winchester Ltd ,101167,SO23,Neighbourhood & Planning,Hsg Strat & Enabling,Other Contracts,Third Party Payments,REVENUE
Wiltshire,http://opendatacommunities.org/id/unitary-authority/wiltshire,05/12/2017,5107144068,470,A-2-B Rubbish Clearance ,139914,BH1 ,Neighbourhood & Planning,Oak Tree Field G&T,Materials,Supplies and Services,REVENUE
Wiltshire,http://opendatacommunities.org/id/unitary-authority/wiltshire,18/12/2017,1902051094,442,A2B Taxis (Dorset) ,143353,SP8 ,Neighbourhood & Planning,Mainstream Secondary,Transport Contracts,Third Party Payments,REVENUE
Wiltshire,http://opendatacommunities.org/id/unitary-authority/wiltshire,08/12/2017,1902046409,510,Abbey Taxis (Swindon) Ltd ,100920,SN2 ,Neighbourhood & Planning,SEN Secondary,Transport Contracts,Third Party Payments,REVENUE
Wiltshire,http://opendatacommunities.org/id/unitary-authority/wiltshire,08/12/2017,1902046409,510,Abbey Taxis (Swindon) Ltd ,100920,SN2 ,Neighbourhood & Planning,SEN 16+ Secondary,Transport Contracts,Third Party Payments,REVENUE
Wiltshire,http://opendatacommunities.org/id/unitary-authority/wiltshire,08/12/2017,1902046410,1572.5,Abbey Taxis (Swindon) Ltd ,100920,SN2 ,Community Services,CTPLD Placements,Transport Contracts,Third Party Payments,REVENUE
Wiltshire,http://opendatacommunities.org/id/unitary-authority/wiltshire,08/12/2017,1902046411,2860,Abbey Taxis (Swindon) Ltd ,100920,SN2 ,Neighbourhood & Planning,SEN Secondary,Transport Contracts,Third Party Payments,REVENUE
Wiltshire,http://opendatacommunities.org/id/unitary-authority/wiltshire,08/12/2017,1902046412,2750,Abbey Taxis (Swindon) Ltd ,100920,SN2 ,Neighbourhood & Planning,SEN Primary,Transport Contracts,Third Party Payments,REVENUE
Wiltshire,http://opendatacommunities.org/id/unitary-authority/wiltshire,08/12/2017,1902046412,2750,Abbey Taxis (Swindon) Ltd ,100920,SN2 ,Neighbourhood & Planning,SEN Secondary,Transport Contracts,Third Party Payments,REVENUE
Wiltshire,http://opendatacommunities.org/id/unitary-authority/wiltshire,08/12/2017,1902046413,5060,Abbey Taxis (Swindon) Ltd ,100920,SN2 ,Neighbourhood & Planning,SEN Secondary,Transport Contracts,Third Party Payments,REVENUE
Wiltshire,http://opendatacommunities.org/id/unitary-authority/wiltshire,08/12/2017,1902046414,420,Abbey Taxis (Swindon) Ltd ,100920,SN2 ,Neighbourhood & Planning,SEN Secondary,Transport Contracts,Third Party Payments,REVENUE
Wiltshire,http://opendatacommunities.org/id/unitary-authority/wiltshire,12/12/2017,1902048283,2200,Abbey Taxis (Swindon) Ltd ,100920,SN2 ,Neighbourhood & Planning,SEN Primary,Transport Contracts,Third Party Payments,REVENUE
Wiltshire,http://opendatacommunities.org/id/unitary-authority/wiltshire,12/12/2017,1902048284,816.66,Abbey Taxis (Swindon) Ltd ,100920,SN2 ,Neighbourhood & Planning,SEN Secondary,Transport Contracts,Third Party Payments,REVENUE
Wiltshire,http://opendatacommunities.org/id/unitary-authority/wiltshire,12/12/2017,1902048284,1633.34,Abbey Taxis (Swindon) Ltd ,100920,SN2 ,Neighbourhood & Planning,SEN Primary,Transport Contracts,Third Party Payments,REVENUE
Wiltshire,http://opendatacommunities.org/id/unitary-authority/wiltshire,12/12/2017,1902048286,823.34,Abbey Taxis (Swindon) Ltd ,100920,SN2 ,Neighbourhood & Planning,SEN Secondary,Transport Contracts,Third Party Payments,REVENUE
Wiltshire,http://opendatacommunities.org/id/unitary-authority/wiltshire,12/12/2017,1902048286,1646.66,Abbey Taxis (Swindon) Ltd ,100920,SN2 ,Neighbourhood & Planning,SEN Primary,Transport Contracts,Third Party Payments,REVENUE
Wiltshire,http://opendatacommunities.org/id/unitary-authority/wiltshire,14/12/2017,1902049804,884,Abbey Taxis (Swindon) Ltd ,100920,SN2 ,Neighbourhood & Planning,SEN Secondary,Transport Contracts,Third Party Payments,REVENUE
Wiltshire,http://opendatacommunities.org/id/unitary-authority/wiltshire,14/12/2017,1902049804,884,Abbey Taxis (Swindon) Ltd ,100920,SN2 ,Neighbourhood & Planning,SEN 16+ Secondary,Transport Contracts,Third Party Payments,REVENUE
Wiltshire,http://opendatacommunities.org/id/unitary-authority/wiltshire,14/12/2017,1902049808,2530,Abbey Taxis (Swindon) Ltd ,100920,SN2 ,Neighbourhood & Planning,Mainstream Secondary,Transport Contracts,Third Party Payments,REVENUE
Wiltshire,http://opendatacommunities.org/id/unitary-authority/wiltshire,14/12/2017,1902049809,825,Abbey Taxis (Swindon) Ltd ,100920,SN2 ,Neighbourhood & Planning,Mainstream Primary,Transport Contracts,Third Party Payments,REVENUE
Wiltshire,http://opendatacommunities.org/id/unitary-authority/wiltshire,14/12/2017,1902049809,2475,Abbey Taxis (Swindon) Ltd ,100920,SN2 ,Neighbourhood & Planning,SEN Primary,Transport Contracts,Third Party Payments,REVENUE
Wiltshire,http://opendatacommunities.org/id/unitary-authority/wiltshire,14/12/2017,1902049810,2200,Abbey Taxis (Swindon) Ltd ,100920,SN2 ,Neighbourhood & Planning,SEN Secondary,Transport Contracts,Third Party Payments,REVENUE
Wiltshire,http://opendatacommunities.org/id/unitary-authority/wiltshire,14/12/2017,1902049811,2200,Abbey Taxis (Swindon) Ltd ,100920,SN2 ,Neighbourhood & Planning,SEN Primary,Transport Contracts,Third Party Payments,REVENUE
Wiltshire,http://opendatacommunities.org/id/unitary-authority/wiltshire,14/12/2017,1902049812,1056,Abbey Taxis (Swindon) Ltd ,100920,SN2 ,Neighbourhood & Planning,SEN Primary,Transport Contracts,Third Party Payments,REVENUE
Wiltshire,http://opendatacommunities.org/id/unitary-authority/wiltshire,14/12/2017,1902049813,780,Abbey Taxis (Swindon) Ltd ,100920,SN2 ,Neighbourhood & Planning,SEN Primary,Transport Contracts,Third Party Payments,REVENUE
Wiltshire,http://opendatacommunities.org/id/unitary-authority/wiltshire,14/12/2017,1902049813,1950,Abbey Taxis (Swindon) Ltd ,100920,SN2 ,Neighbourhood & Planning,SEN Secondary,Transport Contracts,Third Party Payments,REVENUE
Wiltshire,http://opendatacommunities.org/id/unitary-authority/wiltshire,14/12/2017,1902049814,405,Abbey Taxis (Swindon) Ltd ,100920,SN2 ,Neighbourhood & Planning,Mainstream Secondary,Transport Contracts,Third Party Payments,REVENUE
Wiltshire,http://opendatacommunities.org/id/unitary-authority/wiltshire,14/12/2017,1902049814,405,Abbey Taxis (Swindon) Ltd ,100920,SN2 ,Neighbourhood & Planning,SEN Primary,Transport Contracts,Third Party Payments,REVENUE
Wiltshire,http://opendatacommunities.org/id/unitary-authority/wiltshire,14/12/2017,1902049814,2025,Abbey Taxis (Swindon) Ltd ,100920,SN2 ,Neighbourhood & Planning,SEN Secondary,Transport Contracts,Third Party Payments,REVENUE
Wiltshire,http://opendatacommunities.org/id/unitary-authority/wiltshire,14/12/2017,1902049815,2100,Abbey Taxis (Swindon) Ltd ,100920,SN2 ,Neighbourhood & Planning,SEN Secondary,Transport Contracts,Third Party Payments,REVENUE
Wiltshire,http://opendatacommunities.org/id/unitary-authority/wiltshire,14/12/2017,1902049816,1144,Abbey Taxis (Swindon) Ltd ,100920,SN2 ,Neighbourhood & Planning,Mainstream Secondary,Transport Contracts,Third Party Payments,REVENUE
Wiltshire,http://opendatacommunities.org/id/unitary-authority/wiltshire,14/12/2017,1902049817,531,Abbey Taxis (Swindon) Ltd ,100920,SN2 ,Neighbourhood & Planning,SEN 16+ Secondary,Transport Contracts,Third Party Payments,REVENUE
Wiltshire,http://opendatacommunities.org/id/unitary-authority/wiltshire,14/12/2017,1902049818,880,Abbey Taxis (Swindon) Ltd ,100920,SN2 ,Neighbourhood & Planning,Mainstream Primary,Transport Contracts,Third Party Payments,REVENUE
Wiltshire,http://opendatacommunities.org/id/unitary-authority/wiltshire,14/12/2017,1902049820,680,Abbey Taxis (Swindon) Ltd ,100920,SN2 ,Neighbourhood & Planning,Mainstream 16+ FE,Transport Contracts,Third Party Payments,REVENUE
Wiltshire,http://opendatacommunities.org/id/unitary-authority/wiltshire,14/12/2017,1902049821,1040,Abbey Taxis (Swindon) Ltd ,100920,SN2 ,Neighbourhood & Planning,Mainstream 16+ FE,Transport Contracts,Third Party Payments,REVENUE
Wiltshire,http://opendatacommunities.org/id/unitary-authority/wiltshire,07/12/2017,1902046077,1163.27,Abbey Taxis Ltd ,101080,BA2 ,Neighbourhood & Planning,SEN Secondary,Transport Contracts,Third Party Payments,REVENUE
Wiltshire,http://opendatacommunities.org/id/unitary-authority/wiltshire,06/12/2017,5107144701,546.81,Abicare Services Ltd Homecare ,110031,SP2 ,Community Services,CTPLD Placements,Adult Domiciliary Care - Spot,Third Party Payments,REVENUE
Wiltshire,http://opendatacommunities.org/id/unitary-authority/wiltshire,06/12/2017,5107144703,348.07,Abicare Services Ltd Homecare ,110031,SP2 ,Community Services,BCF-Intermediate Cr,Adult Domiciliary Care - Spot,Third Party Payments,REVENUE
Wiltshire,http://opendatacommunities.org/id/unitary-authority/wiltshire,06/12/2017,5107144704,534.76,Abicare Services Ltd Homecare ,110031,SP2 ,Community Services,BoA Cluster,Adult Domiciliary Care - Spot Contribution,Income,REVENUE
Wiltshire,http://opendatacommunities.org/id/unitary-authority/wiltshire,07/12/2017,5107145784,545.68,Abicare Services Ltd Homecare ,110031,SP2 ,Community Services,MH OP West Locality,Adult Domiciliary Care - Spot Contribution,Income,REVENUE
Wiltshire,http://opendatacommunities.org/id/unitary-authority/wiltshire,11/12/2017,5107146893,546.81,Abicare Services Ltd Homecare ,110031,SP2 ,Community Services,CTPLD Placements,Adult Domiciliary Care - Spot,Third Party Payments,REVENUE
Wiltshire,http://opendatacommunities.org/id/unitary-authority/wiltshire,18/12/2017,5107151638,346.07,Abicare Services Ltd Homecare ,110031,SP2 ,Community Services,BCF-Intermediate Cr,Adult Domiciliary Care - Spot,Third Party Payments,REVENUE
Wiltshire,http://opendatacommunities.org/id/unitary-authority/wiltshire,18/12/2017,5107151644,532.23,Abicare Services Ltd Homecare ,110031,SP2 ,Community Services,BoA Cluster,Adult Domiciliary Care - Spot Contribution,Income,REVENUE
Wiltshire,http://opendatacommunities.org/id/unitary-authority/wiltshire,21/12/2017,5107153629,546.81,Abicare Services Ltd Homecare ,110031,SP2 ,Community Services,CTPLD Placements,Adult Domiciliary Care - Spot,Third Party Payments,REVENUE
Wiltshire,http://opendatacommunities.org/id/unitary-authority/wiltshire,21/12/2017,5107153754,549.31,Abicare Services Ltd Homecare ,110031,SP2 ,Community Services,MH OP West Locality,Adult Domiciliary Care - Spot Contribution,Income,REVENUE
Wiltshire,http://opendatacommunities.org/id/unitary-authority/wiltshire,07/12/2017,5107145787,856.67,Abicare Services Ltd Live in Care. ,113071,SP2 ,Community Services,Salisbury,Adult Domiciliary care - Live in contribution,Income,REVENUE
Wiltshire,http://opendatacommunities.org/id/unitary-authority/wiltshire,07/12/2017,5107145788,708.9,Abicare Services Ltd Live in Care. ,113071,SP2 ,Community Services,Southbroom,Adult Domiciliary care - Live in contribution,Income,REVENUE
Wiltshire,http://opendatacommunities.org/id/unitary-authority/wiltshire,07/12/2017,5107145789,826,Abicare Services Ltd Live in Care. ,113071,SP2 ,Community Services,BoA Cluster,Adult Domiciliary Care - Live in Care,Third Party Payments,REVENUE
Wiltshire,http://opendatacommunities.org/id/unitary-authority/wiltshire,07/12/2017,5107145790,870.1,Abicare Services Ltd Live in Care. ,113071,SP2 ,Community Services,Endless/St.A,Adult Domiciliary Care - Live in Care,Third Party Payments,REVENUE
Wiltshire,http://opendatacommunities.org/id/unitary-authority/wiltshire,07/12/2017,5107145791,1652,Abicare Services Ltd Live in Care. ,113071,SP2 ,Community Services,Avon,Adult Domiciliary Care - Live in Care,Third Party Payments,REVENUE
Wiltshire,http://opendatacommunities.org/id/unitary-authority/wiltshire,07/12/2017,5107145792,901.04,Abicare Services Ltd Live in Care. ,113071,SP2 ,Community Services,Marlborough,Adult Domiciliary Care - Live in Care,Third Party Payments,REVENUE
Wiltshire,http://opendatacommunities.org/id/unitary-authority/wiltshire,07/12/2017,5107145793,704.38,Abicare Services Ltd Live in Care. ,113071,SP2 ,Community Services,CTPLD Placements,Adult Domiciliary care - Live in contribution,Income,REVENUE
Wiltshire,http://opendatacommunities.org/id/unitary-authority/wiltshire,07/12/2017,5107145794,901.04,Abicare Services Ltd Live in Care. ,113071,SP2 ,Community Services,MH OP West Locality,Adult Domiciliary Care - Live in Care,Third Party Payments,REVENUE
Wiltshire,http://opendatacommunities.org/id/unitary-authority/wiltshire,07/12/2017,5107145795,901.04,Abicare Services Ltd Live in Care. ,113071,SP2 ,Community Services,South Locality 18+ C,Adult Domiciliary Care - Live in Care,Third Party Payments,REVENUE
Wiltshire,http://opendatacommunities.org/id/unitary-authority/wiltshire,07/12/2017,5107145796,1736.56,Abicare Services Ltd Live in Care. ,113071,SP2 ,Community Services,Adult Care Gross Loa,Adult Care Loans,Capital charges and Expenditure,REVENUE
Wiltshire,http://opendatacommunities.org/id/unitary-authority/wiltshire,12/12/2017,5107148360,855.61,Abicare Services Ltd Live in Care. ,113071,SP2 ,Community Services,South Locality 18+ C,Adult Domiciliary Care - Live in Care,Third Party Payments,REVENUE
Wiltshire,http://opendatacommunities.org/id/unitary-authority/wiltshire,12/12/2017,5107148361,794.49,Abicare Services Ltd Live in Care. ,113071,SP2 ,Community Services,South Locality 18+ C,Adult Domiciliary Care - Live in Care,Third Party Payments,REVENUE
Wiltshire,http://opendatacommunities.org/id/unitary-authority/wiltshire,12/12/2017,5107148362,855.61,Abicare Services Ltd Live in Care. ,113071,SP2 ,Community Services,South Locality 18+ C,Adult Domiciliary Care - Live in Care,Third Party Payments,REVENUE
Wiltshire,http://opendatacommunities.org/id/unitary-authority/wiltshire,12/12/2017,5107148363,855.61,Abicare Services Ltd Live in Care. ,113071,SP2 ,Community Services,South Locality 18+ C,Adult Domiciliary Care - Live in Care,Third Party Payments,REVENUE
Wiltshire,http://opendatacommunities.org/id/unitary-authority/wiltshire,12/12/2017,5107148364,855.61,Abicare Services Ltd Live in Care. ,113071,SP2 ,Community Services,South Locality 18+ C,Adult Domiciliary Care - Live in Care,Third Party Payments,REVENUE
Wiltshire,http://opendatacommunities.org/id/unitary-authority/wiltshire,14/12/2017,5107149684,1032.64,Abicare Services Ltd Live in Care. ,113071,SP2 ,Community Services,South Locality 18+ C,Adult Domiciliary Care - Live in Care,Third Party Payments,REVENUE
Wiltshire,http://opendatacommunities.org/id/unitary-authority/wiltshire,18/12/2017,5107151639,901.04,Abicare Services Ltd Live in Care. ,113071,SP2 ,Community Services,Marlborough,Adult Domiciliary Care - Live in Care,Third Party Payments,REVENUE
Wiltshire,http://opendatacommunities.org/id/unitary-authority/wiltshire,18/12/2017,5107151640,901.04,Abicare Services Ltd Live in Care. ,113071,SP2 ,Community Services,MH OP West Locality,Adult Domiciliary Care - Live in Care,Third Party Payments,REVENUE
Wiltshire,http://opendatacommunities.org/id/unitary-authority/wiltshire,18/12/2017,5107151641,743.16,Abicare Services Ltd Live in Care. ,113071,SP2 ,Community Services,Avon,Adult Domiciliary care - Live in contribution,Income,REVENUE
Wiltshire,http://opendatacommunities.org/id/unitary-authority/wiltshire,18/12/2017,5107151643,1736.56,Abicare Services Ltd Live in Care. ,113071,SP2 ,Community Services,Adult Care Gross Loa,Adult Care Loans,Capital charges and Expenditure,REVENUE
Wiltshire,http://opendatacommunities.org/id/unitary-authority/wiltshire,18/12/2017,5107151646,708.9,Abicare Services Ltd Live in Care. ,113071,SP2 ,Community Services,Southbroom,Adult Domiciliary care - Live in contribution,Income,REVENUE
Wiltshire,http://opendatacommunities.org/id/unitary-authority/wiltshire,18/12/2017,5107151647,856.67,Abicare Services Ltd Live in Care. ,113071,SP2 ,Community Services,Salisbury,Adult Domiciliary care - Live in contribution,Income,REVENUE
Wiltshire,http://opendatacommunities.org/id/unitary-authority/wiltshire,19/12/2017,5107151648,870.1,Abicare Services Ltd Live in Care. ,113071,SP2 ,Community Services,Endless/St.A,Adult Domiciliary Care - Live in Care,Third Party Payments,REVENUE
Wiltshire,http://opendatacommunities.org/id/unitary-authority/wiltshire,20/12/2017,5107151999,831.16,Abicare Services Ltd Live in Care. ,113071,SP2 ,Community Services,Avon,Adult Domiciliary care - Live in contribution,Income,REVENUE
Wiltshire,http://opendatacommunities.org/id/unitary-authority/wiltshire,20/12/2017,5107153390,1032.64,Abicare Services Ltd Live in Care. ,113071,SP2 ,Community Services,South Locality 18+ C,Adult Domiciliary Care - Live in Care,Third Party Payments,REVENUE
Wiltshire,http://opendatacommunities.org/id/unitary-authority/wiltshire,21/12/2017,5107153565,901.04,Abicare Services Ltd Live in Care. ,113071,SP2 ,Community Services,South Locality 18+ C,Adult Domiciliary Care - Live in Care,Third Party Payments,REVENUE
Wiltshire,http://opendatacommunities.org/id/unitary-authority/wiltshire,21/12/2017,5107153567,901.04,Abicare Services Ltd Live in Care. ,113071,SP2 ,Community Services,South Locality 18+ C,Adult Domiciliary Care - Live in Care,Third Party Payments,REVENUE
Wiltshire,http://opendatacommunities.org/id/unitary-authority/wiltshire,21/12/2017,5107153568,901.04,Abicare Services Ltd Live in Care. ,113071,SP2 ,Community Services,South Locality 18+ C,Adult Domiciliary Care - Live in Care,Third Party Payments,REVENUE
Wiltshire,http://opendatacommunities.org/id/unitary-authority/wiltshire,21/12/2017,5107153582,901.04,Abicare Services Ltd Live in Care. ,113071,SP2 ,Community Services,South Locality 18+ C,Adult Domiciliary Care - Live in Care,Third Party Payments,REVENUE
Wiltshire,http://opendatacommunities.org/id/unitary-authority/wiltshire,21/12/2017,5107153583,901.04,Abicare Services Ltd Live in Care. ,113071,SP2 ,Community Services,South Locality 18+ C,Adult Domiciliary Care - Live in Care,Third Party Payments,REVENUE
Wiltshire,http://opendatacommunities.org/id/unitary-authority/wiltshire,21/12/2017,5107153584,707.96,Abicare Services Ltd Live in Care. ,113071,SP2 ,Community Services,South Locality 18+ C,Adult Domiciliary Care - Live in Care,Third Party Payments,REVENUE
Wiltshire,http://opendatacommunities.org/id/unitary-authority/wiltshire,21/12/2017,5107153653,885.57,Abicare Services Ltd Live in Care. ,113071,SP2 ,Community Services,South Locality 18+ C,Adult Domiciliary Care - Live in Care,Third Party Payments,REVENUE
Wiltshire,http://opendatacommunities.org/id/unitary-authority/wiltshire,21/12/2017,5107153700,901.04,Abicare Services Ltd Live in Care. ,113071,SP2 ,Community Services,South Locality 18+ C,Adult Domiciliary Care - Live in Care,Third Party Payments,REVENUE
Wiltshire,http://opendatacommunities.org/id/unitary-authority/wiltshire,21/12/2017,5107153701,901.04,Abicare Services Ltd Live in Care. ,113071,SP2 ,Community Services,South Locality 18+ C,Adult Domiciliary Care - Live in Care,Third Party Payments,REVENUE
Wiltshire,http://opendatacommunities.org/id/unitary-authority/wiltshire,21/12/2017,5107153726,704.38,Abicare Services Ltd Live in Care. ,113071,SP2 ,Community Services,CTPLD Placements,Adult Domiciliary care - Live in contribution,Income,REVENUE
Wiltshire,http://opendatacommunities.org/id/unitary-authority/wiltshire,21/12/2017,5107153727,826,Abicare Services Ltd Live in Care. ,113071,SP2 ,Community Services,BoA Cluster,Adult Domiciliary Care - Live in Care,Third Party Payments,REVENUE
Wiltshire,http://opendatacommunities.org/id/unitary-authority/wiltshire,21/12/2017,5107153731,901.04,Abicare Services Ltd Live in Care. ,113071,SP2 ,Community Services,South Locality 18+ C,Adult Domiciliary Care - Live in Care,Third Party Payments,REVENUE
Wiltshire,http://opendatacommunities.org/id/unitary-authority/wiltshire,13/12/2017,5107149233,3779.8,Abingdon Court ,132515,OX14,Community Services,Marlborough,Adult Care Nursing Placements - Spot,Third Party Payments,REVENUE
Wiltshire,http://opendatacommunities.org/id/unitary-authority/wiltshire,13/12/2017,5107143803,436.88,ABLE ,101029,BA14,Community Services,MH AOWA N&E Locality,Supported Living,Third Party Payments,REVENUE
Wiltshire,http://opendatacommunities.org/id/unitary-authority/wiltshire,13/12/2017,5107143831,436.88,ABLE ,101029,BA14,Community Services,MH AOWA N&E Locality,Supported Living,Third Party Payments,REVENUE
Wiltshire,http://opendatacommunities.org/id/unitary-authority/wiltshire,13/12/2017,5107143834,436.88,ABLE ,101029,BA14,Community Services,MH AOWA N&E Locality,Supported Living,Third Party Payments,REVENUE
Wiltshire,http://opendatacommunities.org/id/unitary-authority/wiltshire,13/12/2017,5107143841,435.52,ABLE ,101029,BA14,Community Services,MH AOWA N&E Locality,Supported Living,Third Party Payments,REVENUE
Wiltshire,http://opendatacommunities.org/id/unitary-authority/wiltshire,13/12/2017,5107143885,436.88,ABLE ,101029,BA14,Community Services,MH AOWA N&E Locality,Supported Living,Third Party Payments,REVENUE
Wiltshire,http://opendatacommunities.org/id/unitary-authority/wiltshire,08/12/2017,5107146780,1169.23,ABLE ,101029,BA14,Community Services,MH Commissioned Cont,Grants Expenditure,Supplies and Services,REVENUE
Wiltshire,http://opendatacommunities.org/id/unitary-authority/wiltshire,08/12/2017,5107146781,1926.6,ABLE ,101029,BA14,Community Services,MH Commissioned Cont,Grants Expenditure,Supplies and Services,REVENUE
Wiltshire,http://opendatacommunities.org/id/unitary-authority/wiltshire,13/12/2017,5107146698,3120,ABLE ,110034,BA14,Community Services,MH OP West Locality,Adult Residential Placements - Spot Purchase,Third Party Payments,REVENUE
Wiltshire,http://opendatacommunities.org/id/unitary-authority/wiltshire,13/12/2017,5107147537,2830.96,ABLE ,110034,BA14,Community Services,MH AOWA West Localit,Adult Residential Placements - Spot Purchase,Third Party Payments,REVENUE
Wiltshire,http://opendatacommunities.org/id/unitary-authority/wiltshire,13/12/2017,5107147680,2904.4,ABLE ,110034,BA14,Community Services,MH AOWA N&E Locality,Adult Residential Placements - Spot Purchase,Third Party Payments,REVENUE
Wiltshire,http://opendatacommunities.org/id/unitary-authority/wiltshire,13/12/2017,5107147681,3472.08,ABLE ,110034,BA14,Community Services,MH AOWA N&E Locality,Adult Residential Placements - Spot Purchase,Third Party Payments,REVENUE
Wiltshire,http://opendatacommunities.org/id/unitary-authority/wiltshire,13/12/2017,5107148897,3400,ABLE ,110034,BA14,Community Services,MH AOWA West Localit,Adult Residential Placements - Spot Purchase,Third Party Payments,REVENUE
Wiltshire,http://opendatacommunities.org/id/unitary-authority/wiltshire,20/12/2017,5107151928,270,Able Hands Together CIC ,144783,SP11,Community Services,CTPLD Placements,Adult Day Care Contracts,Third Party Payments,REVENUE
Wiltshire,http://opendatacommunities.org/id/unitary-authority/wiltshire,20/12/2017,5107153403,270,Able Hands Together CIC ,144783,SP11,Community Services,CTPLD Placements,Adult Day Care Contracts,Third Party Payments,REVENUE
Wiltshire,http://opendatacommunities.org/id/unitary-authority/wiltshire,21/12/2017,5107153870,270,Able Hands Together CIC ,144783,SP11,Community Services,Avon,Adult Day Care Contracts,Third Party Payments,REVENUE
Wiltshire,http://opendatacommunities.org/id/unitary-authority/wiltshire,04/12/2017,5107143969,2813.44,Access Care Ltd ,110037,SP10,Community Services,Marlborough,Adult Domiciliary Care - Live in Care,Third Party Payments,REVENUE
Wiltshire,http://opendatacommunities.org/id/unitary-authority/wiltshire,14/12/2017,5107149742,285,Access Locks ,145593,BH12,Community Services,White Horse,Adult Domiciliary Care - Spot,Third Party Payments,REVENUE
Wiltshire,http://opendatacommunities.org/id/unitary-authority/wiltshire,15/12/2017,1902049907,1155,Ace Cabs ,139613,BA12,Neighbourhood & Planning,SEN 16+ Secondary,Transport Contracts,Third Party Payments,REVENUE
Wiltshire,http://opendatacommunities.org/id/unitary-authority/wiltshire,15/12/2017,1902049917,2574,Ace Cabs ,139613,BA12,Neighbourhood & Planning,SEN Secondary,Transport Contracts,Third Party Payments,REVENUE
Wiltshire,http://opendatacommunities.org/id/unitary-authority/wiltshire,19/12/2017,1902057285,1649.12,Ace Taxis Warminster Ace Taxis,131208,BA12,Neighbourhood & Planning,SEN Secondary,Transport Contracts,Third Party Payments,REVENUE
Wiltshire,http://opendatacommunities.org/id/unitary-authority/wiltshire,19/12/2017,1902057288,1429.56,Ace Taxis Warminster Ace Taxis,131208,BA12,Neighbourhood & Planning,Mainstream Secondary,Transport Contracts,Third Party Payments,REVENUE
Wiltshire,http://opendatacommunities.org/id/unitary-authority/wiltshire,19/12/2017,1902057290,320,Ace Taxis Warminster Ace Taxis,131208,BA12,Community Services,MH OP South Locality,Transport Contracts,Third Party Payments,REVENUE
Wiltshire,http://opendatacommunities.org/id/unitary-authority/wiltshire,19/12/2017,1902057291,1834.64,Ace Taxis Warminster Ace Taxis,131208,BA12,Neighbourhood & Planning,SEN Primary,Transport Contracts,Third Party Payments,REVENUE
Wiltshire,http://opendatacommunities.org/id/unitary-authority/wiltshire,19/12/2017,1902057293,1539.56,Ace Taxis Warminster Ace Taxis,131208,BA12,Neighbourhood & Planning,SEN Secondary,Transport Contracts,Third Party Payments,REVENUE
Wiltshire,http://opendatacommunities.org/id/unitary-authority/wiltshire,27/12/2017,5107150790,326.95,ACS Business Supplies ,141475,BD16,Resources,Infrastructure,IT Hardware Purchases,Supplies and Services,REVENUE
Wiltshire,http://opendatacommunities.org/id/unitary-authority/wiltshire,27/12/2017,5107150791,1876,ACS Business Supplies ,141475,BD16,Resources,Infrastructure,IT Hardware Purchases,Supplies and Services,REVENUE
Wiltshire,http://opendatacommunities.org/id/unitary-authority/wiltshire,15/12/2017,5107150760,15645,Action For Children ,110045,WD18,Children & Education,Family&Parenting Sup,Other Social & Welfare Costs,Third Party Payments,REVENUE
Wiltshire,http://opendatacommunities.org/id/unitary-authority/wiltshire,15/12/2017,5107150761,15645,Action For Children ,110045,WD18,Children & Education,Family&Parenting Sup,Other Social & Welfare Costs,Third Party Payments,REVENUE
Wiltshire,http://opendatacommunities.org/id/unitary-authority/wiltshire,01/12/2017,5107143524,4800,Action on Addiction ,110046,SP3 ,Community Services,(9)ResPlacementsPCT,Adult Residential Placements - Substance Misuse,Third Party Payments,REVENUE
Wiltshire,http://opendatacommunities.org/id/unitary-authority/wiltshire,01/12/2017,5107143525,4649,Action on Addiction ,110046,SP3 ,Community Services,(9)ResPlacementsPCT,Adult Residential Placements - Substance Misuse,Third Party Payments,REVENUE
Wiltshire,http://opendatacommunities.org/id/unitary-authority/wiltshire,01/12/2017,5107143560,2200.5,Action on Addiction ,110046,SP3 ,Community Services,(9)ResPlacementsPCT,Adult Residential Placements - Substance Misuse,Third Party Payments,REVENUE
Wiltshire,http://opendatacommunities.org/id/unitary-authority/wiltshire,01/12/2017,5107143560,2200.5,Action on Addiction ,110046,SP3 ,Community Services,(9)ResPlacementsCIC,Adult Residential Placements - Substance Misuse,Third Party Payments,REVENUE
Wiltshire,http://opendatacommunities.org/id/unitary-authority/wiltshire,05/12/2017,5107143993,1573.78,Action on Hearing Loss ,112215,N1 1,Community Services,Chippenham,Adult Day Care Contracts,Third Party Payments,REVENUE
Wiltshire,http://opendatacommunities.org/id/unitary-authority/wiltshire,05/12/2017,5107143994,1523.01,Action on Hearing Loss ,112215,N1 1,Community Services,Chippenham,Adult Day Care Contracts,Third Party Payments,REVENUE
Wiltshire,http://opendatacommunities.org/id/unitary-authority/wiltshire,05/12/2017,5107143996,1523.01,Action on Hearing Loss ,112215,N1 1,Community Services,Chippenham,Adult Day Care Contracts,Third Party Payments,REVENUE
Wiltshire,http://opendatacommunities.org/id/unitary-authority/wiltshire,05/12/2017,5107143997,1523.01,Action on Hearing Loss ,112215,N1 1,Community Services,Chippenham,Adult Domiciliary Care - Spot,Third Party Payments,REVENUE
Wiltshire,http://opendatacommunities.org/id/unitary-authority/wiltshire,05/12/2017,5107143998,1394.2,Action on Hearing Loss ,112215,N1 1,Community Services,Chippenham,Adult Domiciliary Care - Spot,Third Party Payments,REVENUE
Wiltshire,http://opendatacommunities.org/id/unitary-authority/wiltshire,13/12/2017,5107147109,5536.8,Action on Hearing Loss ,112215,N1 1,Community Services,Malmesbury,Adult Residential Placements - Spot Purchase,Third Party Payments,REVENUE
Wiltshire,http://opendatacommunities.org/id/unitary-authority/wiltshire,13/12/2017,5107147484,6403.36,Action on Hearing Loss ,112215,N1 1,Community Services,Orchard,Adult Residential Placements - Spot Purchase,Third Party Payments,REVENUE
Wiltshire,http://opendatacommunities.org/id/unitary-authority/wiltshire,13/12/2017,5107148103,3880.56,Action on Hearing Loss ,112215,N1 1,Community Services,Calne,Adult Residential Placements - Spot Purchase,Third Party Payments,REVENUE
Wiltshire,http://opendatacommunities.org/id/unitary-authority/wiltshire,12/12/2017,5107148266,510,Action on Hearing Loss ,112215,N1 1,Community Services,Corsh & Box,Supported Living,Third Party Payments,REVENUE
Wiltshire,http://opendatacommunities.org/id/unitary-authority/wiltshire,04/12/2017,5107140080,261.5,Adams Morey Ltd ,110053,SP2 ,Neighbourhood & Planning,Fleet,Vehicle Repairs & Maintenance,Transport Related,REVENUE
Wiltshire,http://opendatacommunities.org/id/unitary-authority/wiltshire,06/12/2017,5107140088,265,Adams Morey Ltd ,110053,SP2 ,Neighbourhood & Planning,Fleet,Vehicle Parts,Transport Related,REVENUE
Wiltshire,http://opendatacommunities.org/id/unitary-authority/wiltshire,15/12/2017,5107141734,366.83,Adams Morey Ltd ,110053,SP2 ,Neighbourhood & Planning,Fleet,Vehicle Parts,Transport Related,REVENUE
Wiltshire,http://opendatacommunities.org/id/unitary-authority/wiltshire,15/12/2017,5107141737,579.41,Adams Morey Ltd ,110053,SP2 ,Neighbourhood & Planning,Fleet,Vehicle Parts,Transport Related,REVENUE
Wiltshire,http://opendatacommunities.org/id/unitary-authority/wiltshire,15/12/2017,5107141738,1668.76,Adams Morey Ltd ,110053,SP2 ,Neighbourhood & Planning,Fleet,Vehicle Parts,Transport Related,REVENUE
Wiltshire,http://opendatacommunities.org/id/unitary-authority/wiltshire,21/12/2017,5107146040,480.7,Adams Morey Ltd ,110053,SP2 ,Neighbourhood & Planning,Fleet,Vehicle Parts,Transport Related,REVENUE
Wiltshire,http://opendatacommunities.org/id/unitary-authority/wiltshire,21/12/2017,5107146051,259.7,Adams Morey Ltd ,110053,SP2 ,Neighbourhood & Planning,Fleet,Vehicle Parts,Transport Related,REVENUE
Wiltshire,http://opendatacommunities.org/id/unitary-authority/wiltshire,21/12/2017,5107146052,261.13,Adams Morey Ltd ,110053,SP2 ,Neighbourhood & Planning,Fleet,Vehicle Parts,Transport Related,REVENUE
Wiltshire,http://opendatacommunities.org/id/unitary-authority/wiltshire,21/12/2017,5107153929,1500.82,Adams Morey Ltd ,110053,SP2 ,Neighbourhood & Planning,Fleet,Vehicle Parts,Transport Related,REVENUE
Wiltshire,http://opendatacommunities.org/id/unitary-authority/wiltshire,21/12/2017,5107153930,504.09,Adams Morey Ltd ,110053,SP2 ,Neighbourhood & Planning,Fleet,Vehicle Parts,Transport Related,REVENUE
Wiltshire,http://opendatacommunities.org/id/unitary-authority/wiltshire,21/12/2017,5107153931,376,Adams Morey Ltd ,110053,SP2 ,Neighbourhood & Planning,Fleet,Vehicle Parts,Transport Related,REVENUE
Wiltshire,http://opendatacommunities.org/id/unitary-authority/wiltshire,18/12/2017,5107150814,2500,Adjacent Digital Politics Ltd ,145990,CW1 ,Neighbourhood & Planning,Swindon & Wilts LEP,Marketing and Promotions,Supplies and Services,REVENUE
Wiltshire,http://opendatacommunities.org/id/unitary-authority/wiltshire,18/12/2017,1902051080,1485.95,Adrains Engineering Psv ,100848,SN15,Neighbourhood & Planning,Mainstream Secondary,Transport Contracts,Third Party Payments,REVENUE
Wiltshire,http://opendatacommunities.org/id/unitary-authority/wiltshire,18/12/2017,1902051081,2990.76,Adrains Engineering Psv ,100848,SN15,Neighbourhood & Planning,Mainstream Secondary,Transport Contracts,Third Party Payments,REVENUE
Wiltshire,http://opendatacommunities.org/id/unitary-authority/wiltshire,18/12/2017,1902051082,2769.27,Adrains Engineering Psv ,100848,SN15,Neighbourhood & Planning,Mainstream Secondary,Transport Contracts,Third Party Payments,REVENUE
Wiltshire,http://opendatacommunities.org/id/unitary-authority/wiltshire,18/12/2017,1902051083,3968.3,Adrains Engineering Psv ,100848,SN15,Neighbourhood & Planning,Mainstream Secondary,Transport Contracts,Third Party Payments,REVENUE
Wiltshire,http://opendatacommunities.org/id/unitary-authority/wiltshire,18/12/2017,1902051084,3035.09,Adrains Engineering Psv ,100848,SN15,Neighbourhood & Planning,Mainstream Primary,Transport Contracts,Third Party Payments,REVENUE
Wiltshire,http://opendatacommunities.org/id/unitary-authority/wiltshire,18/12/2017,1902051085,2919.35,Adrains Engineering Psv ,100848,SN15,Neighbourhood & Planning,Mainstream Secondary,Transport Contracts,Third Party Payments,REVENUE
Wiltshire,http://opendatacommunities.org/id/unitary-authority/wiltshire,18/12/2017,1902051086,2909.8,Adrains Engineering Psv ,100848,SN15,Neighbourhood & Planning,Mainstream Secondary,Transport Contracts,Third Party Payments,REVENUE
Wiltshire,http://opendatacommunities.org/id/unitary-authority/wiltshire,18/12/2017,1902051087,428.62,Adrains Engineering Psv ,100848,SN15,Neighbourhood & Planning,Public Transport,Transport Contracts,Third Party Payments,REVENUE
Wiltshire,http://opendatacommunities.org/id/unitary-authority/wiltshire,18/12/2017,1902051087,3333.33,Adrains Engineering Psv ,100848,SN15,Neighbourhood & Planning,Mainstream Primary,Transport Contracts,Third Party Payments,REVENUE
Wiltshire,http://opendatacommunities.org/id/unitary-authority/wiltshire,18/12/2017,1902051088,3333.33,Adrains Engineering Psv ,100848,SN15,Neighbourhood & Planning,Mainstream Secondary,Transport Contracts,Third Party Payments,REVENUE
Wiltshire,http://opendatacommunities.org/id/unitary-authority/wiltshire,18/12/2017,1902051088,3447.82,Adrains Engineering Psv ,100848,SN15,Neighbourhood & Planning,Public Transport,Transport Contracts,Third Party Payments,REVENUE
Wiltshire,http://opendatacommunities.org/id/unitary-authority/wiltshire,18/12/2017,1902051091,3302.75,Adrains Engineering Psv ,100848,SN15,Neighbourhood & Planning,Mainstream Secondary,Transport Contracts,Third Party Payments,REVENUE
Wiltshire,http://opendatacommunities.org/id/unitary-authority/wiltshire,19/12/2017,1902057286,489.5,Adrian's Taxi ,138861,SN10,Neighbourhood & Planning,Mainstream Secondary,Transport Contracts,Third Party Payments,REVENUE
Wiltshire,http://opendatacommunities.org/id/unitary-authority/wiltshire,19/12/2017,1902057286,1468.5,Adrian's Taxi ,138861,SN10,Neighbourhood & Planning,SEN Primary,Transport Contracts,Third Party Payments,REVENUE
Wiltshire,http://opendatacommunities.org/id/unitary-authority/wiltshire,19/12/2017,1902057289,442.8,Adrian's Taxi ,138861,SN10,Neighbourhood & Planning,Mainstream Secondary,Transport Contracts,Third Party Payments,REVENUE
Wiltshire,http://opendatacommunities.org/id/unitary-authority/wiltshire,19/12/2017,1902057289,442.8,Adrian's Taxi ,138861,SN10,Neighbourhood & Planning,SEN Primary,Transport Contracts,Third Party Payments,REVENUE
Wiltshire,http://opendatacommunities.org/id/unitary-authority/wiltshire,19/12/2017,1902057289,442.8,Adrian's Taxi ,138861,SN10,Neighbourhood & Planning,SEN Secondary,Transport Contracts,Third Party Payments,REVENUE
Wiltshire,http://opendatacommunities.org/id/unitary-authority/wiltshire,12/12/2017,1902048479,5326.03,Advance Housing  and  Support Ltd ,110060,OX28,Neighbourhood & Planning,Hsg Strat & Enabling,Other Contracts,Third Party Payments,REVENUE
Wiltshire,http://opendatacommunities.org/id/unitary-authority/wiltshire,04/12/2017,1902044624,732.6,Ady Cars ,136208,SP11,Neighbourhood & Planning,SEN Secondary,Transport Contracts,Third Party Payments,REVENUE
Wiltshire,http://opendatacommunities.org/id/unitary-authority/wiltshire,15/12/2017,5107151333,2011,AECOM Ltd ,127871,SW19,Wiltshire Council,Wiltshire Council,Consultants Fees,Supplies and Services,CAPITAL
Wiltshire,http://opendatacommunities.org/id/unitary-authority/wiltshire,15/12/2017,5107151334,2500,AECOM Ltd ,127871,SW19,Wiltshire Council,Wiltshire Council,Consultants Fees,Supplies and Services,CAPITAL
Wiltshire,http://opendatacommunities.org/id/unitary-authority/wiltshire,15/12/2017,5107151335,2000,AECOM Ltd ,127871,SW19,Wiltshire Council,Wiltshire Council,Consultants Fees,Supplies and Services,CAPITAL
Wiltshire,http://opendatacommunities.org/id/unitary-authority/wiltshire,15/12/2017,5107151336,2000,AECOM Ltd ,127871,SW19,Wiltshire Council,Wiltshire Council,Consultants Fees,Supplies and Services,CAPITAL
Wiltshire,http://opendatacommunities.org/id/unitary-authority/wiltshire,15/12/2017,5107151337,1000,AECOM Ltd ,127871,SW19,Wiltshire Council,Wiltshire Council,Consultants Fees,Supplies and Services,CAPITAL
Wiltshire,http://opendatacommunities.org/id/unitary-authority/wiltshire,15/12/2017,5107151338,3500,AECOM Ltd ,127871,SW19,Wiltshire Council,Wiltshire Council,Consultants Fees,Supplies and Services,CAPITAL
Wiltshire,http://opendatacommunities.org/id/unitary-authority/wiltshire,14/12/2017,5107143175,1192.5,Aerian Studios ,113351,SN13,Resources,News & Information,Marketing and Promotions,Supplies and Services,REVENUE
Wiltshire,http://opendatacommunities.org/id/unitary-authority/wiltshire,01/12/2017,5107143574,650,Aerian Studios ,113351,SN13,Resources,News & Information,Marketing and Promotions,Supplies and Services,REVENUE
Wiltshire,http://opendatacommunities.org/id/unitary-authority/wiltshire,20/12/2017,1902044352,500,Age UK Wiltshire ,100129,SN10,Community Services,Area Board Melksham,Area Board Grants,Supplies and Services,REVENUE
Wiltshire,http://opendatacommunities.org/id/unitary-authority/wiltshire,11/12/2017,5107146900,339.3,AginCare Live In Care Services Ltd ,110071,DT5 ,Community Services,South Locality 18+ C,Adult Domiciliary Care - Live in Care,Third Party Payments,REVENUE
Wiltshire,http://opendatacommunities.org/id/unitary-authority/wiltshire,11/12/2017,5107146902,1676.86,AginCare Live In Care Services Ltd ,110071,DT5 ,Community Services,Avon,Adult Domiciliary care - Live in contribution,Income,REVENUE
Wiltshire,http://opendatacommunities.org/id/unitary-authority/wiltshire,21/12/2017,5107153734,950.04,AginCare Live In Care Services Ltd ,110071,DT5 ,Community Services,South Locality 18+ C,Adult Domiciliary Care - Live in Care,Third Party Payments,REVENUE
Wiltshire,http://opendatacommunities.org/id/unitary-authority/wiltshire,21/12/2017,5107153735,1656.74,AginCare Live In Care Services Ltd ,110071,DT5 ,Community Services,Malmesbury,Adult Domiciliary care - Live in contribution,Income,REVENUE
Wiltshire,http://opendatacommunities.org/id/unitary-authority/wiltshire,21/12/2017,5107153736,1750,AginCare Live In Care Services Ltd ,110071,DT5 ,Community Services,Malmesbury,Adult Domiciliary Care - Live in Care,Third Party Payments,REVENUE
Wiltshire,http://opendatacommunities.org/id/unitary-authority/wiltshire,21/12/2017,5107153737,1540.7,AginCare Live In Care Services Ltd ,110071,DT5 ,Community Services,Lovemd/Wid,Adult Domiciliary Care - Live in Care,Third Party Payments,REVENUE
Wiltshire,http://opendatacommunities.org/id/unitary-authority/wiltshire,21/12/2017,5107153738,1751.32,AginCare Live In Care Services Ltd ,110071,DT5 ,Community Services,Marlborough,Adult Domiciliary care - Live in contribution,Income,REVENUE
Wiltshire,http://opendatacommunities.org/id/unitary-authority/wiltshire,21/12/2017,5107153782,1676.86,AginCare Live In Care Services Ltd ,110071,DT5 ,Community Services,Avon,Adult Domiciliary care - Live in contribution,Income,REVENUE
Wiltshire,http://opendatacommunities.org/id/unitary-authority/wiltshire,13/12/2017,5107148533,358.22,Agincare Ltd ,110069,DT5 ,Community Services,Chippenham,Adult Domiciliary Care - Spot Contribution,Income,REVENUE
Wiltshire,http://opendatacommunities.org/id/unitary-authority/wiltshire,13/12/2017,5107148535,610.72,Agincare Ltd ,110069,DT5 ,Community Services,Chippenham,Adult Domiciliary Care - Spot Contribution,Income,REVENUE
Wiltshire,http://opendatacommunities.org/id/unitary-authority/wiltshire,13/12/2017,5107148536,1000.64,Agincare Ltd ,110069,DT5 ,Community Services,Chippenham,Adult Domiciliary Care - Spot Contribution,Income,REVENUE
Wiltshire,http://opendatacommunities.org/id/unitary-authority/wiltshire,13/12/2017,5107148537,667.25,Agincare Ltd ,110069,DT5 ,Community Services,Chippenham,Adult Domiciliary Care - Spot,Third Party Payments,REVENUE
Wiltshire,http://opendatacommunities.org/id/unitary-authority/wiltshire,13/12/2017,5107148538,1428,Agincare Ltd ,110069,DT5 ,Community Services,Calne,Adult Domiciliary Care - Spot,Third Party Payments,REVENUE
Wiltshire,http://opendatacommunities.org/id/unitary-authority/wiltshire,13/12/2017,5107148539,1054,Agincare Ltd ,110069,DT5 ,Community Services,Calne,Adult Domiciliary Care - Spot,Third Party Payments,REVENUE
Wiltshire,http://opendatacommunities.org/id/unitary-authority/wiltshire,13/12/2017,5107149550,1666,Agincare Ltd ,110069,DT5 ,Community Services,Corsh & Box,Adult Domiciliary Care - Spot,Third Party Payments,REVENUE
Wiltshire,http://opendatacommunities.org/id/unitary-authority/wiltshire,13/12/2017,5107149551,2248.54,Agincare Ltd ,110069,DT5 ,Community Services,Chippenham,Adult Domiciliary Care - Spot Contribution,Income,REVENUE
Wiltshire,http://opendatacommunities.org/id/unitary-authority/wiltshire,14/12/2017,5107149574,595,Agincare Ltd ,110069,DT5 ,Community Services,MH AOWA N&E Locality,Adult Domiciliary Care - Spot,Third Party Payments,REVENUE
Wiltshire,http://opendatacommunities.org/id/unitary-authority/wiltshire,14/12/2017,5107149575,408,Agincare Ltd ,110069,DT5 ,Community Services,Chippenham,Adult Domiciliary Care - Spot,Third Party Payments,REVENUE
Wiltshire,http://opendatacommunities.org/id/unitary-authority/wiltshire,14/12/2017,5107149605,680,Agincare Ltd ,110069,DT5 ,Community Services,Chippenham,Adult Domiciliary Care - Spot,Third Party Payments,REVENUE
Wiltshire,http://opendatacommunities.org/id/unitary-authority/wiltshire,14/12/2017,5107149606,1194.25,Agincare Ltd ,110069,DT5 ,Community Services,Chippenham,Adult Domiciliary Care - Spot,Third Party Payments,REVENUE
Wiltshire,http://opendatacommunities.org/id/unitary-authority/wiltshire,14/12/2017,5107149610,696.48,Agincare Ltd ,110069,DT5 ,Community Services,Chippenham,Adult Domiciliary Care - Spot,Third Party Payments,REVENUE
Wiltshire,http://opendatacommunities.org/id/unitary-authority/wiltshire,14/12/2017,5107149646,429.24,Agincare Ltd ,110069,DT5 ,Community Services,Chippenham,Adult Domiciliary Care - Spot Contribution,Income,REVENUE
Wiltshire,http://opendatacommunities.org/id/unitary-authority/wiltshire,27/12/2017,5107151850,1400,Aid Training  and  Operations Ltd ,110075,BA12,Children & Education,ExtPDTCourse,Consultants Fees,Supplies and Services,REVENUE
Wiltshire,http://opendatacommunities.org/id/unitary-authority/wiltshire,07/12/2017,1902046010,2226,Akcess Ltd ,101402,SN2 ,Neighbourhood & Planning,Mainstream Secondary,Transport Contracts,Third Party Payments,REVENUE
Wiltshire,http://opendatacommunities.org/id/unitary-authority/wiltshire,07/12/2017,1902046012,912.82,Akcess Ltd ,101402,SN2 ,Neighbourhood & Planning,SEN Primary,Transport Contracts,Third Party Payments,REVENUE
Wiltshire,http://opendatacommunities.org/id/unitary-authority/wiltshire,07/12/2017,1902046012,2079.18,Akcess Ltd ,101402,SN2 ,Neighbourhood & Planning,SEN Secondary,Transport Contracts,Third Party Payments,REVENUE
Wiltshire,http://opendatacommunities.org/id/unitary-authority/wiltshire,07/12/2017,1902046015,3255,Akcess Ltd ,101402,SN2 ,Neighbourhood & Planning,SEN Secondary,Transport Contracts,Third Party Payments,REVENUE
Wiltshire,http://opendatacommunities.org/id/unitary-authority/wiltshire,07/12/2017,1902046017,2625,Akcess Ltd ,101402,SN2 ,Neighbourhood & Planning,SEN Secondary,Transport Contracts,Third Party Payments,REVENUE
Wiltshire,http://opendatacommunities.org/id/unitary-authority/wiltshire,07/12/2017,1902046018,1563.1,Akcess Ltd ,101402,SN2 ,Neighbourhood & Planning,SEN 16+ Secondary,Transport Contracts,Third Party Payments,REVENUE
Wiltshire,http://opendatacommunities.org/id/unitary-authority/wiltshire,07/12/2017,1902046020,2218.7,Akcess Ltd ,101402,SN2 ,Neighbourhood & Planning,Mainstream Primary,Transport Contracts,Third Party Payments,REVENUE
Wiltshire,http://opendatacommunities.org/id/unitary-authority/wiltshire,07/12/2017,1902046021,4463.14,Akcess Ltd ,101402,SN2 ,Neighbourhood & Planning,SEN Secondary,Transport Contracts,Third Party Payments,REVENUE
Wiltshire,http://opendatacommunities.org/id/unitary-authority/wiltshire,07/12/2017,1902046022,696.2,Akcess Ltd ,101402,SN2 ,Neighbourhood & Planning,Mainstream Secondary,Transport Contracts,Third Party Payments,REVENUE
Wiltshire,http://opendatacommunities.org/id/unitary-authority/wiltshire,07/12/2017,1902046022,2341.78,Akcess Ltd ,101402,SN2 ,Neighbourhood & Planning,SEN Secondary,Transport Contracts,Third Party Payments,REVENUE
Wiltshire,http://opendatacommunities.org/id/unitary-authority/wiltshire,07/12/2017,1902046023,2332,Akcess Ltd ,101402,SN2 ,Neighbourhood & Planning,Mainstream Secondary,Transport Contracts,Third Party Payments,REVENUE
Wiltshire,http://opendatacommunities.org/id/unitary-authority/wiltshire,07/12/2017,1902046024,480.84,Akcess Ltd ,101402,SN2 ,Neighbourhood & Planning,SEN 16+ Secondary,Transport Contracts,Third Party Payments,REVENUE
Wiltshire,http://opendatacommunities.org/id/unitary-authority/wiltshire,07/12/2017,1902046024,568.29,Akcess Ltd ,101402,SN2 ,Neighbourhood & Planning,SEN Secondary,Transport Contracts,Third Party Payments,REVENUE
Wiltshire,http://opendatacommunities.org/id/unitary-authority/wiltshire,07/12/2017,1902046024,2316.87,Akcess Ltd ,101402,SN2 ,Neighbourhood & Planning,SEN Primary,Transport Contracts,Third Party Payments,REVENUE
Wiltshire,http://opendatacommunities.org/id/unitary-authority/wiltshire,07/12/2017,1902046025,1140.33,Akcess Ltd ,101402,SN2 ,Neighbourhood & Planning,SEN Secondary,Transport Contracts,Third Party Payments,REVENUE
Wiltshire,http://opendatacommunities.org/id/unitary-authority/wiltshire,07/12/2017,1902046025,1140.33,Akcess Ltd ,101402,SN2 ,Neighbourhood & Planning,SEN 16+ Secondary,Transport Contracts,Third Party Payments,REVENUE
Wiltshire,http://opendatacommunities.org/id/unitary-authority/wiltshire,07/12/2017,1902046025,1140.34,Akcess Ltd ,101402,SN2 ,Neighbourhood & Planning,SEN Primary,Transport Contracts,Third Party Payments,REVENUE
Wiltshire,http://opendatacommunities.org/id/unitary-authority/wiltshire,07/12/2017,1902046026,1113.2,Akcess Ltd ,101402,SN2 ,Neighbourhood & Planning,SEN 16+ Secondary,Transport Contracts,Third Party Payments,REVENUE
Wiltshire,http://opendatacommunities.org/id/unitary-authority/wiltshire,07/12/2017,1902046026,2226.4,Akcess Ltd ,101402,SN2 ,Neighbourhood & Planning,SEN Secondary,Transport Contracts,Third Party Payments,REVENUE
Wiltshire,http://opendatacommunities.org/id/unitary-authority/wiltshire,07/12/2017,1902046027,485.25,Akcess Ltd ,101402,SN2 ,Neighbourhood & Planning,SEN Secondary,Transport Contracts,Third Party Payments,REVENUE
Wiltshire,http://opendatacommunities.org/id/unitary-authority/wiltshire,07/12/2017,1902046027,2514.45,Akcess Ltd ,101402,SN2 ,Neighbourhood & Planning,SEN Primary,Transport Contracts,Third Party Payments,REVENUE
Wiltshire,http://opendatacommunities.org/id/unitary-authority/wiltshire,07/12/2017,1902046028,1925,Akcess Ltd ,101402,SN2 ,Neighbourhood & Planning,Mainstream Primary,Transport Contracts,Third Party Payments,REVENUE
Wiltshire,http://opendatacommunities.org/id/unitary-authority/wiltshire,07/12/2017,1902046029,1969,Akcess Ltd ,101402,SN2 ,Neighbourhood & Planning,Mainstream Primary,Transport Contracts,Third Party Payments,REVENUE
Wiltshire,http://opendatacommunities.org/id/unitary-authority/wiltshire,07/12/2017,1902046030,898.86,Akcess Ltd ,101402,SN2 ,Neighbourhood & Planning,Mainstream Secondary,Transport Contracts,Third Party Payments,REVENUE
Wiltshire,http://opendatacommunities.org/id/unitary-authority/wiltshire,07/12/2017,1902046031,2684,Akcess Ltd ,101402,SN2 ,Neighbourhood & Planning,SEN Primary,Transport Contracts,Third Party Payments,REVENUE
Wiltshire,http://opendatacommunities.org/id/unitary-authority/wiltshire,07/12/2017,1902046032,1682.45,Akcess Ltd ,101402,SN2 ,Neighbourhood & Planning,Mainstream Secondary,Transport Contracts,Third Party Payments,REVENUE
Wiltshire,http://opendatacommunities.org/id/unitary-authority/wiltshire,07/12/2017,1902046033,444,Akcess Ltd ,101402,SN2 ,Neighbourhood & Planning,SEN Rechargable Exp,Transport Contracts,Third Party Payments,REVENUE
Wiltshire,http://opendatacommunities.org/id/unitary-authority/wiltshire,07/12/2017,1902046033,11960.39,Akcess Ltd ,101402,SN2 ,Neighbourhood & Planning,SEN Secondary,Transport Contracts,Third Party Payments,REVENUE
Wiltshire,http://opendatacommunities.org/id/unitary-authority/wiltshire,07/12/2017,1902046033,11960.39,Akcess Ltd ,101402,SN2 ,Neighbourhood & Planning,SEN 16+ Secondary,Transport Contracts,Third Party Payments,REVENUE
Wiltshire,http://opendatacommunities.org/id/unitary-authority/wiltshire,07/12/2017,1902046033,15947.2,Akcess Ltd ,101402,SN2 ,Neighbourhood & Planning,SEN Primary,Transport Contracts,Third Party Payments,REVENUE
Wiltshire,http://opendatacommunities.org/id/unitary-authority/wiltshire,07/12/2017,1902046034,2860,Akcess Ltd ,101402,SN2 ,Neighbourhood & Planning,Mainstream Primary,Transport Contracts,Third Party Payments,REVENUE
Wiltshire,http://opendatacommunities.org/id/unitary-authority/wiltshire,07/12/2017,1902046035,1022.25,Akcess Ltd ,101402,SN2 ,Neighbourhood & Planning,Mainstream Primary,Transport Contracts,Third Party Payments,REVENUE
Wiltshire,http://opendatacommunities.org/id/unitary-authority/wiltshire,07/12/2017,1902046036,1022.25,Akcess Ltd ,101402,SN2 ,Neighbourhood & Planning,Mainstream Primary,Transport Contracts,Third Party Payments,REVENUE
Wiltshire,http://opendatacommunities.org/id/unitary-authority/wiltshire,07/12/2017,1902046037,2052.8,Akcess Ltd ,101402,SN2 ,Neighbourhood & Planning,Mainstream Secondary,Transport Contracts,Third Party Payments,REVENUE
Wiltshire,http://opendatacommunities.org/id/unitary-authority/wiltshire,07/12/2017,1902046038,1849.97,Akcess Ltd ,101402,SN2 ,Neighbourhood & Planning,Mainstream Primary,Transport Contracts,Third Party Payments,REVENUE
Wiltshire,http://opendatacommunities.org/id/unitary-authority/wiltshire,07/12/2017,1902046039,1996.39,Akcess Ltd ,101402,SN2 ,Neighbourhood & Planning,Mainstream Secondary,Transport Contracts,Third Party Payments,REVENUE
Wiltshire,http://opendatacommunities.org/id/unitary-authority/wiltshire,07/12/2017,1902046040,2939.28,Akcess Ltd ,101402,SN2 ,Neighbourhood & Planning,Mainstream Secondary,Transport Contracts,Third Party Payments,REVENUE
Wiltshire,http://opendatacommunities.org/id/unitary-authority/wiltshire,07/12/2017,1902046041,1564.33,Akcess Ltd ,101402,SN2 ,Neighbourhood & Planning,Mainstream Secondary,Transport Contracts,Third Party Payments,REVENUE
Wiltshire,http://opendatacommunities.org/id/unitary-authority/wiltshire,07/12/2017,1902046042,1332.97,Akcess Ltd ,101402,SN2 ,Neighbourhood & Planning,Mainstream Secondary,Transport Contracts,Third Party Payments,REVENUE
Wiltshire,http://opendatacommunities.org/id/unitary-authority/wiltshire,07/12/2017,1902046043,1833.17,Akcess Ltd ,101402,SN2 ,Neighbourhood & Planning,Mainstream Primary,Transport Contracts,Third Party Payments,REVENUE
Wiltshire,http://opendatacommunities.org/id/unitary-authority/wiltshire,07/12/2017,1902046044,933.33,Akcess Ltd ,101402,SN2 ,Neighbourhood & Planning,Mainstream Primary,Transport Contracts,Third Party Payments,REVENUE
Wiltshire,http://opendatacommunities.org/id/unitary-authority/wiltshire,07/12/2017,1902046044,1733.34,Akcess Ltd ,101402,SN2 ,Neighbourhood & Planning,Mainstream Secondary,Transport Contracts,Third Party Payments,REVENUE
Wiltshire,http://opendatacommunities.org/id/unitary-authority/wiltshire,07/12/2017,1902046045,2166.67,Akcess Ltd ,101402,SN2 ,Neighbourhood & Planning,Mainstream Primary,Transport Contracts,Third Party Payments,REVENUE
Wiltshire,http://opendatacommunities.org/id/unitary-authority/wiltshire,07/12/2017,1902046046,299.08,Akcess Ltd ,101402,SN2 ,Community Services,West Locality 18+ Ca,Transport Contracts,Third Party Payments,REVENUE
Wiltshire,http://opendatacommunities.org/id/unitary-authority/wiltshire,07/12/2017,1902046046,672.92,Akcess Ltd ,101402,SN2 ,Community Services,N&E Localiity 18+ C,Transport Contracts,Third Party Payments,REVENUE
Wiltshire,http://opendatacommunities.org/id/unitary-authority/wiltshire,07/12/2017,1902046047,1607.94,Akcess Ltd ,101402,SN2 ,Neighbourhood & Planning,Mainstream Primary,Transport Contracts,Third Party Payments,REVENUE
Wiltshire,http://opendatacommunities.org/id/unitary-authority/wiltshire,07/12/2017,1902046048,1338.6,Akcess Ltd ,101402,SN2 ,Neighbourhood & Planning,Mainstream Secondary,Transport Contracts,Third Party Payments,REVENUE
Wiltshire,http://opendatacommunities.org/id/unitary-authority/wiltshire,07/12/2017,1902046049,785.6,Akcess Ltd ,101402,SN2 ,Neighbourhood & Planning,Mainstream Secondary,Transport Contracts,Third Party Payments,REVENUE
Wiltshire,http://opendatacommunities.org/id/unitary-authority/wiltshire,07/12/2017,1902046049,1122.4,Akcess Ltd ,101402,SN2 ,Neighbourhood & Planning,Mainstream Primary,Transport Contracts,Third Party Payments,REVENUE
Wiltshire,http://opendatacommunities.org/id/unitary-authority/wiltshire,21/12/2017,1902058707,360,Akcess Ltd ,101402,SN2 ,Neighbourhood & Planning,Public Transport,Transport Contracts,Third Party Payments,REVENUE
Wiltshire,http://opendatacommunities.org/id/unitary-authority/wiltshire,21/12/2017,1902058708,528,Akcess Ltd ,101402,SN2 ,Neighbourhood & Planning,Public Transport,Transport Contracts,Third Party Payments,REVENUE
Wiltshire,http://opendatacommunities.org/id/unitary-authority/wiltshire,12/12/2017,1902048466,1280.91,Alabare Christian Care Centre ,100837,SP2 ,Neighbourhood & Planning,Hsg Strat & Enabling,Other Contracts,Third Party Payments,REVENUE
Wiltshire,http://opendatacommunities.org/id/unitary-authority/wiltshire,12/12/2017,1902048468,1709.76,Alabare Christian Care Centre ,100837,SP2 ,Neighbourhood & Planning,Hsg Strat & Enabling,Other Contracts,Third Party Payments,REVENUE
Wiltshire,http://opendatacommunities.org/id/unitary-authority/wiltshire,12/12/2017,1902048473,2436.66,Alabare Christian Care Centre ,100837,SP2 ,Neighbourhood & Planning,Hsg Strat & Enabling,Other Contracts,Third Party Payments,REVENUE
Wiltshire,http://opendatacommunities.org/id/unitary-authority/wiltshire,12/12/2017,1902048476,3114.93,Alabare Christian Care Centre ,100837,SP2 ,Neighbourhood & Planning,Hsg Strat & Enabling,Other Contracts,Third Party Payments,REVENUE
Wiltshire,http://opendatacommunities.org/id/unitary-authority/wiltshire,12/12/2017,1902048477,3388.68,Alabare Christian Care Centre ,100837,SP2 ,Neighbourhood & Planning,Hsg Strat & Enabling,Other Contracts,Third Party Payments,REVENUE
Wiltshire,http://opendatacommunities.org/id/unitary-authority/wiltshire,12/12/2017,1902048483,8245.56,Alabare Christian Care Centre ,100837,SP2 ,Neighbourhood & Planning,Hsg Strat & Enabling,Other Contracts,Third Party Payments,REVENUE
Wiltshire,http://opendatacommunities.org/id/unitary-authority/wiltshire,12/12/2017,1902048488,21802.76,Alabare Christian Care Centre ,100837,SP2 ,Neighbourhood & Planning,Hsg Strat & Enabling,Other Contracts,Third Party Payments,REVENUE
Wiltshire,http://opendatacommunities.org/id/unitary-authority/wiltshire,01/12/2017,5107143650,342,Alabare Christian Care Centre ,100837,SP2 ,Community Services,CTPLD Placements,Adult Day Care Contracts,Third Party Payments,REVENUE
Wiltshire,http://opendatacommunities.org/id/unitary-authority/wiltshire,01/12/2017,5107143651,342,Alabare Christian Care Centre ,100837,SP2 ,Community Services,CTPLD Placements,Adult Day Care Contracts,Third Party Payments,REVENUE
Wiltshire,http://opendatacommunities.org/id/unitary-authority/wiltshire,01/12/2017,5107143652,342,Alabare Christian Care Centre ,100837,SP2 ,Community Services,CTPLD Placements,Adult Day Care Contracts,Third Party Payments,REVENUE
Wiltshire,http://opendatacommunities.org/id/unitary-authority/wiltshire,01/12/2017,5107143653,304,Alabare Christian Care Centre ,100837,SP2 ,Community Services,CTPLD Placements,Adult Day Care Contracts,Third Party Payments,REVENUE
Wiltshire,http://opendatacommunities.org/id/unitary-authority/wiltshire,01/12/2017,5107143654,342,Alabare Christian Care Centre ,100837,SP2 ,Community Services,CTPLD Placements,Adult Day Care Contracts,Third Party Payments,REVENUE
Wiltshire,http://opendatacommunities.org/id/unitary-authority/wiltshire,01/12/2017,5107143655,342,Alabare Christian Care Centre ,100837,SP2 ,Community Services,CTPLD Placements,Adult Day Care Contracts,Third Party Payments,REVENUE
Wiltshire,http://opendatacommunities.org/id/unitary-authority/wiltshire,01/12/2017,5107143656,380,Alabare Christian Care Centre ,100837,SP2 ,Community Services,CTPLD Placements,Adult Day Care Contracts,Third Party Payments,REVENUE
Wiltshire,http://opendatacommunities.org/id/unitary-authority/wiltshire,01/12/2017,5107143657,342,Alabare Christian Care Centre ,100837,SP2 ,Community Services,CTPLD Placements,Adult Day Care Contracts,Third Party Payments,REVENUE
Wiltshire,http://opendatacommunities.org/id/unitary-authority/wiltshire,01/12/2017,5107143658,684,Alabare Christian Care Centre ,100837,SP2 ,Community Services,CTPLD Placements,Adult Day Care Contracts,Third Party Payments,REVENUE
Wiltshire,http://opendatacommunities.org/id/unitary-authority/wiltshire,01/12/2017,5107143659,304,Alabare Christian Care Centre ,100837,SP2 ,Community Services,CTPLD Placements,Adult Day Care Contracts,Third Party Payments,REVENUE
Wiltshire,http://opendatacommunities.org/id/unitary-authority/wiltshire,01/12/2017,5107143660,342,Alabare Christian Care Centre ,100837,SP2 ,Community Services,CTPLD Placements,Adult Day Care Contracts,Third Party Payments,REVENUE
Wiltshire,http://opendatacommunities.org/id/unitary-authority/wiltshire,01/12/2017,5107143662,304,Alabare Christian Care Centre ,100837,SP2 ,Community Services,CTPLD Placements,Adult Day Care Contracts,Third Party Payments,REVENUE
Wiltshire,http://opendatacommunities.org/id/unitary-authority/wiltshire,01/12/2017,5107143665,342,Alabare Christian Care Centre ,100837,SP2 ,Community Services,CTPLD Placements,Adult Day Care Contracts,Third Party Payments,REVENUE
Wiltshire,http://opendatacommunities.org/id/unitary-authority/wiltshire,01/12/2017,5107143673,342,Alabare Christian Care Centre ,100837,SP2 ,Community Services,Orchard,Adult Day Care Contracts,Third Party Payments,REVENUE
Wiltshire,http://opendatacommunities.org/id/unitary-authority/wiltshire,01/12/2017,5107143680,342,Alabare Christian Care Centre ,100837,SP2 ,Community Services,CTPLD Placements,Adult Day Care Contracts,Third Party Payments,REVENUE
Wiltshire,http://opendatacommunities.org/id/unitary-authority/wiltshire,01/12/2017,5107143683,494,Alabare Christian Care Centre ,100837,SP2 ,Community Services,CTPLD Placements,Adult Day Care Contracts,Third Party Payments,REVENUE
Wiltshire,http://opendatacommunities.org/id/unitary-authority/wiltshire,13/12/2017,5107143758,2127,Alabare Christian Care Centre ,100837,SP2 ,Community Services,CTPLD Placements,Supported Living,Third Party Payments,REVENUE
Wiltshire,http://opendatacommunities.org/id/unitary-authority/wiltshire,13/12/2017,5107143800,539,Alabare Christian Care Centre ,100837,SP2 ,Community Services,CTPLD Placements,Supported Living,Third Party Payments,REVENUE
Wiltshire,http://opendatacommunities.org/id/unitary-authority/wiltshire,13/12/2017,5107143801,3571.36,Alabare Christian Care Centre ,100837,SP2 ,Community Services,CTPLD Placements,Supported Living,Third Party Payments,REVENUE
Wiltshire,http://opendatacommunities.org/id/unitary-authority/wiltshire,13/12/2017,5107143807,2002.28,Alabare Christian Care Centre ,100837,SP2 ,Community Services,CTPLD Placements,Supported Living,Third Party Payments,REVENUE
Wiltshire,http://opendatacommunities.org/id/unitary-authority/wiltshire,13/12/2017,5107143808,635.36,Alabare Christian Care Centre ,100837,SP2 ,Community Services,CTPLD Placements,Supported Living,Third Party Payments,REVENUE
Wiltshire,http://opendatacommunities.org/id/unitary-authority/wiltshire,13/12/2017,5107143809,1776.88,Alabare Christian Care Centre ,100837,SP2 ,Community Services,CTPLD Placements,Supported Living,Third Party Payments,REVENUE
Wiltshire,http://opendatacommunities.org/id/unitary-authority/wiltshire,13/12/2017,5107143811,4061.4,Alabare Christian Care Centre ,100837,SP2 ,Community Services,CTPLD Placements,Supported Living,Third Party Payments,REVENUE
Wiltshire,http://opendatacommunities.org/id/unitary-authority/wiltshire,13/12/2017,5107143819,3311.64,Alabare Christian Care Centre ,100837,SP2 ,Community Services,CTPLD Placements,Supported Living,Third Party Payments,REVENUE
Wiltshire,http://opendatacommunities.org/id/unitary-authority/wiltshire,13/12/2017,5107143821,2483.64,Alabare Christian Care Centre ,100837,SP2 ,Community Services,CTPLD Placements,Supported Living,Third Party Payments,REVENUE
Wiltshire,http://opendatacommunities.org/id/unitary-authority/wiltshire,13/12/2017,5107143823,2788.04,Alabare Christian Care Centre ,100837,SP2 ,Community Services,CTPLD Placements,Supported Living,Third Party Payments,REVENUE
Wiltshire,http://opendatacommunities.org/id/unitary-authority/wiltshire,13/12/2017,5107143827,3220.24,Alabare Christian Care Centre ,100837,SP2 ,Community Services,CTPLD Placements,Supported Living,Third Party Payments,REVENUE
Wiltshire,http://opendatacommunities.org/id/unitary-authority/wiltshire,13/12/2017,5107143832,7931.88,Alabare Christian Care Centre ,100837,SP2 ,Community Services,CTPLD Placements,Supported Living,Third Party Payments,REVENUE
Wiltshire,http://opendatacommunities.org/id/unitary-authority/wiltshire,13/12/2017,5107143835,598.84,Alabare Christian Care Centre ,100837,SP2 ,Community Services,CTPLD Placements,Supported Living,Third Party Payments,REVENUE
Wiltshire,http://opendatacommunities.org/id/unitary-authority/wiltshire,13/12/2017,5107143839,2982.96,Alabare Christian Care Centre ,100837,SP2 ,Community Services,Salisbury,Supported Living,Third Party Payments,REVENUE
Wiltshire,http://opendatacommunities.org/id/unitary-authority/wiltshire,13/12/2017,5107143843,3291.44,Alabare Christian Care Centre ,100837,SP2 ,Community Services,CTPLD Placements,Supported Living,Third Party Payments,REVENUE
Wiltshire,http://opendatacommunities.org/id/unitary-authority/wiltshire,13/12/2017,5107143845,2881.24,Alabare Christian Care Centre ,100837,SP2 ,Community Services,CTPLD Placements,Supported Living,Third Party Payments,REVENUE
Wiltshire,http://opendatacommunities.org/id/unitary-authority/wiltshire,13/12/2017,5107143847,2827.56,Alabare Christian Care Centre ,100837,SP2 ,Community Services,CTPLD Placements,Supported Living,Third Party Payments,REVENUE
Wiltshire,http://opendatacommunities.org/id/unitary-authority/wiltshire,13/12/2017,5107143851,1863.44,Alabare Christian Care Centre ,100837,SP2 ,Community Services,CTPLD Placements,Supported Living,Third Party Payments,REVENUE
Wiltshire,http://opendatacommunities.org/id/unitary-authority/wiltshire,13/12/2017,5107143854,1694.28,Alabare Christian Care Centre ,100837,SP2 ,Community Services,Endless/St.A,Supported Living,Third Party Payments,REVENUE
Wiltshire,http://opendatacommunities.org/id/unitary-authority/wiltshire,13/12/2017,5107143855,598.84,Alabare Christian Care Centre ,100837,SP2 ,Community Services,CTPLD Placements,Supported Living,Third Party Payments,REVENUE
Wiltshire,http://opendatacommunities.org/id/unitary-authority/wiltshire,13/12/2017,5107143857,734.44,Alabare Christian Care Centre ,100837,SP2 ,Community Services,CTPLD Placements,Supported Living,Third Party Payments,REVENUE
Wiltshire,http://opendatacommunities.org/id/unitary-authority/wiltshire,13/12/2017,5107143859,1355.92,Alabare Christian Care Centre ,100837,SP2 ,Community Services,CTPLD Placements,Supported Living,Third Party Payments,REVENUE
Wiltshire,http://opendatacommunities.org/id/unitary-authority/wiltshire,13/12/2017,5107143901,833.48,Alabare Christian Care Centre ,100837,SP2 ,Community Services,CTPLD Placements,Supported Living,Third Party Payments,REVENUE
Wiltshire,http://opendatacommunities.org/id/unitary-authority/wiltshire,13/12/2017,5107143903,1735.72,Alabare Christian Care Centre ,100837,SP2 ,Community Services,CTPLD Placements,Supported Living,Third Party Payments,REVENUE
Wiltshire,http://opendatacommunities.org/id/unitary-authority/wiltshire,13/12/2017,5107143907,396,Alabare Christian Care Centre ,100837,SP2 ,Community Services,CTPLD Placements,Supported Living,Third Party Payments,REVENUE
Wiltshire,http://opendatacommunities.org/id/unitary-authority/wiltshire,13/12/2017,5107143909,2158.64,Alabare Christian Care Centre ,100837,SP2 ,Community Services,CTPLD Placements,Supported Living,Third Party Payments,REVENUE
Wiltshire,http://opendatacommunities.org/id/unitary-authority/wiltshire,13/12/2017,5107143913,3112.88,Alabare Christian Care Centre ,100837,SP2 ,Community Services,CTPLD Placements,Supported Living,Third Party Payments,REVENUE
Wiltshire,http://opendatacommunities.org/id/unitary-authority/wiltshire,13/12/2017,5107143914,3197.68,Alabare Christian Care Centre ,100837,SP2 ,Community Services,CTPLD Placements,Supported Living,Third Party Payments,REVENUE
Wiltshire,http://opendatacommunities.org/id/unitary-authority/wiltshire,13/12/2017,5107143915,4026,Alabare Christian Care Centre ,100837,SP2 ,Community Services,CTPLD Placements,Supported Living,Third Party Payments,REVENUE
Wiltshire,http://opendatacommunities.org/id/unitary-authority/wiltshire,12/12/2017,5107148336,514.2,Alabare Christian Care Centre ,100837,SP2 ,Community Services,MH AOWA South Locali,Supported Living,Third Party Payments,REVENUE
Wiltshire,http://opendatacommunities.org/id/unitary-authority/wiltshire,12/12/2017,5107148337,720,Alabare Christian Care Centre ,100837,SP2 ,Community Services,MH AOWA South Locali,Supported Living,Third Party Payments,REVENUE
Wiltshire,http://opendatacommunities.org/id/unitary-authority/wiltshire,12/12/2017,5107148338,308.6,Alabare Christian Care Centre ,100837,SP2 ,Community Services,MH AOWA South Locali,Supported Living,Third Party Payments,REVENUE
Wiltshire,http://opendatacommunities.org/id/unitary-authority/wiltshire,12/12/2017,5107148339,432,Alabare Christian Care Centre ,100837,SP2 ,Community Services,MH AOWA South Locali,Supported Living,Third Party Payments,REVENUE
Wiltshire,http://opendatacommunities.org/id/unitary-authority/wiltshire,13/12/2017,5107149455,617.2,Alabare Christian Care Centre ,100837,SP2 ,Community Services,MH AOWA South Locali,Supported Living,Third Party Payments,REVENUE
Wiltshire,http://opendatacommunities.org/id/unitary-authority/wiltshire,13/12/2017,5107149456,864,Alabare Christian Care Centre ,100837,SP2 ,Community Services,MH AOWA South Locali,Supported Living,Third Party Payments,REVENUE
Wiltshire,http://opendatacommunities.org/id/unitary-authority/wiltshire,13/12/2017,5107149457,360,Alabare Christian Care Centre ,100837,SP2 ,Community Services,MH AOWA South Locali,Supported Living,Third Party Payments,REVENUE
Wiltshire,http://opendatacommunities.org/id/unitary-authority/wiltshire,13/12/2017,5107149458,504,Alabare Christian Care Centre ,100837,SP2 ,Community Services,MH AOWA South Locali,Supported Living,Third Party Payments,REVENUE
Wiltshire,http://opendatacommunities.org/id/unitary-authority/wiltshire,20/12/2017,5107152817,2193.3,Alabare Christian Care Centre ,100837,SP2 ,Children & Education,Albare Contract,Childrens Agency Placement,Third Party Payments,REVENUE
Wiltshire,http://opendatacommunities.org/id/unitary-authority/wiltshire,20/12/2017,5107152818,458.04,Alabare Christian Care Centre ,100837,SP2 ,Children & Education,Albare Contract,Childrens Agency Placement,Third Party Payments,REVENUE
Wiltshire,http://opendatacommunities.org/id/unitary-authority/wiltshire,20/12/2017,5107152819,2466.05,Alabare Christian Care Centre ,100837,SP2 ,Children & Education,Safeguarding Ass Nth,Childrens Agency Placement,Third Party Payments,REVENUE
Wiltshire,http://opendatacommunities.org/id/unitary-authority/wiltshire,20/12/2017,5107152820,2230.24,Alabare Christian Care Centre ,100837,SP2 ,Children & Education,Albare Contract,Childrens Agency Placement,Third Party Payments,REVENUE
Wiltshire,http://opendatacommunities.org/id/unitary-authority/wiltshire,20/12/2017,5107152821,1881.97,Alabare Christian Care Centre ,100837,SP2 ,Children & Education,Albare Contract,Childrens Agency Placement,Third Party Payments,REVENUE
Wiltshire,http://opendatacommunities.org/id/unitary-authority/wiltshire,20/12/2017,5107152822,267,Alabare Christian Care Centre ,100837,SP2 ,Children & Education,Albare Contract,Childrens Agency Placement,Third Party Payments,REVENUE
Wiltshire,http://opendatacommunities.org/id/unitary-authority/wiltshire,20/12/2017,5107152823,1645.6,Alabare Christian Care Centre ,100837,SP2 ,Children & Education,Albare Contract,Childrens Agency Placement,Third Party Payments,REVENUE
Wiltshire,http://opendatacommunities.org/id/unitary-authority/wiltshire,20/12/2017,5107152919,2193.3,Alabare Christian Care Centre ,100837,SP2 ,Children & Education,Albare Contract,Childrens Agency Placement,Third Party Payments,REVENUE
Wiltshire,http://opendatacommunities.org/id/unitary-authority/wiltshire,20/12/2017,5107152951,2317.44,Alabare Christian Care Centre ,100837,SP2 ,Children & Education,Albare Contract,Childrens Agency Placement,Third Party Payments,REVENUE
Wiltshire,http://opendatacommunities.org/id/unitary-authority/wiltshire,20/12/2017,5107153121,670.74,Alabare Christian Care Centre ,100837,SP2 ,Children & Education,Albare Contract,Childrens Agency Placement,Third Party Payments,REVENUE
Wiltshire,http://opendatacommunities.org/id/unitary-authority/wiltshire,20/12/2017,5107153197,2530.43,Alabare Christian Care Centre ,100837,SP2 ,Children & Education,Albare Contract,Childrens Agency Placement,Third Party Payments,REVENUE
Wiltshire,http://opendatacommunities.org/id/unitary-authority/wiltshire,20/12/2017,5107153199,485.37,Alabare Christian Care Centre ,100837,SP2 ,Children & Education,Albare Contract,Childrens Agency Placement,Third Party Payments,REVENUE
Wiltshire,http://opendatacommunities.org/id/unitary-authority/wiltshire,20/12/2017,5107153260,2598.69,Alabare Christian Care Centre ,100837,SP2 ,Children & Education,Albare Contract,Childrens Agency Placement,Third Party Payments,REVENUE
Wiltshire,http://opendatacommunities.org/id/unitary-authority/wiltshire,20/12/2017,5107153261,295,Alabare Christian Care Centre ,100837,SP2 ,Children & Education,CIC Team South,Childrens Agency Placement,Third Party Payments,REVENUE
Wiltshire,http://opendatacommunities.org/id/unitary-authority/wiltshire,21/12/2017,5107153539,410.44,Alabare Christian Care Centre ,100837,SP2 ,Community Services,CTPLD Placements,Adult Domiciliary Care - Spot Contribution,Income,REVENUE
Wiltshire,http://opendatacommunities.org/id/unitary-authority/wiltshire,21/12/2017,5107153873,2655.66,Alabare Christian Care Centre ,100837,SP2 ,Community Services,MH OP South Locality,Adult Domiciliary Care - Spot,Third Party Payments,REVENUE
Wiltshire,http://opendatacommunities.org/id/unitary-authority/wiltshire,21/12/2017,5107153874,3540.8,Alabare Christian Care Centre ,100837,SP2 ,Community Services,MH OP South Locality,Adult Domiciliary Care - Spot,Third Party Payments,REVENUE
Wiltshire,http://opendatacommunities.org/id/unitary-authority/wiltshire,13/12/2017,5107146672,3075.72,Aldbourne Nursing Home ,110090,SN8 ,Community Services,MH OP N&E Locality,Adult Care Nursing Placements - Spot,Third Party Payments,REVENUE
Wiltshire,http://opendatacommunities.org/id/unitary-authority/wiltshire,13/12/2017,5107147075,3500,Aldbourne Nursing Home ,110090,SN8 ,Community Services,Home Loans,Adult Care Loans,Capital charges and Expenditure,REVENUE
Wiltshire,http://opendatacommunities.org/id/unitary-authority/wiltshire,13/12/2017,5107147137,3000,Aldbourne Nursing Home ,110090,SN8 ,Community Services,Home Loans,Adult Care Loans,Capital charges and Expenditure,REVENUE
Wiltshire,http://opendatacommunities.org/id/unitary-authority/wiltshire,13/12/2017,5107147398,2616.4,Aldbourne Nursing Home ,110090,SN8 ,Community Services,Marlborough,Adult Residential Placements - Spot Purchase,Third Party Payments,REVENUE
Wiltshire,http://opendatacommunities.org/id/unitary-authority/wiltshire,13/12/2017,5107147405,2616.4,Aldbourne Nursing Home ,110090,SN8 ,Community Services,Marlborough,Adult Residential Placements - Spot Purchase,Third Party Payments,REVENUE
Wiltshire,http://opendatacommunities.org/id/unitary-authority/wiltshire,13/12/2017,5107148616,3600,Aldbourne Nursing Home ,110090,SN8 ,Community Services,Adult Care Gross Loa,Adult Care Loans,Capital charges and Expenditure,REVENUE
Wiltshire,http://opendatacommunities.org/id/unitary-authority/wiltshire,13/12/2017,5107148874,3052,Aldbourne Nursing Home ,110090,SN8 ,Community Services,Marlborough,Adult Care Nursing Placements - Spot,Third Party Payments,REVENUE
Wiltshire,http://opendatacommunities.org/id/unitary-authority/wiltshire,27/12/2017,5107154230,327,Aldbourne Nursing Home ,110090,SN8 ,Community Services,N&E Localiity 18+ C,Adult Care Nursing Placements - Spot,Third Party Payments,REVENUE
Wiltshire,http://opendatacommunities.org/id/unitary-authority/wiltshire,27/12/2017,5107154232,3052,Aldbourne Nursing Home ,110090,SN8 ,Community Services,N&E Localiity 18+ C,Adult Care Nursing Placements - Spot,Third Party Payments,REVENUE
Wiltshire,http://opendatacommunities.org/id/unitary-authority/wiltshire,27/12/2017,5107154235,3052,Aldbourne Nursing Home ,110090,SN8 ,Community Services,N&E Localiity 18+ C,Adult Care Nursing Placements - Spot,Third Party Payments,REVENUE
Wiltshire,http://opendatacommunities.org/id/unitary-authority/wiltshire,27/12/2017,5107154237,3052,Aldbourne Nursing Home ,110090,SN8 ,Community Services,N&E Localiity 18+ C,Adult Care Nursing Placements - Spot,Third Party Payments,REVENUE
Wiltshire,http://opendatacommunities.org/id/unitary-authority/wiltshire,28/12/2017,5107154292,613.4,Alere Toxicology Plc ,131373,OX14,Children & Education,HQ Social Care,Witness / Jurors' / Justice's Expenses,Supplies and Services,REVENUE
Wiltshire,http://opendatacommunities.org/id/unitary-authority/wiltshire,28/12/2017,5107154293,570.2,Alere Toxicology Plc ,131373,OX14,Children & Education,HQ Social Care,Witness / Jurors' / Justice's Expenses,Supplies and Services,REVENUE
Wiltshire,http://opendatacommunities.org/id/unitary-authority/wiltshire,13/12/2017,5107147546,6237.48,Alexandra Homes (Bristol) Ltd ,131787,BS15,Community Services,MH AOWA West Localit,Adult Residential Placements - Spot Purchase,Third Party Payments,REVENUE
Wiltshire,http://opendatacommunities.org/id/unitary-authority/wiltshire,05/12/2017,5107144159,10425.96,Alina Homecare - Disabilty Support ,139903,BH12,Community Services,CTPLD Placements,Supported Living,Third Party Payments,REVENUE
Wiltshire,http://opendatacommunities.org/id/unitary-authority/wiltshire,07/12/2017,5107145948,5275.36,Alina Homecare - Disabilty Support ,139903,BH12,Community Services,CTPLD Placements,Supported Living,Third Party Payments,REVENUE
Wiltshire,http://opendatacommunities.org/id/unitary-authority/wiltshire,13/12/2017,5107148443,548.1,Alina Homecare - Disabilty Support ,139903,BH12,Community Services,CTPLD Placements,Supported Living,Third Party Payments,REVENUE
Wiltshire,http://opendatacommunities.org/id/unitary-authority/wiltshire,21/12/2017,5107153679,2257.82,Alina Homecare - Disabilty Support ,139903,BH12,Community Services,CTPLD Placements,Supported Living,Third Party Payments,REVENUE
Wiltshire,http://opendatacommunities.org/id/unitary-authority/wiltshire,13/12/2017,5107146381,5440.96,Alliance Home Care ,110986,SN15,Community Services,CTPLD Placements,Adult Residential Placements - Spot Purchase,Third Party Payments,REVENUE
Wiltshire,http://opendatacommunities.org/id/unitary-authority/wiltshire,13/12/2017,5107146434,3728.52,Alliance Home Care ,110986,SN15,Community Services,MH AOWA N&E Locality,Adult Residential Placements - Spot Purchase,Third Party Payments,REVENUE
Wiltshire,http://opendatacommunities.org/id/unitary-authority/wiltshire,13/12/2017,5107146611,3676.04,Alliance Home Care ,110986,SN15,Community Services,MH AOWA N&E Locality,Adult Residential Placements - Spot Purchase,Third Party Payments,REVENUE
Wiltshire,http://opendatacommunities.org/id/unitary-authority/wiltshire,13/12/2017,5107146653,3139.8,Alliance Home Care ,110986,SN15,Community Services,MH AOWA N&E Locality,Adult Residential Placements - Spot Purchase,Third Party Payments,REVENUE
Wiltshire,http://opendatacommunities.org/id/unitary-authority/wiltshire,13/12/2017,5107146928,2108.92,Alliance Home Care ,110986,SN15,Community Services,MH OP N&E Locality,Adult Residential Placements - Spot Purchase,Third Party Payments,REVENUE
Wiltshire,http://opendatacommunities.org/id/unitary-authority/wiltshire,13/12/2017,5107147063,3267.84,Alliance Home Care ,110986,SN15,Community Services,MH AOWA N&E Locality,Adult Residential Placements - Spot Purchase,Third Party Payments,REVENUE
Wiltshire,http://opendatacommunities.org/id/unitary-authority/wiltshire,13/12/2017,5107147829,3599.72,Alliance Home Care ,110986,SN15,Community Services,MH OP N&E Locality,Adult Residential Placements - Spot Purchase,Third Party Payments,REVENUE
Wiltshire,http://opendatacommunities.org/id/unitary-authority/wiltshire,14/12/2017,5107150123,13257.48,Allied Healthcare  UK  Ltd ,110113,ST18,Community Services,Cricklade,Adult Domiciliary Care - Spot,Third Party Payments,REVENUE
Wiltshire,http://opendatacommunities.org/id/unitary-authority/wiltshire,20/12/2017,5107153259,335.75,Allied Healthcare  UK  Ltd ,110113,ST18,Community Services,Southbroom,Adult Domiciliary Care - Spot,Third Party Payments,REVENUE
Wiltshire,http://opendatacommunities.org/id/unitary-authority/wiltshire,21/12/2017,5107153875,555,Allied Healthcare  UK  Ltd ,110113,ST18,Community Services,N&E Localiity 18+ C,Adult Domiciliary Care - Spot,Third Party Payments,REVENUE
Wiltshire,http://opendatacommunities.org/id/unitary-authority/wiltshire,21/12/2017,5107153876,444,Allied Healthcare  UK  Ltd ,110113,ST18,Community Services,N&E Localiity 18+ C,Adult Domiciliary Care - Spot,Third Party Payments,REVENUE
Wiltshire,http://opendatacommunities.org/id/unitary-authority/wiltshire,07/12/2017,5107145730,3152.86,Allied Healthcare Group Allied Healthcare Group,113066,SP2 ,Community Services,CTPLD Placements,Supported Living Contribution,Income,REVENUE
Wiltshire,http://opendatacommunities.org/id/unitary-authority/wiltshire,20/12/2017,5107151884,7305.5,Allied Healthcare Group Allied Healthcare Group,113066,SP2 ,Community Services,Chippenham,Adult Domiciliary Care - Spot,Third Party Payments,REVENUE
Wiltshire,http://opendatacommunities.org/id/unitary-authority/wiltshire,21/12/2017,1902058686,2000,Allpay Ltd ,136796,HR1 ,Resources,Social Fund,Social Fund Payments,Capital charges and Expenditure,REVENUE
Wiltshire,http://opendatacommunities.org/id/unitary-authority/wiltshire,21/12/2017,5107153767,415,ALLSPARES  AUTO  LTD ,110116,CF33,Neighbourhood & Planning,Fleet,Vehicle Parts,Transport Related,REVENUE
Wiltshire,http://opendatacommunities.org/id/unitary-authority/wiltshire,01/12/2017,5107138473,283.6,Alpha Chemicals ,138904,SO31,Neighbourhood & Planning,Devizes,Cleaning Materials - Buildings,Premises Related,REVENUE
Wiltshire,http://opendatacommunities.org/id/unitary-authority/wiltshire,06/12/2017,5107139762,363.1,Alpha Chemicals ,138904,SO31,Neighbourhood & Planning,Five Rivers,Cleaning Materials - Buildings,Premises Related,REVENUE
Wiltshire,http://opendatacommunities.org/id/unitary-authority/wiltshire,13/12/2017,5107141541,619,Alpha Plus Training  and  Translati Ltd,110120,TA4 ,Children & Education,HQ Social Care,Publications / periodicals,Supplies and Services,REVENUE
Wiltshire,http://opendatacommunities.org/id/unitary-authority/wiltshire,12/12/2017,1902048317,1230.6,Alpha Taxis ,100124,BA14,Neighbourhood & Planning,Mainstream Secondary,Transport Contracts,Third Party Payments,REVENUE
Wiltshire,http://opendatacommunities.org/id/unitary-authority/wiltshire,12/12/2017,1902048318,844.25,Alpha Taxis ,100124,BA14,Neighbourhood & Planning,SEN Primary,Transport Contracts,Third Party Payments,REVENUE
Wiltshire,http://opendatacommunities.org/id/unitary-authority/wiltshire,12/12/2017,1902048319,2401.6,Alpha Taxis ,100124,BA14,Neighbourhood & Planning,SEN Primary,Transport Contracts,Third Party Payments,REVENUE
Wiltshire,http://opendatacommunities.org/id/unitary-authority/wiltshire,12/12/2017,1902048322,1166,Alpha Taxis ,100124,BA14,Neighbourhood & Planning,Mainstream Secondary,Transport Contracts,Third Party Payments,REVENUE
Wiltshire,http://opendatacommunities.org/id/unitary-authority/wiltshire,12/12/2017,1902048324,378,Alpha Taxis ,100124,BA14,Neighbourhood & Planning,Mainstream Secondary,Transport Contracts,Third Party Payments,REVENUE
Wiltshire,http://opendatacommunities.org/id/unitary-authority/wiltshire,12/12/2017,1902048325,434.8,Alpha Taxis ,100124,BA14,Neighbourhood & Planning,Mainstream Primary,Transport Contracts,Third Party Payments,REVENUE
Wiltshire,http://opendatacommunities.org/id/unitary-authority/wiltshire,12/12/2017,1902048326,367.4,Alpha Taxis ,100124,BA14,Community Services,CTPLD Placements,Transport Contracts,Third Party Payments,REVENUE
Wiltshire,http://opendatacommunities.org/id/unitary-authority/wiltshire,12/12/2017,1902048329,402.5,Alpha Taxis ,100124,BA14,Community Services,West Locality 18+ Ca,Transport Contracts,Third Party Payments,REVENUE
Wiltshire,http://opendatacommunities.org/id/unitary-authority/wiltshire,12/12/2017,1902048330,319.8,Alpha Taxis ,100124,BA14,Neighbourhood & Planning,SEN Secondary,Transport Contracts,Third Party Payments,REVENUE
Wiltshire,http://opendatacommunities.org/id/unitary-authority/wiltshire,12/12/2017,1902048331,1558,Alpha Taxis ,100124,BA14,Neighbourhood & Planning,SEN Primary,Transport Contracts,Third Party Payments,REVENUE
Wiltshire,http://opendatacommunities.org/id/unitary-authority/wiltshire,12/12/2017,1902048333,2843.8,Alpha Taxis ,100124,BA14,Children & Education,Safeguarding Ass Sth,Transport Contracts,Third Party Payments,REVENUE
Wiltshire,http://opendatacommunities.org/id/unitary-authority/wiltshire,12/12/2017,1902048334,390.7,Alpha Taxis ,100124,BA14,Neighbourhood & Planning,SEN Secondary,Transport Contracts,Third Party Payments,REVENUE
Wiltshire,http://opendatacommunities.org/id/unitary-authority/wiltshire,12/12/2017,1902048335,673.8,Alpha Taxis ,100124,BA14,Neighbourhood & Planning,Mainstream Secondary,Transport Contracts,Third Party Payments,REVENUE
Wiltshire,http://opendatacommunities.org/id/unitary-authority/wiltshire,14/12/2017,1902049823,1606,Alpha Taxis ,100124,BA14,Neighbourhood & Planning,SEN Primary,Transport Contracts,Third Party Payments,REVENUE
Wiltshire,http://opendatacommunities.org/id/unitary-authority/wiltshire,14/12/2017,1902049825,2428.8,Alpha Taxis ,100124,BA14,Neighbourhood & Planning,SEN Primary,Transport Contracts,Third Party Payments,REVENUE
Wiltshire,http://opendatacommunities.org/id/unitary-authority/wiltshire,14/12/2017,1902049826,2478.8,Alpha Taxis ,100124,BA14,Neighbourhood & Planning,SEN 16+ Secondary,Transport Contracts,Third Party Payments,REVENUE
Wiltshire,http://opendatacommunities.org/id/unitary-authority/wiltshire,19/12/2017,1902057294,710,Alpha Taxis ,100124,BA14,Neighbourhood & Planning,SEN Primary,Transport Contracts,Third Party Payments,REVENUE
Wiltshire,http://opendatacommunities.org/id/unitary-authority/wiltshire,19/12/2017,1902057295,1306,Alpha Taxis ,100124,BA14,Neighbourhood & Planning,SEN Primary,Transport Contracts,Third Party Payments,REVENUE
Wiltshire,http://opendatacommunities.org/id/unitary-authority/wiltshire,19/12/2017,1902057295,1306,Alpha Taxis ,100124,BA14,Neighbourhood & Planning,SEN Secondary,Transport Contracts,Third Party Payments,REVENUE
Wiltshire,http://opendatacommunities.org/id/unitary-authority/wiltshire,18/12/2017,1902051100,1680,Alpha Taxis (Tidworth) ,137541,SP9 ,Neighbourhood & Planning,SEN Primary,Transport Contracts,Third Party Payments,REVENUE
Wiltshire,http://opendatacommunities.org/id/unitary-authority/wiltshire,18/12/2017,1902051101,2464,Alpha Taxis (Tidworth) ,137541,SP9 ,Neighbourhood & Planning,SEN Primary,Transport Contracts,Third Party Payments,REVENUE
Wiltshire,http://opendatacommunities.org/id/unitary-authority/wiltshire,18/12/2017,1902051103,367.06,Alpha Taxis (Tidworth) ,137541,SP9 ,Community Services,MH OP South Locality,Transport Contracts,Third Party Payments,REVENUE
Wiltshire,http://opendatacommunities.org/id/unitary-authority/wiltshire,18/12/2017,1902051104,375.56,Alpha Taxis (Tidworth) ,137541,SP9 ,Community Services,MH OP South Locality,Transport Contracts,Third Party Payments,REVENUE
Wiltshire,http://opendatacommunities.org/id/unitary-authority/wiltshire,14/12/2017,1902049686,138247.47,Alun Griffiths Contractors Ltd ,110123,NP7 ,Wiltshire Council,Wiltshire Council,Materials,Supplies and Services,CAPITAL
Wiltshire,http://opendatacommunities.org/id/unitary-authority/wiltshire,15/12/2017,1902049687,396273.49,Alun Griffiths Contractors Ltd ,110123,NP7 ,Wiltshire Council,Wiltshire Council,Materials,Supplies and Services,CAPITAL
Wiltshire,http://opendatacommunities.org/id/unitary-authority/wiltshire,04/12/2017,5107143463,10192.7,Alzheimers Support ,110127,BA14,Community Services,MH Commissioned Cont,Grants Expenditure,Supplies and Services,REVENUE
Wiltshire,http://opendatacommunities.org/id/unitary-authority/wiltshire,04/12/2017,5107143464,21312,Alzheimers Support ,110127,BA14,Community Services,MH Commissioned Cont,Grants Expenditure,Supplies and Services,REVENUE
Wiltshire,http://opendatacommunities.org/id/unitary-authority/wiltshire,21/12/2017,5107153809,10192.7,Alzheimers Support ,110127,BA14,Community Services,MH Commissioned Cont,Grants Expenditure,Supplies and Services,REVENUE
Wiltshire,http://opendatacommunities.org/id/unitary-authority/wiltshire,21/12/2017,5107153900,21312,Alzheimers Support ,110127,BA14,Community Services,MH Commissioned Cont,Grants Expenditure,Supplies and Services,REVENUE
Wiltshire,http://opendatacommunities.org/id/unitary-authority/wiltshire,07/12/2017,5107145725,356.5,Alzheimers Support ,113451,BA14,Community Services,Lansdown,Adult Domiciliary Care - Mileage,Third Party Payments,REVENUE
Wiltshire,http://opendatacommunities.org/id/unitary-authority/wiltshire,07/12/2017,5107145729,356.3,Alzheimers Support ,113451,BA14,Community Services,Lovemd/Wid,Adult Domiciliary Care - Spot,Third Party Payments,REVENUE
Wiltshire,http://opendatacommunities.org/id/unitary-authority/wiltshire,11/12/2017,5107146907,267.2,Alzheimers Support ,113451,BA14,Community Services,Orchard,Adult Domiciliary Care - Spot,Third Party Payments,REVENUE
Wiltshire,http://opendatacommunities.org/id/unitary-authority/wiltshire,13/12/2017,5107148445,300.6,Alzheimers Support ,113451,BA14,Community Services,BoA Cluster,Adult Domiciliary Care - Spot,Third Party Payments,REVENUE
Wiltshire,http://opendatacommunities.org/id/unitary-authority/wiltshire,13/12/2017,5107148448,498.57,Alzheimers Support ,113451,BA14,Community Services,The Avenue,Adult Domiciliary Care - Mileage,Third Party Payments,REVENUE
Wiltshire,http://opendatacommunities.org/id/unitary-authority/wiltshire,13/12/2017,5107148449,574.1,Alzheimers Support ,113451,BA14,Community Services,White Horse,Adult Domiciliary Care - Mileage,Third Party Payments,REVENUE
Wiltshire,http://opendatacommunities.org/id/unitary-authority/wiltshire,28/12/2017,5107152020,1078.8,AMAS Ltd Main Clients Account ,125036,BS8 ,Resources,FM Highway Depots,Premises Management Costs,Premises Related,REVENUE
Wiltshire,http://opendatacommunities.org/id/unitary-authority/wiltshire,28/12/2017,5107152021,811.8,AMAS Ltd Main Clients Account ,125036,BS8 ,Resources,FM Highway Depots,Premises Management Costs,Premises Related,REVENUE
Wiltshire,http://opendatacommunities.org/id/unitary-authority/wiltshire,13/12/2017,5107149548,39553.5,Ameo Professional Services LLP ,137429,B80 ,Community Services,ASC Transformation,Consultants Fees,Supplies and Services,REVENUE
Wiltshire,http://opendatacommunities.org/id/unitary-authority/wiltshire,15/12/2017,5107150824,3146.5,Amicus Foster Care Limited ,126050,BS2 ,Children & Education,Ext Placement & IFA,Childrens Agency Placement,Third Party Payments,REVENUE
Wiltshire,http://opendatacommunities.org/id/unitary-authority/wiltshire,15/12/2017,5107150827,4581.49,Amicus Foster Care Limited ,126050,BS2 ,Children & Education,Ext Placement & IFA,Childrens Agency Placement,Third Party Payments,REVENUE
Wiltshire,http://opendatacommunities.org/id/unitary-authority/wiltshire,15/12/2017,5107150828,3624.21,Amicus Foster Care Limited ,126050,BS2 ,Children & Education,Ext Placement & IFA,Childrens Agency Placement,Third Party Payments,REVENUE
Wiltshire,http://opendatacommunities.org/id/unitary-authority/wiltshire,15/12/2017,5107150829,3406.9,Amicus Foster Care Limited ,126050,BS2 ,Children & Education,Ext Placement & IFA,Childrens Agency Placement,Third Party Payments,REVENUE
Wiltshire,http://opendatacommunities.org/id/unitary-authority/wiltshire,15/12/2017,5107150832,3406.9,Amicus Foster Care Limited ,126050,BS2 ,Children & Education,Ext Placement & IFA,Childrens Agency Placement,Third Party Payments,REVENUE
Wiltshire,http://opendatacommunities.org/id/unitary-authority/wiltshire,15/12/2017,5107150868,3919.64,Amicus Foster Care Limited ,126050,BS2 ,Children & Education,Ext Placement & IFA,Childrens Agency Placement,Third Party Payments,REVENUE
Wiltshire,http://opendatacommunities.org/id/unitary-authority/wiltshire,13/12/2017,5107149531,968.74,Amicus Homecare Limited ,144149,BA2 ,Community Services,BoA Cluster,Adult Domiciliary Care - Spot Contribution,Income,REVENUE
Wiltshire,http://opendatacommunities.org/id/unitary-authority/wiltshire,14/12/2017,5107149588,888.87,Amicus Homecare Limited ,144149,BA2 ,Community Services,BoA Cluster,Adult Domiciliary Care - Spot Contribution,Income,REVENUE
Wiltshire,http://opendatacommunities.org/id/unitary-authority/wiltshire,14/12/2017,5107149718,808.88,Amicus Homecare Limited ,144149,BA2 ,Community Services,BoA Cluster,Adult Domiciliary Care - Spot Contribution,Income,REVENUE
Wiltshire,http://opendatacommunities.org/id/unitary-authority/wiltshire,14/12/2017,5107149719,968.74,Amicus Homecare Limited ,144149,BA2 ,Community Services,BoA Cluster,Adult Domiciliary Care - Spot Contribution,Income,REVENUE
Wiltshire,http://opendatacommunities.org/id/unitary-authority/wiltshire,14/12/2017,5107149722,878.5,Amicus Homecare Limited ,144149,BA2 ,Community Services,BoA Cluster,Adult Domiciliary Care - Spot Contribution,Income,REVENUE
Wiltshire,http://opendatacommunities.org/id/unitary-authority/wiltshire,21/12/2017,5107153705,942.7,Amicus Homecare Limited ,144149,BA2 ,Community Services,BoA Cluster,Adult Domiciliary Care - Spot,Third Party Payments,REVENUE
Wiltshire,http://opendatacommunities.org/id/unitary-authority/wiltshire,06/12/2017,5107139713,371.84,AMS Care Wiltshire ,130764,SN4 ,Community Services,Marlborough,Adult Care Nursing Placements - Spot,Third Party Payments,REVENUE
Wiltshire,http://opendatacommunities.org/id/unitary-authority/wiltshire,06/12/2017,5107139721,2509.92,AMS Care Wiltshire ,130764,SN4 ,Community Services,N&E Localiity 18+ C,Adult Care Nursing Placements- Block Contract,Third Party Payments,REVENUE
Wiltshire,http://opendatacommunities.org/id/unitary-authority/wiltshire,06/12/2017,5107143023,1539.72,AMS Care Wiltshire ,130764,SN4 ,Community Services,N&E Localiity 18+ C,Adult Care Nursing Placements - Spot,Third Party Payments,REVENUE
Wiltshire,http://opendatacommunities.org/id/unitary-authority/wiltshire,06/12/2017,5107145367,16995,AMS Care Wiltshire ,130764,SN4 ,Community Services,BCF-Intermediate Cr,Adult Care Nursing Placements - Void Payments,Third Party Payments,REVENUE
Wiltshire,http://opendatacommunities.org/id/unitary-authority/wiltshire,13/12/2017,5107146168,2603,AMS Care Wiltshire ,130764,SN4 ,Community Services,Cricklade,Adult Care Nursing Placements- Block Contract,Third Party Payments,REVENUE
Wiltshire,http://opendatacommunities.org/id/unitary-authority/wiltshire,13/12/2017,5107146189,2603,AMS Care Wiltshire ,130764,SN4 ,Community Services,Cricklade,Adult Care Nursing Placements- Block Contract,Third Party Payments,REVENUE
Wiltshire,http://opendatacommunities.org/id/unitary-authority/wiltshire,13/12/2017,5107146209,2395,AMS Care Wiltshire ,130764,SN4 ,Community Services,Cricklade,Adult Care Nursing Placements- Block Contract,Third Party Payments,REVENUE
Wiltshire,http://opendatacommunities.org/id/unitary-authority/wiltshire,13/12/2017,5107146236,2603,AMS Care Wiltshire ,130764,SN4 ,Community Services,Cricklade,Adult Care Nursing Placements- Block Contract,Third Party Payments,REVENUE
Wiltshire,http://opendatacommunities.org/id/unitary-authority/wiltshire,13/12/2017,5107146589,2603,AMS Care Wiltshire ,130764,SN4 ,Community Services,Cricklade,Adult Care Nursing Placements- Block Contract,Third Party Payments,REVENUE
Wiltshire,http://opendatacommunities.org/id/unitary-authority/wiltshire,13/12/2017,5107146597,371.84,AMS Care Wiltshire ,130764,SN4 ,Community Services,Cricklade,Adult Care Nursing Placements- Block Contract,Third Party Payments,REVENUE
Wiltshire,http://opendatacommunities.org/id/unitary-authority/wiltshire,13/12/2017,5107146599,2395,AMS Care Wiltshire ,130764,SN4 ,Community Services,Cricklade,Adult Care Nursing Placements- Block Contract,Third Party Payments,REVENUE
Wiltshire,http://opendatacommunities.org/id/unitary-authority/wiltshire,13/12/2017,5107146636,2395,AMS Care Wiltshire ,130764,SN4 ,Community Services,Cricklade,Adult Care Nursing Placements- Block Contract,Third Party Payments,REVENUE
Wiltshire,http://opendatacommunities.org/id/unitary-authority/wiltshire,13/12/2017,5107146648,5390,AMS Care Wiltshire ,130764,SN4 ,Community Services,Adult Care Gross Loa,Adult Care Loans,Capital charges and Expenditure,REVENUE
Wiltshire,http://opendatacommunities.org/id/unitary-authority/wiltshire,13/12/2017,5107146680,2395,AMS Care Wiltshire ,130764,SN4 ,Community Services,Cricklade,Adult Care Nursing Placements- Block Contract,Third Party Payments,REVENUE
Wiltshire,http://opendatacommunities.org/id/unitary-authority/wiltshire,13/12/2017,5107147004,2603,AMS Care Wiltshire ,130764,SN4 ,Community Services,Adult Care Gross Loa,Adult Care Loans,Capital charges and Expenditure,REVENUE
Wiltshire,http://opendatacommunities.org/id/unitary-authority/wiltshire,13/12/2017,5107147005,2395,AMS Care Wiltshire ,130764,SN4 ,Community Services,Cricklade,Adult Care Nursing Placements- Block Contract,Third Party Payments,REVENUE
Wiltshire,http://opendatacommunities.org/id/unitary-authority/wiltshire,13/12/2017,5107147297,2395,AMS Care Wiltshire ,130764,SN4 ,Community Services,MH OP N&E Locality,Adult Care Nursing Placements- Block Contract,Third Party Payments,REVENUE
Wiltshire,http://opendatacommunities.org/id/unitary-authority/wiltshire,13/12/2017,5107147310,2603,AMS Care Wiltshire ,130764,SN4 ,Community Services,Cricklade,Adult Care Nursing Placements- Block Contract,Third Party Payments,REVENUE
Wiltshire,http://opendatacommunities.org/id/unitary-authority/wiltshire,13/12/2017,5107147415,2603,AMS Care Wiltshire ,130764,SN4 ,Community Services,Cricklade,Adult Care Nursing Placements- Block Contract,Third Party Payments,REVENUE
Wiltshire,http://opendatacommunities.org/id/unitary-authority/wiltshire,13/12/2017,5107147419,2603,AMS Care Wiltshire ,130764,SN4 ,Community Services,Cricklade,Adult Care Nursing Placements- Block Contract,Third Party Payments,REVENUE
Wiltshire,http://opendatacommunities.org/id/unitary-authority/wiltshire,13/12/2017,5107147875,2603,AMS Care Wiltshire ,130764,SN4 ,Community Services,Cricklade,Adult Care Nursing Placements- Block Contract,Third Party Payments,REVENUE
Wiltshire,http://opendatacommunities.org/id/unitary-authority/wiltshire,13/12/2017,5107147913,2395,AMS Care Wiltshire ,130764,SN4 ,Community Services,Cricklade,Adult Care Nursing Placements- Block Contract,Third Party Payments,REVENUE
Wiltshire,http://opendatacommunities.org/id/unitary-authority/wiltshire,13/12/2017,5107147921,2395,AMS Care Wiltshire ,130764,SN4 ,Community Services,Cricklade,Adult Care Nursing Placements- Block Contract,Third Party Payments,REVENUE
Wiltshire,http://opendatacommunities.org/id/unitary-authority/wiltshire,13/12/2017,5107147924,2395,AMS Care Wiltshire ,130764,SN4 ,Community Services,Cricklade,Adult Care Nursing Placements- Block Contract,Third Party Payments,REVENUE
Wiltshire,http://opendatacommunities.org/id/unitary-authority/wiltshire,13/12/2017,5107147926,2395,AMS Care Wiltshire ,130764,SN4 ,Community Services,MH OP N&E Locality,Adult Care Nursing Placements- Block Contract,Third Party Payments,REVENUE
Wiltshire,http://opendatacommunities.org/id/unitary-authority/wiltshire,13/12/2017,5107148083,2603,AMS Care Wiltshire ,130764,SN4 ,Community Services,Cricklade,Adult Care Nursing Placements- Block Contract,Third Party Payments,REVENUE
Wiltshire,http://opendatacommunities.org/id/unitary-authority/wiltshire,13/12/2017,5107148271,2395,AMS Care Wiltshire ,130764,SN4 ,Community Services,MH OP N&E Locality,Adult Residential Placements - Spot Purchase,Third Party Payments,REVENUE
Wiltshire,http://opendatacommunities.org/id/unitary-authority/wiltshire,13/12/2017,5107148322,684.32,AMS Care Wiltshire ,130764,SN4 ,Community Services,Cricklade,Adult Care Nursing Placements - Spot,Third Party Payments,REVENUE
Wiltshire,http://opendatacommunities.org/id/unitary-authority/wiltshire,13/12/2017,5107148592,2395,AMS Care Wiltshire ,130764,SN4 ,Community Services,Cricklade,Adult Care Nursing Placements- Block Contract,Third Party Payments,REVENUE
Wiltshire,http://opendatacommunities.org/id/unitary-authority/wiltshire,13/12/2017,5107148594,2395,AMS Care Wiltshire ,130764,SN4 ,Community Services,Malmesbury,Adult Care Nursing Placements- Block Contract,Third Party Payments,REVENUE
Wiltshire,http://opendatacommunities.org/id/unitary-authority/wiltshire,13/12/2017,5107148649,2603,AMS Care Wiltshire ,130764,SN4 ,Community Services,Cricklade,Adult Care Nursing Placements- Block Contract,Third Party Payments,REVENUE
Wiltshire,http://opendatacommunities.org/id/unitary-authority/wiltshire,13/12/2017,5107148720,2395,AMS Care Wiltshire ,130764,SN4 ,Community Services,Cricklade,Adult Care Nursing Placements- Block Contract,Third Party Payments,REVENUE
Wiltshire,http://opendatacommunities.org/id/unitary-authority/wiltshire,13/12/2017,5107148938,2395,AMS Care Wiltshire ,130764,SN4 ,Community Services,Cricklade,Adult Care Nursing Placements- Block Contract,Third Party Payments,REVENUE
Wiltshire,http://opendatacommunities.org/id/unitary-authority/wiltshire,13/12/2017,5107149125,2395,AMS Care Wiltshire ,130764,SN4 ,Community Services,Cricklade,Adult Care Nursing Placements- Block Contract,Third Party Payments,REVENUE
Wiltshire,http://opendatacommunities.org/id/unitary-authority/wiltshire,13/12/2017,5107149212,2395,AMS Care Wiltshire ,130764,SN4 ,Community Services,Cricklade,Adult Care Nursing Placements- Block Contract,Third Party Payments,REVENUE
Wiltshire,http://opendatacommunities.org/id/unitary-authority/wiltshire,13/12/2017,5107149216,2395,AMS Care Wiltshire ,130764,SN4 ,Community Services,Cricklade,Adult Care Nursing Placements- Block Contract,Third Party Payments,REVENUE
Wiltshire,http://opendatacommunities.org/id/unitary-authority/wiltshire,13/12/2017,5107149290,743.68,AMS Care Wiltshire ,130764,SN4 ,Community Services,N&E Localiity 18+ C,Adult Care Nursing Placements- Block Contract,Third Party Payments,REVENUE
Wiltshire,http://opendatacommunities.org/id/unitary-authority/wiltshire,13/12/2017,5107149316,855.4,AMS Care Wiltshire ,130764,SN4 ,Community Services,N&E Localiity 18+ C,Adult Care Nursing Placements - Spot,Third Party Payments,REVENUE
Wiltshire,http://opendatacommunities.org/id/unitary-authority/wiltshire,13/12/2017,5107149475,557.76,AMS Care Wiltshire ,130764,SN4 ,Community Services,Adult Care Gross Loa,Adult Care Loans,Capital charges and Expenditure,REVENUE
Wiltshire,http://opendatacommunities.org/id/unitary-authority/wiltshire,18/12/2017,5107151393,1539.72,AMS Care Wiltshire ,130764,SN4 ,Community Services,N&E Localiity 18+ C,Adult Care Nursing Placements- Block Contract,Third Party Payments,REVENUE
Wiltshire,http://opendatacommunities.org/id/unitary-authority/wiltshire,18/12/2017,5107151550,2730,AMS Care Wiltshire ,130764,SN4 ,Community Services,BCF-Intermediate Cr,Adult Nursing Respite,Third Party Payments,REVENUE
Wiltshire,http://opendatacommunities.org/id/unitary-authority/wiltshire,13/12/2017,1902048759,275,And Now Limited ,142290,SN13,Neighbourhood & Planning,N Wessex Downs AONB,Consultants Fees,Supplies and Services,REVENUE
Wiltshire,http://opendatacommunities.org/id/unitary-authority/wiltshire,11/12/2017,1902046476,544.64,Andy Taxis Limited ,100874,SP4 ,Neighbourhood & Planning,Mainstream Primary,Transport Contracts,Third Party Payments,REVENUE
Wiltshire,http://opendatacommunities.org/id/unitary-authority/wiltshire,11/12/2017,1902046476,1745.36,Andy Taxis Limited ,100874,SP4 ,Neighbourhood & Planning,Mainstream Secondary,Transport Contracts,Third Party Payments,REVENUE
Wiltshire,http://opendatacommunities.org/id/unitary-authority/wiltshire,08/12/2017,1902046340,1111.11,Andybus  and  Coach Ltd ,100132,SN16,Neighbourhood & Planning,Mainstream Primary,Transport Contracts,Third Party Payments,REVENUE
Wiltshire,http://opendatacommunities.org/id/unitary-authority/wiltshire,08/12/2017,1902046340,17253.34,Andybus  and  Coach Ltd ,100132,SN16,Neighbourhood & Planning,Mainstream Secondary,Transport Contracts,Third Party Payments,REVENUE
Wiltshire,http://opendatacommunities.org/id/unitary-authority/wiltshire,08/12/2017,1902046341,3087.34,Andybus  and  Coach Ltd ,100132,SN16,Neighbourhood & Planning,Mainstream Secondary,Transport Contracts,Third Party Payments,REVENUE
Wiltshire,http://opendatacommunities.org/id/unitary-authority/wiltshire,08/12/2017,1902046342,2962.79,Andybus  and  Coach Ltd ,100132,SN16,Neighbourhood & Planning,Mainstream Secondary,Transport Contracts,Third Party Payments,REVENUE
Wiltshire,http://opendatacommunities.org/id/unitary-authority/wiltshire,08/12/2017,1902046343,3174.11,Andybus  and  Coach Ltd ,100132,SN16,Neighbourhood & Planning,Mainstream Secondary,Transport Contracts,Third Party Payments,REVENUE
Wiltshire,http://opendatacommunities.org/id/unitary-authority/wiltshire,08/12/2017,1902046344,3215.23,Andybus  and  Coach Ltd ,100132,SN16,Neighbourhood & Planning,Mainstream Secondary,Transport Contracts,Third Party Payments,REVENUE
Wiltshire,http://opendatacommunities.org/id/unitary-authority/wiltshire,27/12/2017,5107154055,257.92,ANGEL HOTEL CHIPPENHAM ,110150,SN15,Children & Education,GovernorSupport,Premises Rental,Premises Related,REVENUE
Wiltshire,http://opendatacommunities.org/id/unitary-authority/wiltshire,13/12/2017,5107147569,2282.48,Angus Council ,135802,DD8 ,Community Services,CTPLD Placements,Adult Residential Placements - Spot Purchase,Third Party Payments,REVENUE
Wiltshire,http://opendatacommunities.org/id/unitary-authority/wiltshire,13/12/2017,5107147599,1396.6,Ann Adams ,134550,BA13,Community Services,White Horse,Adult Placement,Third Party Payments,REVENUE
Wiltshire,http://opendatacommunities.org/id/unitary-authority/wiltshire,13/12/2017,5107147657,1260.52,Ann Adams ,134550,BA13,Community Services,White Horse,Adult Placement,Third Party Payments,REVENUE
Wiltshire,http://opendatacommunities.org/id/unitary-authority/wiltshire,27/12/2017,1902059589,9857.13,Anti Vibration Methods ,145661,BA12,Neighbourhood & Planning,ESIF SME Initiative,Consultants Fees,Supplies and Services,REVENUE
Wiltshire,http://opendatacommunities.org/id/unitary-authority/wiltshire,28/12/2017,1902058677,950,Any Body can Cook ,125066,BA12,Community Services,Area Board SouthernW,Area Board Grants,Supplies and Services,REVENUE
Wiltshire,http://opendatacommunities.org/id/unitary-authority/wiltshire,05/12/2017,5107143944,780,APA Consultants Ltd ,113361,SN10,Neighbourhood & Planning,Development Control,Consultants Fees,Supplies and Services,REVENUE
Wiltshire,http://opendatacommunities.org/id/unitary-authority/wiltshire,14/12/2017,5107149704,780,APA Consultants Ltd ,113361,SN10,Neighbourhood & Planning,Development Control,Consultants Fees,Supplies and Services,REVENUE
Wiltshire,http://opendatacommunities.org/id/unitary-authority/wiltshire,15/12/2017,1902050014,1101.38,AquaDam Europe Ltd ,145660,SN5 ,Neighbourhood & Planning,ESIF SME Initiative,Consultants Fees,Supplies and Services,REVENUE
Wiltshire,http://opendatacommunities.org/id/unitary-authority/wiltshire,12/12/2017,5107147756,690,Aquaid South Coast ,110167,SO50,Neighbourhood & Planning,Five Rivers,Catering Equipment,Supplies and Services,REVENUE
Wiltshire,http://opendatacommunities.org/id/unitary-authority/wiltshire,12/12/2017,5107147757,520,Aquaid South Coast ,110167,SO50,Neighbourhood & Planning,Five Rivers,Catering Equipment,Supplies and Services,REVENUE
Wiltshire,http://opendatacommunities.org/id/unitary-authority/wiltshire,15/12/2017,5107150683,1020,Aquatech Drainage Mr Chris Uden,135011,DT1 ,Wiltshire Council,Wiltshire Council,Premises Related Other Maintenance Costs,Premises Related,CAPITAL
Wiltshire,http://opendatacommunities.org/id/unitary-authority/wiltshire,15/12/2017,5107150684,1180,Aquatech Drainage Mr Chris Uden,135011,DT1 ,Wiltshire Council,Wiltshire Council,Premises Related Other Maintenance Costs,Premises Related,CAPITAL
Wiltshire,http://opendatacommunities.org/id/unitary-authority/wiltshire,20/12/2017,5107152013,1275,Aquatech Drainage Mr Chris Uden,135011,DT1 ,Wiltshire Council,Wiltshire Council,Premises Related Other Maintenance Costs,Premises Related,CAPITAL
Wiltshire,http://opendatacommunities.org/id/unitary-authority/wiltshire,13/12/2017,5107146932,3600,Arbory Residential Home ,113587,SP11,Community Services,MH OP South Locality,Adult Residential Placements - Spot Purchase,Third Party Payments,REVENUE
Wiltshire,http://opendatacommunities.org/id/unitary-authority/wiltshire,13/12/2017,5107147168,2626,Arbory Residential Home ,113587,SP11,Community Services,MH OP N&E Locality,Adult Residential Placements - Spot Purchase,Third Party Payments,REVENUE
Wiltshire,http://opendatacommunities.org/id/unitary-authority/wiltshire,13/12/2017,5107148014,3472.08,Arbory Residential Home ,113587,SP11,Community Services,MH AOWA South Locali,Adult Residential Placements - Spot Purchase,Third Party Payments,REVENUE
Wiltshire,http://opendatacommunities.org/id/unitary-authority/wiltshire,13/12/2017,5107143908,1610,Arch Care Services Ltd ,110169,BS21,Community Services,MH AOWA West Localit,Supported Living,Third Party Payments,REVENUE
Wiltshire,http://opendatacommunities.org/id/unitary-authority/wiltshire,19/12/2017,5107148516,321.36,Arco Limited ,130295,HU1 ,Neighbourhood & Planning,DLO,Equipment Purchase,Supplies and Services,REVENUE
Wiltshire,http://opendatacommunities.org/id/unitary-authority/wiltshire,21/12/2017,5107153712,1150,Argyle Cleaning Services ,134885,SP1 ,Community Services,MH AOWA South Locali,Adult Domiciliary Care - Spot,Third Party Payments,REVENUE
Wiltshire,http://opendatacommunities.org/id/unitary-authority/wiltshire,13/12/2017,5107147029,2859.36,Arliemoor Care Homes ,110174,EX22,Community Services,MH AOWA South Locali,Adult Residential Placements - Spot Purchase,Third Party Payments,REVENUE
Wiltshire,http://opendatacommunities.org/id/unitary-authority/wiltshire,13/12/2017,5107148611,2272,Arliemoor Care Homes ,110174,EX22,Community Services,MH AOWA West Localit,Adult Residential Placements - Spot Purchase,Third Party Payments,REVENUE
Wiltshire,http://opendatacommunities.org/id/unitary-authority/wiltshire,13/12/2017,5107148658,2810.36,Arliemoor Care Homes ,110174,EX22,Community Services,MH AOWA South Locali,Adult Residential Placements - Spot Purchase,Third Party Payments,REVENUE
Wiltshire,http://opendatacommunities.org/id/unitary-authority/wiltshire,13/12/2017,5107149352,4312,Arliemoor Care Homes ,110174,EX22,Community Services,MH AOWA South Locali,Adult Residential Placements - Spot Purchase,Third Party Payments,REVENUE
Wiltshire,http://opendatacommunities.org/id/unitary-authority/wiltshire,18/12/2017,5107151364,2175,Arliemoor Care Homes ,110174,EX22,Community Services,MH AOWA West Localit,Adult Domiciliary Care - Spot,Third Party Payments,REVENUE
Wiltshire,http://opendatacommunities.org/id/unitary-authority/wiltshire,18/12/2017,5107151365,2175,Arliemoor Care Homes ,110174,EX22,Community Services,MH AOWA West Localit,Adult Domiciliary Care - Spot,Third Party Payments,REVENUE
Wiltshire,http://opendatacommunities.org/id/unitary-authority/wiltshire,27/12/2017,5107151820,1450,Arthur Williams Consulting Ltd ,129581,BA14,Wiltshire Council,Wiltshire Council,Consultants Fees,Supplies and Services,CAPITAL
Wiltshire,http://opendatacommunities.org/id/unitary-authority/wiltshire,27/12/2017,5107151821,1000,Arthur Williams Consulting Ltd ,129581,BA14,Wiltshire Council,Wiltshire Council,Consultants Fees,Supplies and Services,CAPITAL
Wiltshire,http://opendatacommunities.org/id/unitary-authority/wiltshire,13/12/2017,5107147565,2745.12,Ashbourne Court Care Home ,133906,SP10,Community Services,Avon,Adult Care Nursing Placements - Spot,Third Party Payments,REVENUE
Wiltshire,http://opendatacommunities.org/id/unitary-authority/wiltshire,13/12/2017,5107148074,2376.08,Ashbourne Court Care Home ,133906,SP10,Community Services,Avon,Adult Care Nursing Placements - Spot,Third Party Payments,REVENUE
Wiltshire,http://opendatacommunities.org/id/unitary-authority/wiltshire,13/12/2017,5107146475,3896.88,Ashness Care ,143773,N15 ,Community Services,MH AOWA N&E Locality,Adult Residential Placements - Spot Purchase,Third Party Payments,REVENUE
Wiltshire,http://opendatacommunities.org/id/unitary-authority/wiltshire,12/12/2017,5107143938,2100,Ashton Farms Ltd ,131129,BA14,Neighbourhood & Planning,Other Weather Emerg,Equipment Hire,Supplies and Services,REVENUE
Wiltshire,http://opendatacommunities.org/id/unitary-authority/wiltshire,13/12/2017,5107147911,1841.76,Ashton Manor Nursing Home ,139060,GU10,Community Services,Salisbury,Adult Care Nursing Placements - Spot,Third Party Payments,REVENUE
Wiltshire,http://opendatacommunities.org/id/unitary-authority/wiltshire,04/12/2017,1902032807,5153.3,Askews & Holts Library Services Ltd ,101034,PR1 ,Community Services,Libraries,Books & Publications,Supplies and Services,REVENUE
Wiltshire,http://opendatacommunities.org/id/unitary-authority/wiltshire,28/12/2017,1902047826,451.87,Askews & Holts Library Services Ltd ,101034,PR1 ,Community Services,Libraries,Books & Publications,Supplies and Services,REVENUE
Wiltshire,http://opendatacommunities.org/id/unitary-authority/wiltshire,28/12/2017,1902047826,2199.44,Askews & Holts Library Services Ltd ,101034,PR1 ,Community Services,Archives & Local Stu,Books & Publications,Supplies and Services,REVENUE
Wiltshire,http://opendatacommunities.org/id/unitary-authority/wiltshire,27/12/2017,1902059545,3891.19,Askews & Holts Library Services Ltd ,101034,PR1 ,Community Services,Libraries,Books & Publications,Supplies and Services,REVENUE
Wiltshire,http://opendatacommunities.org/id/unitary-authority/wiltshire,12/12/2017,5107140579,562.63,Askews & Holts Library Services Ltd ,101034,PR1 ,Children & Education,WiltsLearnResources,Publications / periodicals,Supplies and Services,REVENUE
Wiltshire,http://opendatacommunities.org/id/unitary-authority/wiltshire,05/12/2017,5107141496,832.36,Askews & Holts Library Services Ltd ,101034,PR1 ,Children & Education,WiltsLearnResources,Publications / periodicals,Supplies and Services,REVENUE
Wiltshire,http://opendatacommunities.org/id/unitary-authority/wiltshire,05/12/2017,5107141497,747.99,Askews & Holts Library Services Ltd ,101034,PR1 ,Children & Education,WiltsLearnResources,Publications / periodicals,Supplies and Services,REVENUE
Wiltshire,http://opendatacommunities.org/id/unitary-authority/wiltshire,13/12/2017,5107148418,4576,Aspirations Care Ltd ,137205,L20 ,Community Services,White Horse,Supported Living,Third Party Payments,REVENUE
Wiltshire,http://opendatacommunities.org/id/unitary-authority/wiltshire,15/12/2017,5107150762,4576,Aspirations Care Ltd ,137205,L20 ,Community Services,White Horse,Supported Living,Third Party Payments,REVENUE
Wiltshire,http://opendatacommunities.org/id/unitary-authority/wiltshire,20/12/2017,5107153475,3289.5,Aspirations Care Ltd ,137205,L20 ,Community Services,N&E Localiity 18+ C,Supported Living,Third Party Payments,REVENUE
Wiltshire,http://opendatacommunities.org/id/unitary-authority/wiltshire,04/12/2017,1902044621,1970,Aspire Taxis ,101274,SP2 ,Neighbourhood & Planning,SEN 16+ Secondary,Transport Contracts,Third Party Payments,REVENUE
Wiltshire,http://opendatacommunities.org/id/unitary-authority/wiltshire,08/12/2017,1902046424,770,Aspire Taxis ,101274,SP2 ,Neighbourhood & Planning,Mainstream Primary,Transport Contracts,Third Party Payments,REVENUE
Wiltshire,http://opendatacommunities.org/id/unitary-authority/wiltshire,08/12/2017,1902046425,1078,Aspire Taxis ,101274,SP2 ,Neighbourhood & Planning,Mainstream Primary,Transport Contracts,Third Party Payments,REVENUE
Wiltshire,http://opendatacommunities.org/id/unitary-authority/wiltshire,08/12/2017,1902046426,1870,Aspire Taxis ,101274,SP2 ,Neighbourhood & Planning,SEN Primary,Transport Contracts,Third Party Payments,REVENUE
Wiltshire,http://opendatacommunities.org/id/unitary-authority/wiltshire,08/12/2017,1902046429,1378.8,Aspire Taxis ,101274,SP2 ,Neighbourhood & Planning,SEN 16+ Secondary,Transport Contracts,Third Party Payments,REVENUE
Wiltshire,http://opendatacommunities.org/id/unitary-authority/wiltshire,08/12/2017,1902046430,351,Aspire Taxis ,101274,SP2 ,Community Services,CTPLD Placements,Transport Contracts,Third Party Payments,REVENUE
Wiltshire,http://opendatacommunities.org/id/unitary-authority/wiltshire,08/12/2017,1902046431,882.64,Aspire Taxis ,101274,SP2 ,Neighbourhood & Planning,Mainstream Primary,Transport Contracts,Third Party Payments,REVENUE
Wiltshire,http://opendatacommunities.org/id/unitary-authority/wiltshire,08/12/2017,1902046432,1155,Aspire Taxis ,101274,SP2 ,Community Services,CTPLD Placements,Transport Contracts,Third Party Payments,REVENUE
Wiltshire,http://opendatacommunities.org/id/unitary-authority/wiltshire,08/12/2017,1902046433,696.66,Aspire Taxis ,101274,SP2 ,Neighbourhood & Planning,SEN Primary,Transport Contracts,Third Party Payments,REVENUE
Wiltshire,http://opendatacommunities.org/id/unitary-authority/wiltshire,08/12/2017,1902046433,1393.34,Aspire Taxis ,101274,SP2 ,Neighbourhood & Planning,Mainstream Primary,Transport Contracts,Third Party Payments,REVENUE
Wiltshire,http://opendatacommunities.org/id/unitary-authority/wiltshire,08/12/2017,1902046434,612.38,Aspire Taxis ,101274,SP2 ,Neighbourhood & Planning,Mainstream Secondary,Transport Contracts,Third Party Payments,REVENUE
Wiltshire,http://opendatacommunities.org/id/unitary-authority/wiltshire,08/12/2017,1902046434,737.62,Aspire Taxis ,101274,SP2 ,Neighbourhood & Planning,Mainstream Primary,Transport Contracts,Third Party Payments,REVENUE
Wiltshire,http://opendatacommunities.org/id/unitary-authority/wiltshire,08/12/2017,1902046435,1760,Aspire Taxis ,101274,SP2 ,Neighbourhood & Planning,Mainstream Primary,Transport Contracts,Third Party Payments,REVENUE
Wiltshire,http://opendatacommunities.org/id/unitary-authority/wiltshire,08/12/2017,1902046436,1188,Aspire Taxis ,101274,SP2 ,Neighbourhood & Planning,Mainstream Secondary,Transport Contracts,Third Party Payments,REVENUE
Wiltshire,http://opendatacommunities.org/id/unitary-authority/wiltshire,08/12/2017,1902046437,1540,Aspire Taxis ,101274,SP2 ,Neighbourhood & Planning,Mainstream Primary,Transport Contracts,Third Party Payments,REVENUE
Wiltshire,http://opendatacommunities.org/id/unitary-authority/wiltshire,08/12/2017,1902046438,363,Aspire Taxis ,101274,SP2 ,Neighbourhood & Planning,Mainstream Primary,Transport Contracts,Third Party Payments,REVENUE
Wiltshire,http://opendatacommunities.org/id/unitary-authority/wiltshire,08/12/2017,1902046438,1089,Aspire Taxis ,101274,SP2 ,Neighbourhood & Planning,Mainstream Secondary,Transport Contracts,Third Party Payments,REVENUE
Wiltshire,http://opendatacommunities.org/id/unitary-authority/wiltshire,08/12/2017,1902046439,1870,Aspire Taxis ,101274,SP2 ,Neighbourhood & Planning,Mainstream Secondary,Transport Contracts,Third Party Payments,REVENUE
Wiltshire,http://opendatacommunities.org/id/unitary-authority/wiltshire,08/12/2017,1902046440,792,Aspire Taxis ,101274,SP2 ,Neighbourhood & Planning,Mainstream Primary,Transport Contracts,Third Party Payments,REVENUE
Wiltshire,http://opendatacommunities.org/id/unitary-authority/wiltshire,08/12/2017,1902046442,1760,Aspire Taxis ,101274,SP2 ,Neighbourhood & Planning,SEN Secondary,Transport Contracts,Third Party Payments,REVENUE
Wiltshire,http://opendatacommunities.org/id/unitary-authority/wiltshire,08/12/2017,1902046443,1040,Aspire Taxis ,101274,SP2 ,Neighbourhood & Planning,Mainstream Secondary,Transport Contracts,Third Party Payments,REVENUE
Wiltshire,http://opendatacommunities.org/id/unitary-authority/wiltshire,08/12/2017,1902046444,1760,Aspire Taxis ,101274,SP2 ,Neighbourhood & Planning,SEN 16+ Secondary,Transport Contracts,Third Party Payments,REVENUE
Wiltshire,http://opendatacommunities.org/id/unitary-authority/wiltshire,20/12/2017,1902058151,2810,Aspire Taxis ,101274,SP2 ,Neighbourhood & Planning,SEN 16+ Secondary,Transport Contracts,Third Party Payments,REVENUE
Wiltshire,http://opendatacommunities.org/id/unitary-authority/wiltshire,01/12/2017,5107143539,13826.67,Assoc Of Electoral Administrators ,113675,SR2 ,Resources,RegistrationofElectr,Consultants Fees,Supplies and Services,REVENUE
Wiltshire,http://opendatacommunities.org/id/unitary-authority/wiltshire,01/12/2017,1902042287,650,Aster ,135687,SN10,Wiltshire Council,Wiltshire Council,Professional Fees,Supplies and Services,CAPITAL
Wiltshire,http://opendatacommunities.org/id/unitary-authority/wiltshire,01/12/2017,1902043493,676,Aster ,135687,SN10,Wiltshire Council,Wiltshire Council,Professional Fees,Supplies and Services,CAPITAL
Wiltshire,http://opendatacommunities.org/id/unitary-authority/wiltshire,20/12/2017,1902043947,500,Aster ,135687,SN10,Wiltshire Council,Wiltshire Council,Professional Fees,Supplies and Services,CAPITAL
Wiltshire,http://opendatacommunities.org/id/unitary-authority/wiltshire,20/12/2017,1902044686,1223,Aster ,135687,SN10,Wiltshire Council,Wiltshire Council,Professional Fees,Supplies and Services,CAPITAL
Wiltshire,http://opendatacommunities.org/id/unitary-authority/wiltshire,20/12/2017,1902045070,369.2,Aster ,135687,SN10,Wiltshire Council,Wiltshire Council,Professional Fees,Supplies and Services,CAPITAL
Wiltshire,http://opendatacommunities.org/id/unitary-authority/wiltshire,20/12/2017,1902045072,884,Aster ,135687,SN10,Wiltshire Council,Wiltshire Council,Professional Fees,Supplies and Services,CAPITAL
Wiltshire,http://opendatacommunities.org/id/unitary-authority/wiltshire,20/12/2017,1902045073,1032,Aster ,135687,SN10,Wiltshire Council,Wiltshire Council,Professional Fees,Supplies and Services,CAPITAL
Wiltshire,http://opendatacommunities.org/id/unitary-authority/wiltshire,21/12/2017,1902045410,500,Aster ,135687,SN10,Wiltshire Council,Wiltshire Council,Professional Fees,Supplies and Services,CAPITAL
Wiltshire,http://opendatacommunities.org/id/unitary-authority/wiltshire,21/12/2017,1902045411,500,Aster ,135687,SN10,Wiltshire Council,Wiltshire Council,Professional Fees,Supplies and Services,CAPITAL
Wiltshire,http://opendatacommunities.org/id/unitary-authority/wiltshire,21/12/2017,1902046205,500,Aster ,135687,SN10,Wiltshire Council,Wiltshire Council,Professional Fees,Supplies and Services,CAPITAL
Wiltshire,http://opendatacommunities.org/id/unitary-authority/wiltshire,21/12/2017,1902049280,3000,Aster ,135687,SN10,Wiltshire Council,Wiltshire Council,Professional Fees,Supplies and Services,CAPITAL
Wiltshire,http://opendatacommunities.org/id/unitary-authority/wiltshire,28/12/2017,1902058076,500,Aster ,135687,SN10,Wiltshire Council,Wiltshire Council,Professional Fees,Supplies and Services,CAPITAL
Wiltshire,http://opendatacommunities.org/id/unitary-authority/wiltshire,20/12/2017,1902058195,500,Aster ,135687,SN10,Wiltshire Council,Wiltshire Council,Professional Fees,Supplies and Services,CAPITAL
Wiltshire,http://opendatacommunities.org/id/unitary-authority/wiltshire,28/12/2017,1902058680,483,Aster ,135687,SN10,Wiltshire Council,Wiltshire Council,Professional Fees,Supplies and Services,CAPITAL
Wiltshire,http://opendatacommunities.org/id/unitary-authority/wiltshire,28/12/2017,1902058681,500,Aster ,135687,SN10,Wiltshire Council,Wiltshire Council,Professional Fees,Supplies and Services,CAPITAL
Wiltshire,http://opendatacommunities.org/id/unitary-authority/wiltshire,28/12/2017,1902058682,500,Aster ,135687,SN10,Wiltshire Council,Wiltshire Council,Professional Fees,Supplies and Services,CAPITAL
Wiltshire,http://opendatacommunities.org/id/unitary-authority/wiltshire,07/12/2017,1902045992,6501.43,Atkins Ltd ,110197,KT18,Wiltshire Council,Wiltshire Council,Highways Term - Consultant,Third Party Payments,CAPITAL
Wiltshire,http://opendatacommunities.org/id/unitary-authority/wiltshire,15/12/2017,1902049888,276.98,Atkins Ltd ,110197,KT18,Wiltshire Council,Wiltshire Council,Highways Term - Consultant,Third Party Payments,CAPITAL
Wiltshire,http://opendatacommunities.org/id/unitary-authority/wiltshire,15/12/2017,1902049888,300.11,Atkins Ltd ,110197,KT18,Wiltshire Council,Wiltshire Council,Highways Term - Consultant,Third Party Payments,CAPITAL
Wiltshire,http://opendatacommunities.org/id/unitary-authority/wiltshire,15/12/2017,1902049888,303.56,Atkins Ltd ,110197,KT18,Wiltshire Council,Wiltshire Council,Highways Term - Consultant,Third Party Payments,CAPITAL
Wiltshire,http://opendatacommunities.org/id/unitary-authority/wiltshire,15/12/2017,1902049888,323.21,Atkins Ltd ,110197,KT18,Wiltshire Council,Wiltshire Council,Highways Term - Consultant,Third Party Payments,CAPITAL
Wiltshire,http://opendatacommunities.org/id/unitary-authority/wiltshire,15/12/2017,1902049888,324.49,Atkins Ltd ,110197,KT18,Wiltshire Council,Wiltshire Council,Highways Term - Consultant,Third Party Payments,CAPITAL
Wiltshire,http://opendatacommunities.org/id/unitary-authority/wiltshire,15/12/2017,1902049888,593.66,Atkins Ltd ,110197,KT18,Wiltshire Council,Wiltshire Council,Highways Term - Consultant,Third Party Payments,CAPITAL
Wiltshire,http://opendatacommunities.org/id/unitary-authority/wiltshire,15/12/2017,1902049888,600,Atkins Ltd ,110197,KT18,Wiltshire Council,Wiltshire Council,Highways Term - Consultant,Third Party Payments,CAPITAL
Wiltshire,http://opendatacommunities.org/id/unitary-authority/wiltshire,15/12/2017,1902049888,790.47,Atkins Ltd ,110197,KT18,Wiltshire Council,Wiltshire Council,Highways Term - Consultant,Third Party Payments,CAPITAL
Wiltshire,http://opendatacommunities.org/id/unitary-authority/wiltshire,15/12/2017,1902049888,1005.97,Atkins Ltd ,110197,KT18,Wiltshire Council,Wiltshire Council,Highways Term - Consultant,Third Party Payments,CAPITAL
Wiltshire,http://opendatacommunities.org/id/unitary-authority/wiltshire,15/12/2017,1902049888,1050,Atkins Ltd ,110197,KT18,Wiltshire Council,Wiltshire Council,Highways Term - Consultant,Third Party Payments,CAPITAL
Wiltshire,http://opendatacommunities.org/id/unitary-authority/wiltshire,15/12/2017,1902049888,1088.73,Atkins Ltd ,110197,KT18,Wiltshire Council,Wiltshire Council,Highways Term - Consultant,Third Party Payments,CAPITAL
Wiltshire,http://opendatacommunities.org/id/unitary-authority/wiltshire,15/12/2017,1902049888,1093.07,Atkins Ltd ,110197,KT18,Wiltshire Council,Wiltshire Council,Highways Term - Consultant,Third Party Payments,CAPITAL
Wiltshire,http://opendatacommunities.org/id/unitary-authority/wiltshire,15/12/2017,1902049888,1357.98,Atkins Ltd ,110197,KT18,Wiltshire Council,Wiltshire Council,Highways Term - Consultant,Third Party Payments,CAPITAL
Wiltshire,http://opendatacommunities.org/id/unitary-authority/wiltshire,15/12/2017,1902049888,1568.19,Atkins Ltd ,110197,KT18,Wiltshire Council,Wiltshire Council,Highways Term - Consultant,Third Party Payments,CAPITAL
Wiltshire,http://opendatacommunities.org/id/unitary-authority/wiltshire,15/12/2017,1902049888,1650,Atkins Ltd ,110197,KT18,Wiltshire Council,Wiltshire Council,Highways Term - Consultant,Third Party Payments,CAPITAL
Wiltshire,http://opendatacommunities.org/id/unitary-authority/wiltshire,15/12/2017,1902049888,1652.89,Atkins Ltd ,110197,KT18,Wiltshire Council,Wiltshire Council,Highways Term - Consultant,Third Party Payments,CAPITAL
Wiltshire,http://opendatacommunities.org/id/unitary-authority/wiltshire,15/12/2017,1902049888,1812.58,Atkins Ltd ,110197,KT18,Wiltshire Council,Wiltshire Council,Highways Term - Consultant,Third Party Payments,CAPITAL
Wiltshire,http://opendatacommunities.org/id/unitary-authority/wiltshire,15/12/2017,1902049888,2207.62,Atkins Ltd ,110197,KT18,Wiltshire Council,Wiltshire Council,Highways Term - Consultant,Third Party Payments,CAPITAL
Wiltshire,http://opendatacommunities.org/id/unitary-authority/wiltshire,15/12/2017,1902049888,2447.78,Atkins Ltd ,110197,KT18,Community Services,One Public Estate,Highways Term - Consultant,Third Party Payments,REVENUE
Wiltshire,http://opendatacommunities.org/id/unitary-authority/wiltshire,15/12/2017,1902049888,2767.65,Atkins Ltd ,110197,KT18,Wiltshire Council,Wiltshire Council,Highways Term - Consultant,Third Party Payments,CAPITAL
Wiltshire,http://opendatacommunities.org/id/unitary-authority/wiltshire,15/12/2017,1902049888,2872.09,Atkins Ltd ,110197,KT18,Wiltshire Council,Wiltshire Council,Highways Term - Consultant,Third Party Payments,CAPITAL
Wiltshire,http://opendatacommunities.org/id/unitary-authority/wiltshire,15/12/2017,1902049888,3026.19,Atkins Ltd ,110197,KT18,Wiltshire Council,Wiltshire Council,Highways Term - Consultant,Third Party Payments,CAPITAL
Wiltshire,http://opendatacommunities.org/id/unitary-authority/wiltshire,15/12/2017,1902049888,4600.16,Atkins Ltd ,110197,KT18,Wiltshire Council,Wiltshire Council,Highways Term - Consultant,Third Party Payments,CAPITAL
Wiltshire,http://opendatacommunities.org/id/unitary-authority/wiltshire,15/12/2017,1902049888,4757.22,Atkins Ltd ,110197,KT18,Wiltshire Council,Wiltshire Council,Highways Term - Consultant,Third Party Payments,CAPITAL
Wiltshire,http://opendatacommunities.org/id/unitary-authority/wiltshire,15/12/2017,1902049888,5137.97,Atkins Ltd ,110197,KT18,Wiltshire Council,Wiltshire Council,Highways Term - Consultant,Third Party Payments,CAPITAL
Wiltshire,http://opendatacommunities.org/id/unitary-authority/wiltshire,15/12/2017,1902049888,6878.11,Atkins Ltd ,110197,KT18,Neighbourhood & Planning,Traffic Signal Mtc,Highways Term - Consultant,Third Party Payments,REVENUE
Wiltshire,http://opendatacommunities.org/id/unitary-authority/wiltshire,15/12/2017,1902049888,7032.63,Atkins Ltd ,110197,KT18,Wiltshire Council,Wiltshire Council,Highways Term - Consultant,Third Party Payments,CAPITAL
Wiltshire,http://opendatacommunities.org/id/unitary-authority/wiltshire,15/12/2017,1902049888,7531.65,Atkins Ltd ,110197,KT18,Neighbourhood & Planning,Network Manager Team,Highways Term - Consultant,Third Party Payments,REVENUE
Wiltshire,http://opendatacommunities.org/id/unitary-authority/wiltshire,15/12/2017,1902049888,7990.64,Atkins Ltd ,110197,KT18,Neighbourhood & Planning,Highw Hedges & Trees,Highways Term - Consultant,Third Party Payments,REVENUE
Wiltshire,http://opendatacommunities.org/id/unitary-authority/wiltshire,15/12/2017,1902049888,9207.22,Atkins Ltd ,110197,KT18,Neighbourhood & Planning,Transport Plan & DC,Highways Term - Consultant,Third Party Payments,REVENUE
Wiltshire,http://opendatacommunities.org/id/unitary-authority/wiltshire,15/12/2017,1902049888,12482.56,Atkins Ltd ,110197,KT18,Wiltshire Council,Wiltshire Council,Highways Term - Consultant,Third Party Payments,CAPITAL
Wiltshire,http://opendatacommunities.org/id/unitary-authority/wiltshire,15/12/2017,1902049888,15015.68,Atkins Ltd ,110197,KT18,Wiltshire Council,Wiltshire Council,Highways Term - Consultant,Third Party Payments,CAPITAL
Wiltshire,http://opendatacommunities.org/id/unitary-authority/wiltshire,15/12/2017,1902049888,17485.7,Atkins Ltd ,110197,KT18,Wiltshire Council,Wiltshire Council,Highways Term - Consultant,Third Party Payments,CAPITAL
Wiltshire,http://opendatacommunities.org/id/unitary-authority/wiltshire,15/12/2017,1902049888,18924.9,Atkins Ltd ,110197,KT18,Neighbourhood & Planning,Bridge Routine Mtc,Highways Term - Consultant,Third Party Payments,REVENUE
Wiltshire,http://opendatacommunities.org/id/unitary-authority/wiltshire,15/12/2017,1902049888,19464.98,Atkins Ltd ,110197,KT18,Neighbourhood & Planning,Street Lighting,Highways Term - Consultant,Third Party Payments,REVENUE
Wiltshire,http://opendatacommunities.org/id/unitary-authority/wiltshire,15/12/2017,1902049888,22709,Atkins Ltd ,110197,KT18,Wiltshire Council,Wiltshire Council,Highways Term - Consultant,Third Party Payments,CAPITAL
Wiltshire,http://opendatacommunities.org/id/unitary-authority/wiltshire,15/12/2017,1902049888,29167.13,Atkins Ltd ,110197,KT18,Wiltshire Council,Wiltshire Council,Highways Term - Consultant,Third Party Payments,CAPITAL
Wiltshire,http://opendatacommunities.org/id/unitary-authority/wiltshire,15/12/2017,1902049888,55063.54,Atkins Ltd ,110197,KT18,Wiltshire Council,Wiltshire Council,Highways Term - Consultant,Third Party Payments,CAPITAL
Wiltshire,http://opendatacommunities.org/id/unitary-authority/wiltshire,15/12/2017,1902049888,63560.15,Atkins Ltd ,110197,KT18,Wiltshire Council,Wiltshire Council,Highways Term - Consultant,Third Party Payments,CAPITAL
Wiltshire,http://opendatacommunities.org/id/unitary-authority/wiltshire,15/12/2017,1902049888,124039.8,Atkins Ltd ,110197,KT18,Wiltshire Council,Wiltshire Council,Highways Term - Consultant,Third Party Payments,CAPITAL
Wiltshire,http://opendatacommunities.org/id/unitary-authority/wiltshire,21/12/2017,1902057441,300.32,Atkins Ltd ,110197,KT18,Wiltshire Council,Wiltshire Council,Highways Term - Consultant,Third Party Payments,CAPITAL
Wiltshire,http://opendatacommunities.org/id/unitary-authority/wiltshire,21/12/2017,1902057441,384.62,Atkins Ltd ,110197,KT18,Wiltshire Council,Wiltshire Council,Highways Term - Consultant,Third Party Payments,CAPITAL
Wiltshire,http://opendatacommunities.org/id/unitary-authority/wiltshire,21/12/2017,1902057441,496.19,Atkins Ltd ,110197,KT18,Wiltshire Council,Wiltshire Council,Highways Term - Consultant,Third Party Payments,CAPITAL
Wiltshire,http://opendatacommunities.org/id/unitary-authority/wiltshire,21/12/2017,1902057441,566.34,Atkins Ltd ,110197,KT18,Wiltshire Council,Wiltshire Council,Highways Term - Consultant,Third Party Payments,CAPITAL
Wiltshire,http://opendatacommunities.org/id/unitary-authority/wiltshire,21/12/2017,1902057441,579.84,Atkins Ltd ,110197,KT18,Wiltshire Council,Wiltshire Council,Highways Term - Consultant,Third Party Payments,CAPITAL
Wiltshire,http://opendatacommunities.org/id/unitary-authority/wiltshire,21/12/2017,1902057441,627.43,Atkins Ltd ,110197,KT18,Wiltshire Council,Wiltshire Council,Highways Term - Consultant,Third Party Payments,CAPITAL
Wiltshire,http://opendatacommunities.org/id/unitary-authority/wiltshire,21/12/2017,1902057441,728.44,Atkins Ltd ,110197,KT18,Wiltshire Council,Wiltshire Council,Highways Term - Consultant,Third Party Payments,CAPITAL
Wiltshire,http://opendatacommunities.org/id/unitary-authority/wiltshire,21/12/2017,1902057441,992.37,Atkins Ltd ,110197,KT18,Wiltshire Council,Wiltshire Council,Highways Term - Consultant,Third Party Payments,CAPITAL
Wiltshire,http://opendatacommunities.org/id/unitary-authority/wiltshire,21/12/2017,1902057441,1208.92,Atkins Ltd ,110197,KT18,Wiltshire Council,Wiltshire Council,Highways Term - Consultant,Third Party Payments,CAPITAL
Wiltshire,http://opendatacommunities.org/id/unitary-authority/wiltshire,21/12/2017,1902057441,1443.22,Atkins Ltd ,110197,KT18,Wiltshire Council,Wiltshire Council,Highways Term - Consultant,Third Party Payments,CAPITAL
Wiltshire,http://opendatacommunities.org/id/unitary-authority/wiltshire,21/12/2017,1902057441,1529.3,Atkins Ltd ,110197,KT18,Wiltshire Council,Wiltshire Council,Highways Term - Consultant,Third Party Payments,CAPITAL
Wiltshire,http://opendatacommunities.org/id/unitary-authority/wiltshire,21/12/2017,1902057441,1656.98,Atkins Ltd ,110197,KT18,Wiltshire Council,Wiltshire Council,Highways Term - Consultant,Third Party Payments,CAPITAL
Wiltshire,http://opendatacommunities.org/id/unitary-authority/wiltshire,21/12/2017,1902057441,1919.12,Atkins Ltd ,110197,KT18,Wiltshire Council,Wiltshire Council,Highways Term - Consultant,Third Party Payments,CAPITAL
Wiltshire,http://opendatacommunities.org/id/unitary-authority/wiltshire,21/12/2017,1902057441,2006.62,Atkins Ltd ,110197,KT18,Wiltshire Council,Wiltshire Council,Highways Term - Consultant,Third Party Payments,CAPITAL
Wiltshire,http://opendatacommunities.org/id/unitary-authority/wiltshire,21/12/2017,1902057441,2067.19,Atkins Ltd ,110197,KT18,Wiltshire Council,Wiltshire Council,Highways Term - Consultant,Third Party Payments,CAPITAL
Wiltshire,http://opendatacommunities.org/id/unitary-authority/wiltshire,21/12/2017,1902057441,2310.55,Atkins Ltd ,110197,KT18,Wiltshire Council,Wiltshire Council,Highways Term - Consultant,Third Party Payments,CAPITAL
Wiltshire,http://opendatacommunities.org/id/unitary-authority/wiltshire,21/12/2017,1902057441,2468.2,Atkins Ltd ,110197,KT18,Wiltshire Council,Wiltshire Council,Highways Term - Consultant,Third Party Payments,CAPITAL
Wiltshire,http://opendatacommunities.org/id/unitary-authority/wiltshire,21/12/2017,1902057441,2836.5,Atkins Ltd ,110197,KT18,Neighbourhood & Planning,Bridge Routine Mtc,Highways Term - Consultant,Third Party Payments,REVENUE
Wiltshire,http://opendatacommunities.org/id/unitary-authority/wiltshire,21/12/2017,1902057441,3066.6,Atkins Ltd ,110197,KT18,Wiltshire Council,Wiltshire Council,Highways Term - Consultant,Third Party Payments,CAPITAL
Wiltshire,http://opendatacommunities.org/id/unitary-authority/wiltshire,21/12/2017,1902057441,3135.37,Atkins Ltd ,110197,KT18,Wiltshire Council,Wiltshire Council,Highways Term - Consultant,Third Party Payments,CAPITAL
Wiltshire,http://opendatacommunities.org/id/unitary-authority/wiltshire,21/12/2017,1902057441,3340.33,Atkins Ltd ,110197,KT18,Wiltshire Council,Wiltshire Council,Highways Term - Consultant,Third Party Payments,CAPITAL
Wiltshire,http://opendatacommunities.org/id/unitary-authority/wiltshire,21/12/2017,1902057441,3423.95,Atkins Ltd ,110197,KT18,Wiltshire Council,Wiltshire Council,Highways Term - Consultant,Third Party Payments,CAPITAL
Wiltshire,http://opendatacommunities.org/id/unitary-authority/wiltshire,21/12/2017,1902057441,4521.01,Atkins Ltd ,110197,KT18,Wiltshire Council,Wiltshire Council,Highways Term - Consultant,Third Party Payments,CAPITAL
Wiltshire,http://opendatacommunities.org/id/unitary-authority/wiltshire,21/12/2017,1902057441,6694.8,Atkins Ltd ,110197,KT18,Neighbourhood & Planning,Network Manager Team,Highways Term - Consultant,Third Party Payments,REVENUE
Wiltshire,http://opendatacommunities.org/id/unitary-authority/wiltshire,21/12/2017,1902057441,7659.58,Atkins Ltd ,110197,KT18,Neighbourhood & Planning,Traffic Signal Mtc,Highways Term - Consultant,Third Party Payments,REVENUE
Wiltshire,http://opendatacommunities.org/id/unitary-authority/wiltshire,21/12/2017,1902057441,8140.48,Atkins Ltd ,110197,KT18,Neighbourhood & Planning,Highw Hedges & Trees,Highways Term - Consultant,Third Party Payments,REVENUE
Wiltshire,http://opendatacommunities.org/id/unitary-authority/wiltshire,21/12/2017,1902057441,10519.68,Atkins Ltd ,110197,KT18,Wiltshire Council,Wiltshire Council,Highways Term - Consultant,Third Party Payments,CAPITAL
Wiltshire,http://opendatacommunities.org/id/unitary-authority/wiltshire,21/12/2017,1902057441,10990.33,Atkins Ltd ,110197,KT18,Neighbourhood & Planning,Transport Plan & DC,Highways Term - Consultant,Third Party Payments,REVENUE
Wiltshire,http://opendatacommunities.org/id/unitary-authority/wiltshire,21/12/2017,1902057441,15745.37,Atkins Ltd ,110197,KT18,Wiltshire Council,Wiltshire Council,Highways Term - Consultant,Third Party Payments,CAPITAL
Wiltshire,http://opendatacommunities.org/id/unitary-authority/wiltshire,21/12/2017,1902057441,20338.91,Atkins Ltd ,110197,KT18,Wiltshire Council,Wiltshire Council,Highways Term - Consultant,Third Party Payments,CAPITAL
Wiltshire,http://opendatacommunities.org/id/unitary-authority/wiltshire,21/12/2017,1902057441,22351.73,Atkins Ltd ,110197,KT18,Neighbourhood & Planning,Street Lighting,Highways Term - Consultant,Third Party Payments,REVENUE
Wiltshire,http://opendatacommunities.org/id/unitary-authority/wiltshire,21/12/2017,1902057441,23725.12,Atkins Ltd ,110197,KT18,Wiltshire Council,Wiltshire Council,Highways Term - Consultant,Third Party Payments,CAPITAL
Wiltshire,http://opendatacommunities.org/id/unitary-authority/wiltshire,21/12/2017,1902057441,28122.89,Atkins Ltd ,110197,KT18,Wiltshire Council,Wiltshire Council,Highways Term - Consultant,Third Party Payments,CAPITAL
Wiltshire,http://opendatacommunities.org/id/unitary-authority/wiltshire,21/12/2017,1902057441,31290.07,Atkins Ltd ,110197,KT18,Wiltshire Council,Wiltshire Council,Highways Term - Consultant,Third Party Payments,CAPITAL
Wiltshire,http://opendatacommunities.org/id/unitary-authority/wiltshire,21/12/2017,1902057441,44381.31,Atkins Ltd ,110197,KT18,Wiltshire Council,Wiltshire Council,Highways Term - Consultant,Third Party Payments,CAPITAL
Wiltshire,http://opendatacommunities.org/id/unitary-authority/wiltshire,21/12/2017,1902057441,171289.28,Atkins Ltd ,110197,KT18,Wiltshire Council,Wiltshire Council,Highways Term - Consultant,Third Party Payments,CAPITAL
Wiltshire,http://opendatacommunities.org/id/unitary-authority/wiltshire,28/12/2017,5107154088,1082.9,Atkinson Lewis ,143942,SA5 ,Children & Education,HQ Social Care,Witness / Jurors' / Justice's Expenses,Supplies and Services,REVENUE
Wiltshire,http://opendatacommunities.org/id/unitary-authority/wiltshire,05/12/2017,1902035258,40768,Audience Systems Ltd ,125200,BA13,Wiltshire Council,Wiltshire Council,Equipment Purchase,Supplies and Services,CAPITAL
Wiltshire,http://opendatacommunities.org/id/unitary-authority/wiltshire,21/12/2017,1901913931,916.4,Audley Care White Horse ,121958,SN8 ,Community Services,HTLAH - Neighbourhoo,Interim Support Plan - HTLAH,Third Party Payments,REVENUE
Wiltshire,http://opendatacommunities.org/id/unitary-authority/wiltshire,21/12/2017,1901913932,407.29,Audley Care White Horse ,121958,SN8 ,Community Services,HTLAH - Neighbourhoo,Interim Support Plan - HTLAH,Third Party Payments,REVENUE
Wiltshire,http://opendatacommunities.org/id/unitary-authority/wiltshire,07/12/2017,1902045579,397.2,Audley Care White Horse ,121958,SN8 ,Community Services,HTLAH - Neighbourhoo,Interim Support Plan - HTLAH,Third Party Payments,REVENUE
Wiltshire,http://opendatacommunities.org/id/unitary-authority/wiltshire,07/12/2017,1902045580,394.5,Audley Care White Horse ,121958,SN8 ,Community Services,HTLAH - Neighbourhoo,Interim Support Plan - HTLAH,Third Party Payments,REVENUE
Wiltshire,http://opendatacommunities.org/id/unitary-authority/wiltshire,07/12/2017,1902045582,568.55,Audley Care White Horse ,121958,SN8 ,Community Services,HTLAH - Neighbourhoo,Interim Support Plan - HTLAH,Third Party Payments,REVENUE
Wiltshire,http://opendatacommunities.org/id/unitary-authority/wiltshire,07/12/2017,1902045583,355,Audley Care White Horse ,121958,SN8 ,Community Services,HTLAH - Neighbourhoo,Interim Support Plan - HTLAH,Third Party Payments,REVENUE
Wiltshire,http://opendatacommunities.org/id/unitary-authority/wiltshire,07/12/2017,1902045585,1765.6,Audley Care White Horse ,121958,SN8 ,Community Services,HTLAH - Neighbourhoo,Interim Support Plan - HTLAH,Third Party Payments,REVENUE
Wiltshire,http://opendatacommunities.org/id/unitary-authority/wiltshire,07/12/2017,1902045586,252.9,Audley Care White Horse ,121958,SN8 ,Community Services,HTLAH - Neighbourhoo,Interim Support Plan - HTLAH,Third Party Payments,REVENUE
Wiltshire,http://opendatacommunities.org/id/unitary-authority/wiltshire,20/12/2017,1902058025,385.98,Audley Care White Horse ,121958,SN8 ,Community Services,Cricklade,Adult Domiciliary Care - Spot Contribution,Income,REVENUE
Wiltshire,http://opendatacommunities.org/id/unitary-authority/wiltshire,28/12/2017,1902059747,1235,Audley Care White Horse ,121958,SN8 ,Community Services,HTLAH - Neighbourhoo,Interim Support Plan - HTLAH,Third Party Payments,REVENUE
Wiltshire,http://opendatacommunities.org/id/unitary-authority/wiltshire,28/12/2017,1902059749,1409.7,Audley Care White Horse ,121958,SN8 ,Community Services,HTLAH - Neighbourhoo,Interim Support Plan - HTLAH,Third Party Payments,REVENUE
Wiltshire,http://opendatacommunities.org/id/unitary-authority/wiltshire,06/12/2017,5107144714,2521.02,Audley Care White Horse ,121958,SN8 ,Community Services,Marlborough,Adult Domiciliary Care - Spot Contribution,Income,REVENUE
Wiltshire,http://opendatacommunities.org/id/unitary-authority/wiltshire,13/12/2017,5107149556,414.5,Audley Care White Horse ,121958,SN8 ,Community Services,Cricklade,Adult Domiciliary Care - Spot,Third Party Payments,REVENUE
Wiltshire,http://opendatacommunities.org/id/unitary-authority/wiltshire,15/12/2017,5107150655,916.14,Audley Care White Horse ,121958,SN8 ,Community Services,Marlborough,Adult Domiciliary Care - Spot Contribution,Income,REVENUE
Wiltshire,http://opendatacommunities.org/id/unitary-authority/wiltshire,15/12/2017,5107150656,3045.2,Audley Care White Horse ,121958,SN8 ,Community Services,Marlborough,Adult Domiciliary Care - Spot,Third Party Payments,REVENUE
Wiltshire,http://opendatacommunities.org/id/unitary-authority/wiltshire,15/12/2017,5107150658,1157.84,Audley Care White Horse ,121958,SN8 ,Community Services,Marlborough,Adult Domiciliary Care - Spot Contribution,Income,REVENUE
Wiltshire,http://opendatacommunities.org/id/unitary-authority/wiltshire,15/12/2017,5107150666,576.9,Audley Care White Horse ,121958,SN8 ,Community Services,Cricklade,Adult Domiciliary Care - Spot,Third Party Payments,REVENUE
Wiltshire,http://opendatacommunities.org/id/unitary-authority/wiltshire,15/12/2017,5107150667,450,Audley Care White Horse ,121958,SN8 ,Community Services,Cricklade,Adult Domiciliary Care - Spot,Third Party Payments,REVENUE
Wiltshire,http://opendatacommunities.org/id/unitary-authority/wiltshire,15/12/2017,5107150677,1266.72,Audley Care White Horse ,121958,SN8 ,Community Services,Orchard,Adult Domiciliary Care - Spot Contribution,Income,REVENUE
Wiltshire,http://opendatacommunities.org/id/unitary-authority/wiltshire,15/12/2017,5107150679,636.6,Audley Care White Horse ,121958,SN8 ,Community Services,Marlborough,Adult Domiciliary Care - Spot,Third Party Payments,REVENUE
Wiltshire,http://opendatacommunities.org/id/unitary-authority/wiltshire,15/12/2017,5107150690,1392.32,Audley Care White Horse ,121958,SN8 ,Community Services,Marlborough,Adult Domiciliary Care - Spot Contribution,Income,REVENUE
Wiltshire,http://opendatacommunities.org/id/unitary-authority/wiltshire,15/12/2017,5107150697,2595,Audley Care White Horse ,121958,SN8 ,Community Services,Cricklade,Adult Domiciliary Care - Spot,Third Party Payments,REVENUE
Wiltshire,http://opendatacommunities.org/id/unitary-authority/wiltshire,15/12/2017,5107150699,671,Audley Care White Horse ,121958,SN8 ,Community Services,Cricklade,Adult Domiciliary Care - Spot,Third Party Payments,REVENUE
Wiltshire,http://opendatacommunities.org/id/unitary-authority/wiltshire,15/12/2017,5107150750,2092.79,Audley Care White Horse ,121958,SN8 ,Community Services,Marlborough,Adult Domiciliary Care - Spot,Third Party Payments,REVENUE
Wiltshire,http://opendatacommunities.org/id/unitary-authority/wiltshire,15/12/2017,5107150753,1399.64,Audley Care White Horse ,121958,SN8 ,Community Services,Malmesbury,Adult Domiciliary Care - Spot Contribution,Income,REVENUE
Wiltshire,http://opendatacommunities.org/id/unitary-authority/wiltshire,15/12/2017,5107150755,1199.16,Audley Care White Horse ,121958,SN8 ,Community Services,Cricklade,Adult Domiciliary Care - Spot,Third Party Payments,REVENUE
Wiltshire,http://opendatacommunities.org/id/unitary-authority/wiltshire,20/12/2017,5107151887,2386.99,Audley Care White Horse ,121958,SN8 ,Community Services,Cricklade,Adult Domiciliary Care - Spot Contribution,Income,REVENUE
Wiltshire,http://opendatacommunities.org/id/unitary-authority/wiltshire,20/12/2017,5107153428,406.88,Audley Care White Horse ,121958,SN8 ,Community Services,Malmesbury,Adult Domiciliary Care - Spot,Third Party Payments,REVENUE
Wiltshire,http://opendatacommunities.org/id/unitary-authority/wiltshire,20/12/2017,5107153444,315.6,Audley Care White Horse ,121958,SN8 ,Community Services,Orchard,Adult Domiciliary Care - Spot,Third Party Payments,REVENUE
Wiltshire,http://opendatacommunities.org/id/unitary-authority/wiltshire,20/12/2017,5107153447,323.94,Audley Care White Horse ,121958,SN8 ,Community Services,Marlborough,Adult Domiciliary Care - Spot Contribution,Income,REVENUE
Wiltshire,http://opendatacommunities.org/id/unitary-authority/wiltshire,20/12/2017,5107153450,895.31,Audley Care White Horse ,121958,SN8 ,Community Services,Marlborough,Adult Domiciliary Care - Spot,Third Party Payments,REVENUE
Wiltshire,http://opendatacommunities.org/id/unitary-authority/wiltshire,20/12/2017,5107153451,315.6,Audley Care White Horse ,121958,SN8 ,Community Services,Marlborough,Adult Domiciliary Care - Spot,Third Party Payments,REVENUE
Wiltshire,http://opendatacommunities.org/id/unitary-authority/wiltshire,20/12/2017,5107153453,704.84,Audley Care White Horse ,121958,SN8 ,Community Services,Cricklade,Adult Domiciliary Care - Spot Contribution,Income,REVENUE
Wiltshire,http://opendatacommunities.org/id/unitary-authority/wiltshire,21/12/2017,5107153693,502.84,Audley Care White Horse ,121958,SN8 ,Community Services,Cricklade,Adult Domiciliary Care - Spot Contribution,Income,REVENUE
Wiltshire,http://opendatacommunities.org/id/unitary-authority/wiltshire,21/12/2017,5107153706,525.83,Audley Care White Horse ,121958,SN8 ,Community Services,Marlborough,Adult Domiciliary Care - Spot Contribution,Income,REVENUE
Wiltshire,http://opendatacommunities.org/id/unitary-authority/wiltshire,21/12/2017,5107153708,455.94,Audley Care White Horse ,121958,SN8 ,Community Services,Marlborough,Adult Domiciliary Care - Spot,Third Party Payments,REVENUE
Wiltshire,http://opendatacommunities.org/id/unitary-authority/wiltshire,21/12/2017,5107153709,407.8,Audley Care White Horse ,121958,SN8 ,Community Services,Marlborough,Adult Domiciliary Care - Spot Contribution,Income,REVENUE
Wiltshire,http://opendatacommunities.org/id/unitary-authority/wiltshire,21/12/2017,5107153714,568.55,Audley Care White Horse ,121958,SN8 ,Community Services,Marlborough,Adult Domiciliary Care - Spot Contribution,Income,REVENUE
Wiltshire,http://opendatacommunities.org/id/unitary-authority/wiltshire,21/12/2017,5107153715,1405.7,Audley Care White Horse ,121958,SN8 ,Community Services,N&E Localiity 18+ C,Adult Domiciliary Care - Spot,Third Party Payments,REVENUE
Wiltshire,http://opendatacommunities.org/id/unitary-authority/wiltshire,21/12/2017,5107153791,1220.95,Audley Care White Horse ,121958,SN8 ,Community Services,N&E Localiity 18+ C,Adult Domiciliary Care - Spot Contribution,Income,REVENUE
Wiltshire,http://opendatacommunities.org/id/unitary-authority/wiltshire,21/12/2017,5107153791,1220.95,Audley Care White Horse ,121958,SN8 ,Community Services,Marlborough,Adult Domiciliary Care - Spot Contribution,Income,REVENUE
Wiltshire,http://opendatacommunities.org/id/unitary-authority/wiltshire,21/12/2017,5107153798,1964.13,Audley Care White Horse ,121958,SN8 ,Community Services,Cricklade,Adult Domiciliary Care - Spot,Third Party Payments,REVENUE
Wiltshire,http://opendatacommunities.org/id/unitary-authority/wiltshire,21/12/2017,5107153799,2347.67,Audley Care White Horse ,121958,SN8 ,Community Services,Marlborough,Adult Domiciliary Care - Spot Contribution,Income,REVENUE
Wiltshire,http://opendatacommunities.org/id/unitary-authority/wiltshire,13/12/2017,5107147232,6801.2,Autism Care Wiltshire ,136507,SN25,Community Services,CTPLD Placements,Adult Residential Placements - Spot Purchase,Third Party Payments,REVENUE
Wiltshire,http://opendatacommunities.org/id/unitary-authority/wiltshire,13/12/2017,5107146390,6007.4,Autism Specialised care Homes ,110205,BS10,Community Services,CTPLD Placements,Adult Residential Placements - Spot Purchase,Third Party Payments,REVENUE
Wiltshire,http://opendatacommunities.org/id/unitary-authority/wiltshire,13/12/2017,5107146528,7429.96,Autism Wessex ,112911,BH23,Community Services,CTPLD Placements,Adult Residential Placements - Spot Purchase,Third Party Payments,REVENUE
Wiltshire,http://opendatacommunities.org/id/unitary-authority/wiltshire,13/12/2017,5107146147,7332.32,Autism West Midlands ,110206,WR9 ,Community Services,CTPLD Placements,Adult Residential Placements - Spot Purchase,Third Party Payments,REVENUE
Wiltshire,http://opendatacommunities.org/id/unitary-authority/wiltshire,08/12/2017,5107143185,321.21,Automotive Leasing Ltd ,113729,SL1 ,Neighbourhood & Planning,Fleet,Commercial Leased Vehicles,Transport Related,REVENUE
Wiltshire,http://opendatacommunities.org/id/unitary-authority/wiltshire,01/12/2017,5107143684,430.5,Autonomy Care Limited ,126128,SN10,Community Services,CTPLD Placements,Supported Living,Third Party Payments,REVENUE
Wiltshire,http://opendatacommunities.org/id/unitary-authority/wiltshire,01/12/2017,5107143686,1463.72,Autonomy Care Limited ,126128,SN10,Community Services,CTPLD Placements,Supported Living,Third Party Payments,REVENUE
Wiltshire,http://opendatacommunities.org/id/unitary-authority/wiltshire,11/12/2017,5107147726,1078.2,Autonomy Care Limited ,126128,SN10,Community Services,Chippenham,Supported Living,Third Party Payments,REVENUE
Wiltshire,http://opendatacommunities.org/id/unitary-authority/wiltshire,11/12/2017,5107147728,28599.9,Autonomy Care Limited ,126128,SN10,Community Services,CTPLD Placements,Supported Living,Third Party Payments,REVENUE
Wiltshire,http://opendatacommunities.org/id/unitary-authority/wiltshire,11/12/2017,5107147731,361.6,Autonomy Care Limited ,126128,SN10,Community Services,Lansdown,Adult Domiciliary Care - Spot,Third Party Payments,REVENUE
Wiltshire,http://opendatacommunities.org/id/unitary-authority/wiltshire,11/12/2017,5107147732,1463.7,Autonomy Care Limited ,126128,SN10,Community Services,CTPLD Placements,Supported Living,Third Party Payments,REVENUE
Wiltshire,http://opendatacommunities.org/id/unitary-authority/wiltshire,13/12/2017,5107149499,11623.5,Autonomy Care Limited ,126128,SN10,Children & Education,0-25 extnl disabty p,Other Social & Welfare Costs,Third Party Payments,REVENUE
Wiltshire,http://opendatacommunities.org/id/unitary-authority/wiltshire,13/12/2017,5107149502,13998.6,Autonomy Care Limited ,126128,SN10,Children & Education,0-25 extnl disabty p,Other Social & Welfare Costs,Third Party Payments,REVENUE
Wiltshire,http://opendatacommunities.org/id/unitary-authority/wiltshire,13/12/2017,5107149506,2066.4,Autonomy Care Limited ,126128,SN10,Children & Education,0-25 extnl disabty p,Other Social & Welfare Costs,Third Party Payments,REVENUE
Wiltshire,http://opendatacommunities.org/id/unitary-authority/wiltshire,18/12/2017,5107151622,6895.37,Autonomy Care Limited ,126128,SN10,Children & Education,0-25 extnl disabty p,Other Social & Welfare Costs,Third Party Payments,REVENUE
Wiltshire,http://opendatacommunities.org/id/unitary-authority/wiltshire,07/12/2017,5107145985,15777.14,Autonomy Plus Limited ,146109,SN10,Children & Education,0-25 extnl disabty p,Childrens Agency Placement,Third Party Payments,REVENUE
Wiltshire,http://opendatacommunities.org/id/unitary-authority/wiltshire,07/12/2017,5107145986,15777.14,Autonomy Plus Limited ,146109,SN10,Children & Education,0-25 extnl disabty p,Childrens Agency Placement,Third Party Payments,REVENUE
Wiltshire,http://opendatacommunities.org/id/unitary-authority/wiltshire,07/12/2017,5107145987,13741.38,Autonomy Plus Limited ,146109,SN10,Children & Education,0-25 extnl disabty p,Childrens Agency Placement,Third Party Payments,REVENUE
Wiltshire,http://opendatacommunities.org/id/unitary-authority/wiltshire,07/12/2017,5107145988,2035.76,Autonomy Plus Limited ,146109,SN10,Children & Education,0-25 extnl disabty p,Childrens Agency Placement,Third Party Payments,REVENUE
Wiltshire,http://opendatacommunities.org/id/unitary-authority/wiltshire,21/12/2017,5107153642,750,Autotrak ,130850,BS31,Neighbourhood & Planning,Fleet,Vehicle Parts,Transport Related,REVENUE
Wiltshire,http://opendatacommunities.org/id/unitary-authority/wiltshire,21/12/2017,5107153643,250,Autotrak ,130850,BS31,Neighbourhood & Planning,Fleet,Vehicle Parts,Transport Related,REVENUE
Wiltshire,http://opendatacommunities.org/id/unitary-authority/wiltshire,21/12/2017,5107153644,250,Autotrak ,130850,BS31,Neighbourhood & Planning,Fleet,Vehicle Parts,Transport Related,REVENUE
Wiltshire,http://opendatacommunities.org/id/unitary-authority/wiltshire,21/12/2017,5107153645,250,Autotrak ,130850,BS31,Neighbourhood & Planning,Fleet,Vehicle Parts,Transport Related,REVENUE
Wiltshire,http://opendatacommunities.org/id/unitary-authority/wiltshire,21/12/2017,5107153646,250,Autotrak ,130850,BS31,Neighbourhood & Planning,Fleet,Vehicle Parts,Transport Related,REVENUE
Wiltshire,http://opendatacommunities.org/id/unitary-authority/wiltshire,21/12/2017,5107153647,250,Autotrak ,130850,BS31,Neighbourhood & Planning,Fleet,Vehicle Parts,Transport Related,REVENUE
Wiltshire,http://opendatacommunities.org/id/unitary-authority/wiltshire,13/12/2017,5107146233,2441,Avery Healthcare Cepen Lodge ,126733,DL1 ,Community Services,MH OP N&E Locality,Adult Residential Placements - Spot Purchase,Third Party Payments,REVENUE
Wiltshire,http://opendatacommunities.org/id/unitary-authority/wiltshire,13/12/2017,5107146317,2441,Avery Healthcare Cepen Lodge ,126733,DL1 ,Community Services,MH OP N&E Locality,Adult Residential Placements - Spot Purchase,Third Party Payments,REVENUE
Wiltshire,http://opendatacommunities.org/id/unitary-authority/wiltshire,13/12/2017,5107146383,2441,Avery Healthcare Cepen Lodge ,126733,DL1 ,Community Services,MH OP N&E Locality,Adult Residential Placements - Spot Purchase,Third Party Payments,REVENUE
Wiltshire,http://opendatacommunities.org/id/unitary-authority/wiltshire,13/12/2017,5107146564,2441,Avery Healthcare Cepen Lodge ,126733,DL1 ,Community Services,Chippenham,Adult Residential Placements - Spot Purchase,Third Party Payments,REVENUE
Wiltshire,http://opendatacommunities.org/id/unitary-authority/wiltshire,13/12/2017,5107146574,2441,Avery Healthcare Cepen Lodge ,126733,DL1 ,Community Services,Chippenham,Adult Residential Placements - Spot Purchase,Third Party Payments,REVENUE
Wiltshire,http://opendatacommunities.org/id/unitary-authority/wiltshire,13/12/2017,5107146965,2441,Avery Healthcare Cepen Lodge ,126733,DL1 ,Community Services,Chippenham,Adult Residential Placements - Spot Purchase,Third Party Payments,REVENUE
Wiltshire,http://opendatacommunities.org/id/unitary-authority/wiltshire,13/12/2017,5107147021,2441,Avery Healthcare Cepen Lodge ,126733,DL1 ,Community Services,Chippenham,Adult Residential Placements - Spot Purchase,Third Party Payments,REVENUE
Wiltshire,http://opendatacommunities.org/id/unitary-authority/wiltshire,13/12/2017,5107147027,2441,Avery Healthcare Cepen Lodge ,126733,DL1 ,Community Services,Chippenham,Adult Residential Placements - Spot Purchase,Third Party Payments,REVENUE
Wiltshire,http://opendatacommunities.org/id/unitary-authority/wiltshire,13/12/2017,5107147155,2441,Avery Healthcare Cepen Lodge ,126733,DL1 ,Community Services,Chippenham,Adult Residential Placements - Spot Purchase,Third Party Payments,REVENUE
Wiltshire,http://opendatacommunities.org/id/unitary-authority/wiltshire,13/12/2017,5107147244,2600,Avery Healthcare Cepen Lodge ,126733,DL1 ,Community Services,Chippenham,Adult Residential Placements - Spot Purchase,Third Party Payments,REVENUE
Wiltshire,http://opendatacommunities.org/id/unitary-authority/wiltshire,13/12/2017,5107147403,2569.72,Avery Healthcare Cepen Lodge ,126733,DL1 ,Community Services,MH OP N&E Locality,Adult Residential Placements - Spot Purchase,Third Party Payments,REVENUE
Wiltshire,http://opendatacommunities.org/id/unitary-authority/wiltshire,13/12/2017,5107147690,2441,Avery Healthcare Cepen Lodge ,126733,DL1 ,Community Services,Chippenham,Adult Residential Placements - Spot Purchase,Third Party Payments,REVENUE
Wiltshire,http://opendatacommunities.org/id/unitary-authority/wiltshire,13/12/2017,5107147832,2441,Avery Healthcare Cepen Lodge ,126733,DL1 ,Community Services,Chippenham,Adult Residential Placements - Spot Purchase,Third Party Payments,REVENUE
Wiltshire,http://opendatacommunities.org/id/unitary-authority/wiltshire,13/12/2017,5107147852,2600,Avery Healthcare Cepen Lodge ,126733,DL1 ,Community Services,Adult Care Gross Loa,Adult Care Loans,Capital charges and Expenditure,REVENUE
Wiltshire,http://opendatacommunities.org/id/unitary-authority/wiltshire,13/12/2017,5107148167,2441,Avery Healthcare Cepen Lodge ,126733,DL1 ,Community Services,MH OP N&E Locality,Adult Residential Placements - Spot Purchase,Third Party Payments,REVENUE
Wiltshire,http://opendatacommunities.org/id/unitary-authority/wiltshire,13/12/2017,5107148609,2441,Avery Healthcare Cepen Lodge ,126733,DL1 ,Community Services,Chippenham,Adult Residential Placements - Spot Purchase,Third Party Payments,REVENUE
Wiltshire,http://opendatacommunities.org/id/unitary-authority/wiltshire,13/12/2017,5107148895,2600,Avery Healthcare Cepen Lodge ,126733,DL1 ,Community Services,Chippenham,Adult Residential Placements - Spot Purchase,Third Party Payments,REVENUE
Wiltshire,http://opendatacommunities.org/id/unitary-authority/wiltshire,13/12/2017,5107149161,2600,Avery Healthcare Cepen Lodge ,126733,DL1 ,Community Services,Marlborough,Adult Residential Placements - Spot Purchase,Third Party Payments,REVENUE
Wiltshire,http://opendatacommunities.org/id/unitary-authority/wiltshire,13/12/2017,5107149241,2600,Avery Healthcare Cepen Lodge ,126733,DL1 ,Community Services,Chippenham,Adult Residential Placements - Spot Purchase,Third Party Payments,REVENUE
Wiltshire,http://opendatacommunities.org/id/unitary-authority/wiltshire,13/12/2017,5107149354,2944,Avery Healthcare Cepen Lodge ,126733,DL1 ,Community Services,N&E Localiity 18+ C,Adult Residential Placements - Spot Purchase,Third Party Payments,REVENUE
Wiltshire,http://opendatacommunities.org/id/unitary-authority/wiltshire,27/12/2017,5107154192,2321.5,Avery Healthcare Cepen Lodge ,126733,DL1 ,Community Services,N&E Localiity 18+ C,Adult Residential Placements - 12 Week,Third Party Payments,REVENUE
Wiltshire,http://opendatacommunities.org/id/unitary-authority/wiltshire,27/12/2017,5107154194,2600,Avery Healthcare Cepen Lodge ,126733,DL1 ,Community Services,N&E Localiity 18+ C,Adult Residential Placements - 12 Week,Third Party Payments,REVENUE
Wiltshire,http://opendatacommunities.org/id/unitary-authority/wiltshire,27/12/2017,5107154205,420.56,Avery Healthcare Cepen Lodge ,126733,DL1 ,Community Services,N&E Localiity 18+ C,Adult Residential Placements - Spot Purchase,Third Party Payments,REVENUE
Wiltshire,http://opendatacommunities.org/id/unitary-authority/wiltshire,13/12/2017,5107142880,529.97,Avery Healthcare Ltd- Langford Sali ,112676,NN4 ,Community Services,Endless/St.A,Adult Care Nursing Placements - Spot,Third Party Payments,REVENUE
Wiltshire,http://opendatacommunities.org/id/unitary-authority/wiltshire,13/12/2017,5107146263,2566.88,Avery Healthcare Ltd- Langford Sali ,112676,NN4 ,Community Services,Downton,Adult Care Nursing Placements - Spot,Third Party Payments,REVENUE
Wiltshire,http://opendatacommunities.org/id/unitary-authority/wiltshire,13/12/2017,5107146418,2566.88,Avery Healthcare Ltd- Langford Sali ,112676,NN4 ,Community Services,MH OP South Locality,Adult Care Nursing Placements - Spot,Third Party Payments,REVENUE
Wiltshire,http://opendatacommunities.org/id/unitary-authority/wiltshire,13/12/2017,5107146624,2294.76,Avery Healthcare Ltd- Langford Sali ,112676,NN4 ,Community Services,Downton,Adult Residential Placements - Spot Purchase,Third Party Payments,REVENUE
Wiltshire,http://opendatacommunities.org/id/unitary-authority/wiltshire,13/12/2017,5107146642,3088.36,Avery Healthcare Ltd- Langford Sali ,112676,NN4 ,Community Services,Downton,Adult Care Nursing Placements - Spot,Third Party Payments,REVENUE
Wiltshire,http://opendatacommunities.org/id/unitary-authority/wiltshire,13/12/2017,5107147842,2294.76,Avery Healthcare Ltd- Langford Sali ,112676,NN4 ,Community Services,Downton,Adult Residential Placements - Spot Purchase,Third Party Payments,REVENUE
Wiltshire,http://opendatacommunities.org/id/unitary-authority/wiltshire,13/12/2017,5107147872,3319.44,Avery Healthcare Ltd- Langford Sali ,112676,NN4 ,Community Services,Downton,Adult Residential Placements - Spot Purchase,Third Party Payments,REVENUE
Wiltshire,http://opendatacommunities.org/id/unitary-authority/wiltshire,13/12/2017,5107148614,2566.88,Avery Healthcare Ltd- Langford Sali ,112676,NN4 ,Community Services,Downton,Adult Care Nursing Placements - Spot,Third Party Payments,REVENUE
Wiltshire,http://opendatacommunities.org/id/unitary-authority/wiltshire,13/12/2017,5107148644,2640,Avery Healthcare Ltd- Langford Sali ,112676,NN4 ,Community Services,Downton,Adult Care Nursing Placements - Spot,Third Party Payments,REVENUE
Wiltshire,http://opendatacommunities.org/id/unitary-authority/wiltshire,13/12/2017,5107149127,2640,Avery Healthcare Ltd- Langford Sali ,112676,NN4 ,Community Services,Lansdown,Adult Care Nursing Placements - 12 Week,Third Party Payments,REVENUE
Wiltshire,http://opendatacommunities.org/id/unitary-authority/wiltshire,13/12/2017,5107149269,2460,Avery Healthcare Ltd- Langford Sali ,112676,NN4 ,Community Services,Downton,Adult Residential Placements - Spot Purchase,Third Party Payments,REVENUE
Wiltshire,http://opendatacommunities.org/id/unitary-authority/wiltshire,13/12/2017,5107149396,2460,Avery Healthcare Ltd- Langford Sali ,112676,NN4 ,Community Services,South Locality 18+ C,Adult Residential Placements - Spot Purchase,Third Party Payments,REVENUE
Wiltshire,http://opendatacommunities.org/id/unitary-authority/wiltshire,13/12/2017,5107149398,2460,Avery Healthcare Ltd- Langford Sali ,112676,NN4 ,Community Services,South Locality 18+ C,Adult Residential Placements - Spot Purchase,Third Party Payments,REVENUE
Wiltshire,http://opendatacommunities.org/id/unitary-authority/wiltshire,20/12/2017,1902058000,7439,Avon and W Wilts MHC NHS Trust ,110216,BA1 ,Community Services,Mental Health Teams,Premises Rental,Premises Related,REVENUE
Wiltshire,http://opendatacommunities.org/id/unitary-authority/wiltshire,04/12/2017,5107118107,280,Avon and W Wilts MHC NHS Trust ,110216,BA1 ,Community Services,MH AOWA South Locali,Adult Domiciliary Care - Spot,Third Party Payments,REVENUE
Wiltshire,http://opendatacommunities.org/id/unitary-authority/wiltshire,28/12/2017,5107142907,280,Avon and W Wilts MHC NHS Trust ,110216,BA1 ,Community Services,MH AOWA South Locali,Adult Domiciliary Care - Spot,Third Party Payments,REVENUE
Wiltshire,http://opendatacommunities.org/id/unitary-authority/wiltshire,28/12/2017,5107142908,280,Avon and W Wilts MHC NHS Trust ,110216,BA1 ,Community Services,MH AOWA South Locali,Adult Domiciliary Care - Spot,Third Party Payments,REVENUE
Wiltshire,http://opendatacommunities.org/id/unitary-authority/wiltshire,13/12/2017,5107146193,2128.76,Avon Care Homes Ltd - Sutton Veny H ,112612,BA5 ,Community Services,Orchard,Adult Care Nursing Placements - Spot,Third Party Payments,REVENUE
Wiltshire,http://opendatacommunities.org/id/unitary-authority/wiltshire,13/12/2017,5107147121,2400,Avon Care Homes Ltd - Sutton Veny H ,112612,BA5 ,Community Services,Orchard,Adult Residential Placements - Spot Purchase,Third Party Payments,REVENUE
Wiltshire,http://opendatacommunities.org/id/unitary-authority/wiltshire,13/12/2017,5107148076,2128.76,Avon Care Homes Ltd - Sutton Veny H ,112612,BA5 ,Community Services,The Avenue,Adult Care Nursing Placements - Spot,Third Party Payments,REVENUE
Wiltshire,http://opendatacommunities.org/id/unitary-authority/wiltshire,13/12/2017,5107149473,1852.75,Avon Care Homes Ltd - Sutton Veny H ,112612,BA5 ,Community Services,West Locality 18+ Ca,Adult Care Nursing Placements - Spot,Third Party Payments,REVENUE
Wiltshire,http://opendatacommunities.org/id/unitary-authority/wiltshire,18/12/2017,5107151541,534.66,Avon Care Homes Ltd - Sutton Veny H ,112612,BA5 ,Community Services,West Locality 18+ Ca,Adult Care Nursing Placements - 12 Week,Third Party Payments,REVENUE
Wiltshire,http://opendatacommunities.org/id/unitary-authority/wiltshire,18/12/2017,5107151543,2495,Avon Care Homes Ltd - Sutton Veny H ,112612,BA5 ,Community Services,West Locality 18+ Ca,Adult Care Nursing Placements - 12 Week,Third Party Payments,REVENUE
Wiltshire,http://opendatacommunities.org/id/unitary-authority/wiltshire,18/12/2017,5107151590,288.78,Avon Care Homes Ltd - Sutton Veny H ,112612,BA5 ,Community Services,N&E Localiity 18+ C,Adult Residential Placements - Spot Purchase,Third Party Payments,REVENUE
Wiltshire,http://opendatacommunities.org/id/unitary-authority/wiltshire,06/12/2017,5107145362,15620,Avon Court Care Home ,110218,LS16,Community Services,BCF-Intermediate Cr,Adult Care Nursing Placements - Void Payments,Third Party Payments,REVENUE
Wiltshire,http://opendatacommunities.org/id/unitary-authority/wiltshire,13/12/2017,5107146471,2414.28,Avon Court Care Home ,110218,LS16,Community Services,Chippenham,Adult Care Nursing Placements - Spot,Third Party Payments,REVENUE
Wiltshire,http://opendatacommunities.org/id/unitary-authority/wiltshire,13/12/2017,5107146585,2281.04,Avon Court Care Home ,110218,LS16,Community Services,Chippenham,Adult Residential Placements - Spot Purchase,Third Party Payments,REVENUE
Wiltshire,http://opendatacommunities.org/id/unitary-authority/wiltshire,13/12/2017,5107146663,2455,Avon Court Care Home ,110218,LS16,Community Services,Chippenham,Adult Care Nursing Placements- Block Contract,Third Party Payments,REVENUE
Wiltshire,http://opendatacommunities.org/id/unitary-authority/wiltshire,13/12/2017,5107147025,2135,Avon Court Care Home ,110218,LS16,Community Services,Chippenham,Adult Care Nursing Placements- Block Contract,Third Party Payments,REVENUE
Wiltshire,http://opendatacommunities.org/id/unitary-authority/wiltshire,13/12/2017,5107147036,2133.56,Avon Court Care Home ,110218,LS16,Community Services,Chippenham,Adult Residential Placements - Spot Purchase,Third Party Payments,REVENUE
Wiltshire,http://opendatacommunities.org/id/unitary-authority/wiltshire,13/12/2017,5107147694,2135,Avon Court Care Home ,110218,LS16,Community Services,Chippenham,Adult Care Nursing Placements- Block Contract,Third Party Payments,REVENUE
Wiltshire,http://opendatacommunities.org/id/unitary-authority/wiltshire,13/12/2017,5107147804,2135,Avon Court Care Home ,110218,LS16,Community Services,Chippenham,Adult Care Nursing Placements- Block Contract,Third Party Payments,REVENUE
Wiltshire,http://opendatacommunities.org/id/unitary-authority/wiltshire,13/12/2017,5107147999,2135,Avon Court Care Home ,110218,LS16,Community Services,Chippenham,Adult Care Nursing Placements- Block Contract,Third Party Payments,REVENUE
Wiltshire,http://opendatacommunities.org/id/unitary-authority/wiltshire,13/12/2017,5107148052,2135,Avon Court Care Home ,110218,LS16,Community Services,Chippenham,Adult Care Nursing Placements- Block Contract,Third Party Payments,REVENUE
Wiltshire,http://opendatacommunities.org/id/unitary-authority/wiltshire,13/12/2017,5107148269,2414.28,Avon Court Care Home ,110218,LS16,Community Services,Chippenham,Adult Care Nursing Placements - Spot,Third Party Payments,REVENUE
Wiltshire,http://opendatacommunities.org/id/unitary-authority/wiltshire,13/12/2017,5107148606,2135,Avon Court Care Home ,110218,LS16,Community Services,Chippenham,Adult Care Nursing Placements- Block Contract,Third Party Payments,REVENUE
Wiltshire,http://opendatacommunities.org/id/unitary-authority/wiltshire,13/12/2017,5107148639,2567,Avon Court Care Home ,110218,LS16,Community Services,Chippenham,Adult Care Nursing Placements - Spot,Third Party Payments,REVENUE
Wiltshire,http://opendatacommunities.org/id/unitary-authority/wiltshire,13/12/2017,5107148732,2135,Avon Court Care Home ,110218,LS16,Community Services,Chippenham,Adult Care Nursing Placements- Block Contract,Third Party Payments,REVENUE
Wiltshire,http://opendatacommunities.org/id/unitary-authority/wiltshire,13/12/2017,5107148739,2182.48,Avon Court Care Home ,110218,LS16,Community Services,Chippenham,Adult Care Nursing Placements - Spot,Third Party Payments,REVENUE
Wiltshire,http://opendatacommunities.org/id/unitary-authority/wiltshire,13/12/2017,5107149221,2247,Avon Court Care Home ,110218,LS16,Community Services,Chippenham,Adult Care Nursing Placements - Spot,Third Party Payments,REVENUE
Wiltshire,http://opendatacommunities.org/id/unitary-authority/wiltshire,13/12/2017,5107147180,2562.68,Avoncare Homes Ltd - Wells Nursing ,114326,BA5 ,Community Services,Corsh & Box,Adult Care Nursing Placements - Spot,Third Party Payments,REVENUE
Wiltshire,http://opendatacommunities.org/id/unitary-authority/wiltshire,13/12/2017,5107148957,2548,Avoncare Homes Ltd - Wells Nursing ,114326,BA5 ,Community Services,Corsh & Box,Adult Care Nursing Placements - Spot,Third Party Payments,REVENUE
Wiltshire,http://opendatacommunities.org/id/unitary-authority/wiltshire,13/12/2017,5107146197,3088.36,Avonpark Village (Care Homes) Limit ,110227,BA2 ,Community Services,BoA Cluster,Adult Care Nursing Placements - Spot,Third Party Payments,REVENUE
Wiltshire,http://opendatacommunities.org/id/unitary-authority/wiltshire,13/12/2017,5107147263,2087.16,Avonpark Village (Care Homes) Limit ,110227,BA2 ,Community Services,BoA Cluster,Adult Residential Placements - Spot Purchase,Third Party Payments,REVENUE
Wiltshire,http://opendatacommunities.org/id/unitary-authority/wiltshire,13/12/2017,5107147553,2712,Avonpark Village (Care Homes) Limit ,110227,BA2 ,Community Services,MH OP West Locality,Adult Residential Placements - Spot Purchase,Third Party Payments,REVENUE
Wiltshire,http://opendatacommunities.org/id/unitary-authority/wiltshire,13/12/2017,5107148169,2165.44,Avonpark Village (Care Homes) Limit ,110227,BA2 ,Community Services,MH OP West Locality,Adult Residential Placements - Spot Purchase,Third Party Payments,REVENUE
Wiltshire,http://opendatacommunities.org/id/unitary-authority/wiltshire,13/12/2017,5107148250,2545.2,Avonpark Village (Care Homes) Limit ,110227,BA2 ,Community Services,MH OP West Locality,Adult Residential Placements - Spot Purchase,Third Party Payments,REVENUE
Wiltshire,http://opendatacommunities.org/id/unitary-authority/wiltshire,13/12/2017,5107148251,1991.24,Avonpark Village (Care Homes) Limit ,110227,BA2 ,Community Services,MH OP West Locality,Adult Residential Placements - Spot Purchase,Third Party Payments,REVENUE
Wiltshire,http://opendatacommunities.org/id/unitary-authority/wiltshire,13/12/2017,5107148723,3088.36,Avonpark Village (Care Homes) Limit ,110227,BA2 ,Community Services,BoA Cluster,Adult Care Nursing Placements - Spot,Third Party Payments,REVENUE
Wiltshire,http://opendatacommunities.org/id/unitary-authority/wiltshire,06/12/2017,5107144739,2075,Axis Signs Limited ,140699,SN3 ,Neighbourhood & Planning,Waste Mangmt Team,Marketing and Promotions,Supplies and Services,REVENUE
Wiltshire,http://opendatacommunities.org/id/unitary-authority/wiltshire,07/12/2017,5107146033,255,Axis Signs Limited ,140699,SN3 ,Resources,News & Information,Marketing and Promotions,Supplies and Services,REVENUE
Wiltshire,http://opendatacommunities.org/id/unitary-authority/wiltshire,07/12/2017,5107146034,690,Axis Signs Limited ,140699,SN3 ,Resources,News & Information,Marketing and Promotions,Supplies and Services,REVENUE
Wiltshire,http://opendatacommunities.org/id/unitary-authority/wiltshire,04/12/2017,5107143761,308.3,B & M Windows  and  Doors Ltd ,101694,SP2 ,Neighbourhood & Planning,DLO,Equipment Purchase,Supplies and Services,REVENUE
Wiltshire,http://opendatacommunities.org/id/unitary-authority/wiltshire,15/12/2017,5107150765,540,B & M Windows  and  Doors Ltd ,101694,SP2 ,Neighbourhood & Planning,DLO,Equipment Purchase,Supplies and Services,REVENUE
Wiltshire,http://opendatacommunities.org/id/unitary-authority/wiltshire,20/12/2017,5107152023,450,B P Estates (Contractors) Limited ,132851,SY23,Resources,Investment Estate,Premises Management Costs,Premises Related,REVENUE
Wiltshire,http://opendatacommunities.org/id/unitary-authority/wiltshire,20/12/2017,5107152024,450,B P Estates (Contractors) Limited ,132851,SY23,Resources,Investment Estate,Premises Management Costs,Premises Related,REVENUE
Wiltshire,http://opendatacommunities.org/id/unitary-authority/wiltshire,20/12/2017,5107151804,2226.72,B P Estates Ltd ,113821,BA14,Resources,Investment Estate,Premises Management Costs,Premises Related,REVENUE
Wiltshire,http://opendatacommunities.org/id/unitary-authority/wiltshire,01/12/2017,5107140469,350,B W Y Canine Ltd ,145955,SA66,Health & Wellbeing,Trading Standards,Consultants Fees,Supplies and Services,REVENUE
Wiltshire,http://opendatacommunities.org/id/unitary-authority/wiltshire,07/12/2017,5107145800,1289.9,Bailey Employment Services Ltd t/a Bailey Care Services,100204,SN12,Community Services,Chippenham Respite,Agency Staff,Employee Related,REVENUE
Wiltshire,http://opendatacommunities.org/id/unitary-authority/wiltshire,13/12/2017,5107146218,2587.72,Barchester Healthcare - The White L ,121961,SN5 ,Community Services,Cricklade,Adult Care Nursing Placements - Spot,Third Party Payments,REVENUE
Wiltshire,http://opendatacommunities.org/id/unitary-authority/wiltshire,13/12/2017,5107146394,2775,Barchester Healthcare - The White L ,121961,SN5 ,Community Services,MH OP N&E Locality,Adult Care Nursing Placements - Spot,Third Party Payments,REVENUE
Wiltshire,http://opendatacommunities.org/id/unitary-authority/wiltshire,13/12/2017,5107146483,2879.76,Barchester Healthcare - The White L ,121961,SN5 ,Community Services,Cricklade,Adult Care Nursing Placements - Spot,Third Party Payments,REVENUE
Wiltshire,http://opendatacommunities.org/id/unitary-authority/wiltshire,13/12/2017,5107146626,2879.76,Barchester Healthcare - The White L ,121961,SN5 ,Community Services,Cricklade,Adult Care Nursing Placements - Spot,Third Party Payments,REVENUE
Wiltshire,http://opendatacommunities.org/id/unitary-authority/wiltshire,13/12/2017,5107146960,2587.72,Barchester Healthcare - The White L ,121961,SN5 ,Community Services,Cricklade,Adult Care Nursing Placements - Spot,Third Party Payments,REVENUE
Wiltshire,http://opendatacommunities.org/id/unitary-authority/wiltshire,13/12/2017,5107147059,3200,Barchester Healthcare - The White L ,121961,SN5 ,Community Services,MH OP N&E Locality,Adult Residential Placements - Spot Purchase,Third Party Payments,REVENUE
Wiltshire,http://opendatacommunities.org/id/unitary-authority/wiltshire,13/12/2017,5107147079,3424,Barchester Healthcare - The White L ,121961,SN5 ,Community Services,Home Loans,Adult Care Loans,Capital charges and Expenditure,REVENUE
Wiltshire,http://opendatacommunities.org/id/unitary-authority/wiltshire,13/12/2017,5107147090,2879.76,Barchester Healthcare - The White L ,121961,SN5 ,Community Services,Cricklade,Adult Care Nursing Placements - Spot,Third Party Payments,REVENUE
Wiltshire,http://opendatacommunities.org/id/unitary-authority/wiltshire,13/12/2017,5107147131,2879.76,Barchester Healthcare - The White L ,121961,SN5 ,Community Services,Cricklade,Adult Care Nursing Placements - Spot,Third Party Payments,REVENUE
Wiltshire,http://opendatacommunities.org/id/unitary-authority/wiltshire,13/12/2017,5107147176,2587.72,Barchester Healthcare - The White L ,121961,SN5 ,Community Services,MH OP N&E Locality,Adult Care Nursing Placements - Spot,Third Party Payments,REVENUE
Wiltshire,http://opendatacommunities.org/id/unitary-authority/wiltshire,13/12/2017,5107147207,2855,Barchester Healthcare - The White L ,121961,SN5 ,Community Services,MH OP N&E Locality,Adult Care Nursing Placements - Spot,Third Party Payments,REVENUE
Wiltshire,http://opendatacommunities.org/id/unitary-authority/wiltshire,13/12/2017,5107147371,2879.76,Barchester Healthcare - The White L ,121961,SN5 ,Community Services,Cricklade,Adult Care Nursing Placements - Spot,Third Party Payments,REVENUE
Wiltshire,http://opendatacommunities.org/id/unitary-authority/wiltshire,13/12/2017,5107147679,3440,Barchester Healthcare - The White L ,121961,SN5 ,Community Services,Adult Care Gross Loa,Adult Care Loans,Capital charges and Expenditure,REVENUE
Wiltshire,http://opendatacommunities.org/id/unitary-authority/wiltshire,13/12/2017,5107147778,2879.76,Barchester Healthcare - The White L ,121961,SN5 ,Community Services,Cricklade,Adult Care Nursing Placements - Spot,Third Party Payments,REVENUE
Wiltshire,http://opendatacommunities.org/id/unitary-authority/wiltshire,13/12/2017,5107147935,2948.72,Barchester Healthcare - The White L ,121961,SN5 ,Community Services,MH OP N&E Locality,Adult Care Nursing Placements - Spot,Third Party Payments,REVENUE
Wiltshire,http://opendatacommunities.org/id/unitary-authority/wiltshire,13/12/2017,5107148248,2869.6,Barchester Healthcare - The White L ,121961,SN5 ,Community Services,MH OP N&E Locality,Adult Care Nursing Placements - Spot,Third Party Payments,REVENUE
Wiltshire,http://opendatacommunities.org/id/unitary-authority/wiltshire,13/12/2017,5107148280,2820,Barchester Healthcare - The White L ,121961,SN5 ,Community Services,Cricklade,Adult Residential Placements - Spot Purchase,Third Party Payments,REVENUE
Wiltshire,http://opendatacommunities.org/id/unitary-authority/wiltshire,13/12/2017,5107148329,2879.76,Barchester Healthcare - The White L ,121961,SN5 ,Community Services,Cricklade,Adult Care Nursing Placements - Spot,Third Party Payments,REVENUE
Wiltshire,http://opendatacommunities.org/id/unitary-authority/wiltshire,13/12/2017,5107148630,5600,Barchester Healthcare - The White L ,121961,SN5 ,Community Services,Home Loans,Adult Care Loans,Capital charges and Expenditure,REVENUE
Wiltshire,http://opendatacommunities.org/id/unitary-authority/wiltshire,13/12/2017,5107148688,2879.76,Barchester Healthcare - The White L ,121961,SN5 ,Community Services,Malmesbury,Adult Care Nursing Placements - Spot,Third Party Payments,REVENUE
Wiltshire,http://opendatacommunities.org/id/unitary-authority/wiltshire,13/12/2017,5107148722,2823.8,Barchester Healthcare - The White L ,121961,SN5 ,Community Services,Calne,Adult Care Nursing Placements - Spot,Third Party Payments,REVENUE
Wiltshire,http://opendatacommunities.org/id/unitary-authority/wiltshire,13/12/2017,5107148742,2879.76,Barchester Healthcare - The White L ,121961,SN5 ,Community Services,Cricklade,Adult Care Nursing Placements - Spot,Third Party Payments,REVENUE
Wiltshire,http://opendatacommunities.org/id/unitary-authority/wiltshire,13/12/2017,5107149067,2775,Barchester Healthcare - The White L ,121961,SN5 ,Community Services,Marlborough,Adult Care Nursing Placements - Spot,Third Party Payments,REVENUE
Wiltshire,http://opendatacommunities.org/id/unitary-authority/wiltshire,13/12/2017,5107149102,2819.8,Barchester Healthcare - The White L ,121961,SN5 ,Community Services,Cricklade,Adult Care Nursing Placements - Spot,Third Party Payments,REVENUE
Wiltshire,http://opendatacommunities.org/id/unitary-authority/wiltshire,13/12/2017,5107149218,2823.8,Barchester Healthcare - The White L ,121961,SN5 ,Community Services,Adult Care Gross Loa,Adult Care Loans,Capital charges and Expenditure,REVENUE
Wiltshire,http://opendatacommunities.org/id/unitary-authority/wiltshire,13/12/2017,5107148828,4179.8,Barchester Healthcare Ltd - Rothsay Grange,127635,SP11,Community Services,Avon,Adult Care Nursing Placements - Spot,Third Party Payments,REVENUE
Wiltshire,http://opendatacommunities.org/id/unitary-authority/wiltshire,13/12/2017,5107146303,2879.76,Barchester Healthcare Ltd (Henford ,111113,BA12,Community Services,The Avenue,Adult Care Nursing Placements - Spot,Third Party Payments,REVENUE
Wiltshire,http://opendatacommunities.org/id/unitary-authority/wiltshire,13/12/2017,5107146375,2587.72,Barchester Healthcare Ltd (Henford ,111113,BA12,Community Services,The Avenue,Adult Care Nursing Placements - Spot,Third Party Payments,REVENUE
Wiltshire,http://opendatacommunities.org/id/unitary-authority/wiltshire,13/12/2017,5107146379,2587.72,Barchester Healthcare Ltd (Henford ,111113,BA12,Community Services,The Avenue,Adult Care Nursing Placements - Spot,Third Party Payments,REVENUE
Wiltshire,http://opendatacommunities.org/id/unitary-authority/wiltshire,13/12/2017,5107146498,2587.72,Barchester Healthcare Ltd (Henford ,111113,BA12,Community Services,The Avenue,Adult Care Nursing Placements - Spot,Third Party Payments,REVENUE
Wiltshire,http://opendatacommunities.org/id/unitary-authority/wiltshire,13/12/2017,5107146941,3659.8,Barchester Healthcare Ltd (Henford ,111113,BA12,Community Services,Home Loans,Adult Care Loans,Capital charges and Expenditure,REVENUE
Wiltshire,http://opendatacommunities.org/id/unitary-authority/wiltshire,13/12/2017,5107147015,2587.72,Barchester Healthcare Ltd (Henford ,111113,BA12,Community Services,The Avenue,Adult Care Nursing Placements - Spot,Third Party Payments,REVENUE
Wiltshire,http://opendatacommunities.org/id/unitary-authority/wiltshire,13/12/2017,5107147431,2534,Barchester Healthcare Ltd (Henford ,111113,BA12,Community Services,The Avenue,Adult Residential Placements - Spot Purchase,Third Party Payments,REVENUE
Wiltshire,http://opendatacommunities.org/id/unitary-authority/wiltshire,13/12/2017,5107147827,2587.72,Barchester Healthcare Ltd (Henford ,111113,BA12,Community Services,The Avenue,Adult Care Nursing Placements - Spot,Third Party Payments,REVENUE
Wiltshire,http://opendatacommunities.org/id/unitary-authority/wiltshire,13/12/2017,5107147859,2760.84,Barchester Healthcare Ltd (Henford ,111113,BA12,Community Services,The Avenue,Adult Care Nursing Placements - Spot,Third Party Payments,REVENUE
